{"text_format":"1","workbook":"xlsx","n_sheets":4,"sheets":["Cerere de Finantare","Anexa 1 HG_907","Anexa 2 HG_907","Anexa 3 HG_907"],"not_rendered":{"charts":0,"images":1,"macros":1,"external_links":0,"defined_names":2,"comments":0,"pivot_tables":0},"unopened":[],"bounds":{"document_bytes":16777216,"sheet_cells":100000,"rows_first":2000,"rows_last":500,"rows_between":2000,"halvings":0,"cell_chars":16384,"cell_head_chars":4096},"cells_cut":0,"cells_raw":0,"read":"whole","date_system":"1900"}

{"sheet":"Cerere de Finantare","index":0,"n_rows":1340,"n_cols":62,"rows_kept":1340,"cut":false,"hidden":false,"merged":[[1227,50,1227,60],[1228,50,1228,60],[1222,0,1222,60],[1223,0,1223,60],[1073,30,1073,34],[1073,35,1073,41],[1029,30,1029,34],[1006,30,1007,60],[1009,0,1009,29],[1010,0,1010,29],[1012,0,1012,29],[1055,0,1055,29],[1057,0,1057,29],[1329,21,1329,59],[1257,0,1262,60],[1182,0,1182,60],[1180,0,1180,60],[1179,0,1179,60],[1045,35,1045,41],[1045,42,1045,49],[1045,0,1045,29],[1068,30,1068,34],[1068,42,1068,49],[1068,0,1068,29],[1178,0,1178,60],[1244,50,1244,60],[1244,17,1244,49],[1211,0,1211,2],[1211,3,1211,4],[1211,5,1211,59],[1213,0,1213,2],[1213,3,1213,4],[1213,5,1213,60],[1214,0,1214,2],[1214,3,1214,4],[1214,5,1214,60],[1002,34,1002,41],[1002,42,1002,49],[1002,50,1002,56],[1002,57,1002,61],[1003,0,1003,2],[1003,3,1003,13],[1003,14,1003,20],[1003,21,1003,24],[1003,25,1003,33],[1003,34,1003,41],[1003,42,1003,49],[1003,50,1003,56],[1003,57,1003,61],[1004,0,1004,2],[1004,3,1004,13],[1004,14,1004,20],[1004,21,1004,24],[1004,25,1004,33],[1004,34,1004,41],[1004,42,1004,49],[1004,50,1004,56],[1004,57,1004,61],[1224,0,1224,60],[1030,35,1030,41],[1030,42,1030,49],[1030,50,1030,54],[1030,55,1030,60],[1000,0,1000,2],[1000,3,1000,13],[1000,14,1000,20],[1000,21,1000,24],[1000,25,1000,33],[1000,34,1000,41],[1000,42,1000,49],[1000,50,1000,56],[1000,57,1000,61],[1001,0,1001,2],[1001,3,1001,13],[1001,14,1001,20],[1001,21,1001,24],[1001,25,1001,33],[1001,34,1001,41],[1001,42,1001,49],[1001,50,1001,56],[1001,57,1001,61],[1071,42,1071,49],[1071,50,1071,54],[1030,0,1030,29],[1030,30,1030,34],[1002,0,1002,2],[1002,3,1002,13],[1002,14,1002,20],[1002,21,1002,24],[1002,25,1002,33],[998,0,998,2],[998,3,998,13],[998,14,998,20],[998,21,998,24],[998,25,998,33],[998,34,998,41],[998,42,998,49],[998,50,998,56],[998,57,998,61],[997,0,997,56],[999,0,999,2],[999,3,999,13],[999,14,999,20],[999,21,999,24],[999,25,999,33],[999,34,999,41],[999,42,999,49],[999,50,999,56],[999,57,999,61],[996,57,996,61],[997,57,997,61],[996,0,996,2],[996,3,996,13],[996,14,996,20],[996,21,996,24],[996,25,996,33],[996,34,996,41],[996,42,996,49],[996,50,996,56],[995,0,995,13],[995,14,995,33],[995,34,995,56],[990,0,990,2],[990,3,990,13],[990,14,990,20],[990,21,990,24],[990,25,990,33],[990,34,990,41],[990,42,990,49],[990,50,990,56],[990,57,990,61],[992,0,992,61],[993,26,993,61],[994,0,994,2],[994,3,994,13],[994,14,994,20],[994,21,994,24],[994,25,994,33],[994,34,994,41],[994,42,994,49],[994,50,994,56],[994,57,994,61],[988,0,988,2],[988,3,988,13],[988,14,988,20],[988,21,988,24],[988,25,988,33],[988,34,988,41],[988,42,988,49],[988,50,988,56],[988,57,988,61],[989,0,989,2],[989,3,989,13],[989,14,989,20],[989,21,989,24],[989,25,989,33],[989,34,989,41],[989,42,989,49],[989,50,989,56],[989,57,989,61],[983,0,983,2],[983,3,983,13],[983,14,983,20],[983,21,983,24],[983,25,983,33],[983,34,983,41],[983,42,983,49],[983,50,983,56],[985,0,985,61],[986,23,986,61],[987,0,987,2],[987,3,987,13],[987,14,987,20],[987,21,987,24],[987,25,987,33],[987,34,987,41],[987,42,987,49],[987,50,987,56],[987,57,987,61],[981,0,981,2],[980,3,980,13],[981,3,981,13],[980,14,980,20],[981,14,981,20],[979,21,979,24],[979,25,979,33],[979,34,979,41],[979,42,979,49],[979,50,979,56],[979,57,979,61],[981,21,981,24],[981,25,981,33],[981,34,981,41],[981,42,981,49],[981,50,981,56],[982,0,982,2],[982,3,982,13],[982,14,982,20],[982,21,982,24],[982,25,982,33],[982,34,982,41],[982,42,982,49],[982,50,982,56],[977,3,977,13],[977,0,977,2],[977,14,977,20],[977,21,977,24],[977,25,977,33],[977,34,977,41],[977,42,977,49],[977,50,977,56],[977,57,977,61],[978,0,978,61],[979,0,979,2],[979,3,979,13],[979,14,979,20],[980,21,980,24],[980,25,980,33],[980,34,980,41],[980,42,980,49],[980,50,980,56],[980,57,980,61],[980,0,980,2],[972,0,972,61],[973,0,973,61],[974,0,974,61],[975,0,975,2],[975,3,975,13],[975,14,975,20],[975,21,975,24],[975,25,975,33],[975,34,975,41],[975,42,975,49],[975,50,975,56],[975,57,975,61],[976,0,976,13],[976,14,976,33],[976,34,976,56],[968,0,968,61],[969,0,971,2],[969,3,969,13],[969,14,969,20],[969,21,969,24],[969,25,969,33],[969,34,969,41],[969,42,969,49],[969,50,969,56],[969,57,969,61],[970,3,970,13],[970,14,970,20],[970,21,970,24],[970,25,970,33],[970,34,970,41],[970,42,970,49],[970,50,970,56],[970,57,970,61],[971,3,971,13],[971,14,971,20],[971,21,971,24],[971,25,971,33],[971,34,971,41],[971,42,971,49],[971,50,971,56],[971,57,971,61],[967,25,967,33],[967,34,967,41],[967,42,967,49],[967,50,967,56],[967,57,967,61],[963,21,963,24],[962,25,962,33],[963,25,963,33],[962,34,962,41],[963,34,963,41],[962,42,962,49],[963,42,963,49],[962,50,962,56],[963,50,963,56],[962,57,962,61],[963,57,963,61],[964,0,964,61],[965,0,967,2],[965,3,965,13],[965,14,965,20],[965,21,965,24],[965,25,965,33],[965,34,965,41],[965,42,965,49],[965,50,965,56],[965,57,965,61],[966,3,966,13],[966,14,966,20],[966,21,966,24],[966,25,966,33],[966,34,966,41],[966,42,966,49],[966,50,966,56],[966,57,966,61],[967,3,967,13],[967,14,967,20],[967,21,967,24],[958,0,958,61],[959,3,959,13],[959,14,959,20],[959,21,959,24],[959,25,959,33],[959,34,959,41],[959,42,959,49],[959,50,959,56],[959,57,959,61],[960,3,960,13],[960,14,960,20],[960,21,960,24],[960,25,960,33],[960,34,960,41],[960,42,960,49],[960,50,960,56],[960,57,960,61],[961,3,961,13],[961,14,961,20],[961,21,961,24],[961,25,961,33],[961,34,961,41],[961,42,961,49],[961,50,961,56],[961,57,961,61],[959,0,963,2],[962,3,962,13],[963,3,963,13],[962,14,962,20],[963,14,963,20],[962,21,962,24],[948,3,948,13],[948,14,948,20],[948,21,948,24],[948,25,948,33],[948,34,948,41],[948,42,948,49],[948,50,948,56],[948,57,948,61],[946,0,948,2],[954,0,956,2],[956,3,956,13],[956,14,956,20],[956,21,956,24],[956,25,956,33],[956,34,956,41],[956,42,956,49],[956,50,956,56],[956,57,956,61],[950,0,952,2],[952,3,952,13],[952,14,952,20],[952,21,952,24],[952,25,952,33],[952,34,952,41],[952,42,952,49],[952,50,952,56],[952,57,952,61],[957,0,957,61],[953,0,953,61],[954,3,954,13],[954,14,954,20],[954,21,954,24],[954,25,954,33],[954,34,954,41],[954,42,954,49],[954,50,954,56],[954,57,954,61],[955,3,955,13],[955,14,955,20],[955,21,955,24],[955,25,955,33],[955,34,955,41],[955,42,955,49],[955,50,955,56],[955,57,955,61],[949,0,949,61],[950,3,950,13],[950,14,950,20],[950,21,950,24],[950,25,950,33],[950,34,950,41],[950,42,950,49],[950,50,950,56],[950,57,950,61],[951,3,951,13],[951,14,951,20],[951,21,951,24],[951,25,951,33],[951,34,951,41],[951,42,951,49],[951,50,951,56],[951,57,951,61],[945,0,945,61],[946,3,946,13],[946,14,946,20],[946,21,946,24],[946,25,946,33],[946,34,946,41],[946,42,946,49],[946,50,946,56],[946,57,946,61],[947,3,947,13],[947,14,947,20],[947,21,947,24],[947,25,947,33],[947,34,947,41],[947,42,947,49],[947,50,947,56],[947,57,947,61],[940,0,940,2],[940,3,940,13],[940,14,940,20],[940,21,940,24],[940,25,940,33],[940,34,940,41],[940,42,940,49],[940,50,940,56],[940,57,940,61],[941,0,941,61],[942,0,942,61],[943,0,943,61],[944,0,944,2],[944,3,944,13],[944,14,944,20],[944,21,944,24],[944,25,944,33],[944,34,944,41],[944,42,944,49],[944,50,944,56],[944,57,944,61],[937,0,937,2],[937,3,937,13],[937,14,937,20],[937,21,937,24],[937,25,937,33],[937,34,937,41],[937,42,937,49],[937,50,937,56],[937,57,937,61],[938,0,938,61],[939,0,939,2],[939,3,939,13],[939,14,939,20],[939,21,939,24],[939,25,939,33],[939,34,939,41],[939,42,939,49],[939,50,939,56],[939,57,939,61],[934,0,934,2],[934,3,934,13],[934,14,934,20],[934,21,934,24],[934,25,934,33],[934,34,934,41],[934,42,934,49],[934,50,934,56],[934,57,934,61],[935,0,935,61],[936,0,936,2],[936,3,936,13],[936,14,936,20],[936,21,936,24],[936,25,936,33],[936,34,936,41],[936,42,936,49],[936,50,936,56],[936,57,936,61],[932,0,932,2],[932,3,932,13],[932,14,932,20],[932,21,932,24],[932,25,932,33],[932,34,932,41],[932,42,932,49],[932,50,932,56],[932,57,932,61],[933,0,933,2],[933,3,933,13],[933,14,933,20],[933,21,933,24],[933,25,933,33],[933,34,933,41],[933,42,933,49],[933,50,933,56],[933,57,933,61],[928,0,928,2],[928,3,928,13],[928,14,928,20],[928,21,928,24],[928,25,928,33],[928,34,928,41],[928,42,928,49],[928,50,928,56],[928,57,928,61],[929,1,929,61],[930,0,930,60],[931,0,931,2],[931,3,931,13],[931,14,931,20],[931,21,931,24],[931,25,931,33],[931,34,931,41],[931,42,931,49],[931,50,931,56],[931,57,931,61],[925,0,925,2],[925,3,925,13],[925,14,925,20],[925,21,925,24],[925,25,925,33],[925,34,925,41],[925,42,925,49],[925,50,925,56],[925,57,925,61],[926,0,926,61],[927,0,927,2],[927,3,927,13],[927,14,927,20],[927,21,927,24],[927,25,927,33],[927,34,927,41],[927,42,927,49],[927,50,927,56],[927,57,927,61],[920,0,920,61],[923,0,923,61],[924,0,924,2],[924,3,924,13],[924,14,924,20],[924,21,924,24],[924,25,924,33],[924,34,924,41],[924,42,924,49],[924,50,924,56],[924,57,924,61],[921,0,921,2],[921,3,921,13],[921,14,921,20],[921,21,921,24],[921,25,921,33],[921,34,921,41],[921,42,921,49],[921,50,921,56],[921,57,921,61],[922,0,922,2],[922,3,922,13],[922,14,922,20],[922,21,922,24],[922,25,922,33],[922,34,922,41],[922,42,922,49],[922,50,922,56],[922,57,922,61],[917,1,917,60],[918,0,918,61],[910,0,910,61],[919,0,919,2],[919,3,919,13],[919,14,919,20],[919,21,919,24],[919,25,919,33],[919,34,919,41],[919,42,919,49],[919,50,919,56],[919,57,919,61],[912,0,912,2],[912,3,912,13],[912,14,912,20],[912,25,912,33],[912,34,912,41],[912,42,912,49],[912,50,912,56],[913,0,913,2],[914,0,914,2],[913,3,913,13],[914,3,914,13],[913,14,913,20],[913,57,913,61],[904,21,904,24],[904,25,904,28],[904,29,904,33],[904,34,904,37],[904,38,904,41],[904,42,904,45],[904,46,904,49],[904,50,904,53],[904,54,904,56],[904,57,904,61],[905,0,905,1],[905,2,905,12],[913,25,913,33],[914,25,914,33],[913,34,913,41],[914,34,914,41],[914,42,914,49],[913,42,913,49],[913,50,913,56],[914,50,914,56],[909,1,909,30],[903,13,903,15],[903,16,903,18],[903,19,903,20],[904,13,904,15],[904,16,904,18],[904,19,904,20],[905,13,905,15],[905,16,905,18],[905,19,905,20],[911,0,911,2],[911,3,911,13],[911,14,911,20],[911,25,911,33],[911,34,911,41],[911,42,911,49],[911,50,911,56],[898,0,898,61],[899,0,899,61],[900,0,900,61],[902,0,902,1],[902,2,902,12],[902,13,902,20],[902,21,902,28],[902,29,902,40],[902,42,902,53],[902,54,902,61],[901,0,901,1],[901,2,901,12],[901,13,901,15],[901,16,901,18],[901,19,901,20],[901,21,901,23],[901,24,901,26],[901,27,901,28],[901,29,901,31],[901,32,901,35],[901,36,901,41],[901,54,901,61],[901,42,901,45],[901,46,901,49],[901,50,901,53],[897,32,897,35],[897,36,897,41],[894,54,894,61],[895,54,895,61],[896,54,896,61],[897,54,897,61],[894,13,894,15],[894,16,894,18],[894,19,894,20],[895,13,895,15],[895,16,895,18],[895,19,895,20],[896,13,896,15],[896,16,896,18],[896,19,896,20],[897,13,897,15],[897,16,897,18],[897,19,897,20],[894,21,894,23],[894,24,894,26],[894,27,894,28],[895,21,895,23],[895,24,895,26],[895,27,895,28],[896,21,896,23],[896,24,896,26],[896,27,896,28],[897,21,897,23],[897,24,897,26],[897,27,897,28],[897,29,897,31],[893,21,893,28],[892,21,892,23],[892,24,892,26],[892,27,892,28],[892,29,892,31],[892,32,892,35],[893,29,893,40],[892,54,892,61],[893,54,893,61],[892,46,892,49],[892,42,892,45],[892,36,892,41],[893,42,893,53],[896,50,896,53],[896,46,896,49],[895,46,895,49],[894,50,894,53],[894,46,894,49],[895,50,895,53],[894,29,894,31],[894,32,894,35],[894,36,894,41],[895,29,895,31],[895,32,895,35],[895,36,895,41],[896,29,896,31],[896,32,896,35],[896,36,896,41],[886,29,886,37],[886,38,886,45],[886,54,886,61],[888,0,888,61],[889,1,889,60],[890,0,890,60],[891,0,891,61],[887,0,887,61],[892,13,892,15],[892,16,892,18],[892,19,892,20],[884,0,884,1],[884,2,884,12],[885,0,885,1],[885,2,885,12],[884,13,884,20],[885,13,885,20],[886,0,886,1],[886,2,886,12],[886,13,886,20],[892,0,892,1],[892,2,892,12],[892,50,892,53],[886,50,886,53],[886,46,886,49],[885,50,885,53],[885,46,885,49],[884,50,884,53],[884,46,884,49],[884,38,884,45],[884,54,884,61],[885,21,885,28],[893,13,893,20],[877,21,877,28],[878,21,878,28],[879,21,879,28],[880,21,880,28],[881,21,881,28],[877,29,877,37],[878,29,878,37],[877,38,877,45],[877,54,877,61],[878,38,878,45],[878,54,878,61],[882,21,882,28],[879,29,879,37],[880,29,880,37],[881,29,881,37],[882,29,882,37],[884,29,884,37],[885,29,885,37],[883,0,883,59],[879,38,879,45],[880,38,880,45],[881,38,881,45],[882,38,882,45],[879,54,879,61],[880,54,880,61],[881,50,881,53],[881,46,881,49],[880,50,880,53],[880,46,880,49],[879,50,879,53],[879,46,879,49],[802,4,802,41],[808,42,808,50],[808,51,808,60],[802,42,802,50],[802,51,802,60],[818,4,818,41],[818,42,818,50],[818,51,818,60],[796,51,796,60],[787,42,787,60],[788,42,788,50],[788,51,788,60],[787,0,787,41],[788,0,788,41],[807,51,807,60],[806,0,806,3],[811,51,811,60],[814,4,814,41],[814,42,814,50],[814,51,814,60],[812,0,812,3],[812,4,812,41],[812,42,812,50],[812,51,812,60],[813,42,813,50],[813,51,813,60],[885,38,885,45],[885,54,885,61],[886,21,886,28],[776,4,776,41],[776,42,776,50],[776,51,776,60],[777,0,777,3],[777,4,777,41],[777,42,777,50],[777,51,777,60],[778,0,778,3],[884,21,884,28],[119,1,124,60],[897,50,897,53],[897,46,897,49],[897,42,897,45],[896,42,896,45],[895,42,895,45],[894,42,894,45],[783,0,783,44],[770,42,770,50],[770,51,770,60],[771,0,771,3],[771,4,771,41],[771,42,771,50],[771,51,771,60],[772,0,772,3],[772,4,772,41],[772,42,772,50],[772,51,772,60],[773,0,773,3],[773,4,773,41],[94,39,94,41],[106,5,106,55],[108,2,108,35],[110,4,110,42],[112,4,112,17],[112,22,112,41],[114,2,114,52],[116,6,117,59],[779,0,779,3],[779,4,779,41],[779,42,779,50],[779,51,779,60],[780,0,780,3],[780,4,780,41],[780,42,780,60],[774,0,774,3],[774,4,774,41],[774,42,774,50],[774,51,774,60],[775,0,775,3],[778,4,778,41],[778,42,778,50],[778,51,778,60],[769,0,769,3],[769,4,769,41],[769,42,769,50],[769,51,769,60],[775,4,775,41],[775,42,775,50],[775,51,775,60],[770,0,770,3],[770,4,770,41],[776,0,776,3],[762,0,762,41],[762,42,762,60],[763,0,763,3],[763,4,763,41],[763,42,763,50],[763,51,763,60],[764,0,764,60],[765,0,765,3],[765,4,765,41],[765,42,765,50],[765,51,765,60],[766,0,766,60],[767,0,767,3],[767,4,767,41],[767,42,767,50],[767,51,767,60],[768,0,768,3],[768,4,768,41],[768,42,768,50],[768,51,768,60],[773,42,773,50],[773,51,773,60],[757,0,757,3],[757,4,757,41],[757,42,757,50],[757,51,757,60],[758,0,758,3],[758,4,758,41],[758,42,758,50],[758,51,758,60],[759,0,759,3],[759,4,759,41],[759,42,759,50],[759,51,759,60],[760,0,760,3],[760,4,760,41],[760,42,760,50],[760,51,760,60],[761,0,761,3],[761,4,761,41],[761,42,761,50],[761,51,761,60],[752,0,752,3],[752,4,752,41],[752,42,752,50],[752,51,752,60],[753,0,753,3],[753,4,753,41],[753,42,753,50],[753,51,753,60],[754,0,754,3],[754,4,754,41],[754,42,754,50],[754,51,754,60],[755,0,755,3],[755,4,755,41],[755,42,755,50],[755,51,755,60],[756,0,756,3],[756,4,756,41],[756,42,756,50],[756,51,756,60],[742,7,742,41],[742,42,743,60],[743,7,743,41],[744,7,744,41],[744,42,744,50],[744,51,744,60],[745,7,745,60],[746,0,746,60],[747,0,747,60],[748,0,748,60],[749,0,749,60],[750,0,750,3],[750,4,750,41],[750,42,750,50],[750,51,750,60],[751,0,751,3],[751,4,751,41],[751,42,751,50],[751,51,751,60],[729,0,729,3],[729,4,729,41],[729,42,729,50],[729,51,729,60],[730,0,730,3],[730,4,730,41],[730,42,730,50],[730,51,730,60],[731,0,731,41],[731,42,731,50],[731,51,731,60],[732,0,732,41],[732,42,732,50],[732,51,732,60],[733,0,733,41],[733,42,733,60],[737,0,737,43],[724,0,724,3],[724,4,724,41],[724,42,724,50],[724,51,724,60],[725,0,725,60],[726,0,726,3],[726,4,726,41],[726,42,726,50],[726,51,726,60],[727,0,727,3],[727,4,727,41],[727,42,727,50],[727,51,727,60],[728,0,728,3],[728,4,728,41],[728,42,728,50],[728,51,728,60],[719,0,719,3],[719,4,719,41],[719,42,719,50],[719,51,719,60],[720,0,720,3],[720,4,720,41],[720,42,720,50],[720,51,720,60],[721,0,721,3],[721,4,721,41],[721,42,721,50],[721,51,721,60],[722,0,722,60],[723,0,723,3],[723,4,723,41],[723,42,723,50],[723,51,723,60],[714,0,714,3],[714,4,714,41],[714,42,714,50],[714,51,714,60],[715,0,715,41],[715,42,715,50],[715,51,715,60],[716,0,716,3],[716,4,716,41],[716,42,716,50],[716,51,716,60]],"merged_total":4363,"flags":["merged_cut"]}
[null,null,null,null,null,null,"MINISTERUL AGRICULTURII ŞI DEZVOLTĂRII RURALE",null,null,null,null,null,null,null,null,null,null,null,null,null,null,null,null,null,null,null,null,null,null,null,null,null,null,null,null,null,null,null,null,null,null,null,null,null,null,null,null,null,null,null,null,null,null,null,null,null,null,null,null,null,null,5]
[null,null,null,null,null,null,"AGENŢIA PENTRU FINANŢAREA INVESTIŢIILOR RURALE",null,null,null,null,null,null,null,null,null,null,null,null,null,null,null,null,null,null,null,null,null,null,null,null,null,null,null,null,null,null,null,null,null,null,null,null,null,null,null,null,null,null,null,null,null,null,null,null,null,null,null,null,null,null,3]
[null,null,null,null,null,null,null,null,null,null,"GAL MICROREGIUNEA VALEA SAMBETEI",null,null,null,null,null,null,null,null,null,null,null,null,null,null,null,null,null,null,null,null,null,null,null,null,null,null,null,null,null,null,null,"VERSIUNEA 2/2019",null,null,null,null,null,null,null,null,null,null,null,null,null,null,null,null,null,null,1]
[null,null,null,null,null,null,null,"M2/2A Investiții în exploatații pomicole în teritoriul GAL-MVS",null,null,null,null,null,null,null,null,null,null,null,null,null,null,null,null,null,null,null,null,null,null,null,null,null,null,null,null,null,null,null,null,null,null,"SECŢIUNE GENERALĂ",null,null,null,null,null,null,null,null,null,null,null,null,null,null,null,null,null,null,1]
[null,null,null,null,null,null,null,null,null,null,null,null,null,null,null,null,null,null,null,null,null,null,null,null,null,null,null,null,null,null,null,null,null,null,null,null,null,null,null,null,null,null,null,null,null,null,null,null,null,null,null,null,null,null,null,null,null,null,null,null,null,5]
["DATE DE ÎNREGISTRARE",null,null,null,null,null,null,null,null,null,null,null,null,null,null,null,null,null,null,null,null,null,null,null,null,null,null,null,null,null,null,null,null,null,null,null,"NUME ŞI PRENUME DIRECTOR OJFIR/",null,null,null,null,null,null,null,null,null,null,null,null,null,null,null,null,null,null,null,null,null,null,null,null,5]
[null,null,null,null,null,null,null,null,null,null,null,null,null,null,null,null,null,null,null,null,null,null,null,null,null,null,null,null,null,null,null,null,null,null,null,null,"DIRECTOR GENERAL ADJUNCT CRFIR"]
["Se completează de către Agenția pentru Finanțarea Investițiilor Rurale - Oficiul"]
["Judeţean/ Centrul Regional - Programul FEADR pentru cereri de finanţare"]
[null,null,null,null,null,null,null,null,null,null,null,null,null,null,null,null,null,null,null,null,null,null,null,null,null,null,null,null,null,null,null,null,null,null,null,null,"Semnătura Director OJFIR/Director General Adjunct CRFIR"]
["OJFIR/CRFIR"]
[null,null,null,null,null,null,null,null,null,null,null,null,null,null,null,null,null,null,null,null,null,null,null,null,null,null,null,null,null,null,null,null,null,null,null,null,"Ştampila CRFIR"]
["Număr "]
["înregistrare"]
[]
[]
[]
[]
["Data Înregistrării"]
["Numele şi prenumele persoanei care înregistrează"]
["Semnătura:"]
["Data primirii cererii de finanţare la contractare:"]
["Se completează de către solicitant"]
["A PREZENTARE GENERALĂ"]
[]
[null,"A1 Măsura:",null,null,null,null,null,null,null,null,"      Sub-măsura 19.2"]
[null,null,null,null,null,null,null,null,null,null,"             M2/2A Investiții în exploatații pomicole în teritoriul GAL-MVS"]
[]
[null,"A2 Nume prenume / Denumire solicitant:"]
[]
[null,"A3 Titlu proiect:"]
[]
[]
[]
[]
[null,"A4 Descrierea succintă a proiectului:"]
[]
[]
[]
[]
[null,"Denumire consultant"]
[null,null,null,null,null,null,null,null,null,null,null,null,null,null,null,null,null,null,null,null,null,null,null,null,null,null,null,"CUI"]
[null,null,null,null,null,null,null,null,null,null,null,null,null,null,null,null,null,null,null,null,null,null,null,null,null,null,null,"Nr inreg ONRC"]
[null,"Denumire Proiectant"]
[null,null,null,null,null,null,null,null,null,null,null,null,null,null,null,null,null,null,null,null,null,null,null,null,null,null,null,"CUI"]
[null,null,null,null,null,null,null,null,null,null,null,null,null,null,null,null,null,null,null,null,null,null,null,null,null,null,null,"Nr inreg ONRC"]
[]
[null,null,"A5 Amplasarea proiectului:"]
[]
["Regiunea de dezvoltare:",null,null,null,null,null,null,null,null,null,null,null,null,null,null,null,null,null,null,null,null,null,null,null,null,null,null,"Judeţ:"]
[]
[null,"Obiectivele investiţiei",null,null,null,null,null,null,null,null,null,null,null,null,null,"Judeţ",null,null,null,null,null,null,null,null,null,null,null,"Comună/Oraş",null,null,null,null,null,null,null,null,null,null,null,"Sat/Sector",null,null,null,null,null,null,null,null,null,null,"Sat/Sector"]
[]
[]
[]
[]
[]
[]
[]
[]
[]
[]
[]
[]
[]
[]
[]
[]
[]
[]
[]
[]
[]
[]
[]
[]
[]
[]
[]
[]
[]
[]
[]
[]
[]
[]
[]
[]
[]
[]
[]
[]
[null,"A6 Date despre tipul de proiect şi beneficiar:"]
[]
[null,"A 6.1",null,null,null,null,"Proiect cu construcţii-montaj si/sau infiintare plantatie pomicola",null,null,null,null,null,null,null,null,null,null,null,null,null,null,null,null,null,null,null,null,null,null,null,null,null,null,null,null,null,null,null,null,"A 6.3",null,null,null,null,null,"Beneficiar public"]
[null,null,null,null,null,null,"Proiect fără construcţii-montaj",null,null,null,null,null,null,null,null,null,null,null,null,null,null,null,null,null,null,null,null,null,null,null,null,null,null,null,null,null,null,null,null,null,null,null,null,null,null,"Beneficiar privat"]
[]
[null,"A 6.2",null,null,null,null,"Modernizare şi/sau Extindere",null,null,null,null,null,null,null,null,null,null,null,null,null,null,null,"A 6.4",null,null,"Prescorare"]
[null,null,null,null,null,null,"Investiţie nouă"]
[]
[]
[]
[null,null,null,null,null,"A 6.5 Proiectul necesită:"]
[]
[null,null,null,null,null,null,null,null,null,null,null,null,null,"Proiect tehnic",null,null,null,null,null,null,null,null,null,"Acord de mediu",null,null,null,null,null,null,null,null,null,null,null,null,"Aviz Natura2000"]
[]
[null,null,null,null,null,"Bugete indicative si anexe conform HG907/2016"]
[]
[null,null,"A 6.6 Sector finanțare:"]
[]
[null,null,null,null,"Obținere material de înmulțire și material de plantare fructifer (pepiniere)"]
[]
[null,null,null,null,"Exploataţii pomicole",null,null,null,null,null,null,null,null,null,null,null,null,null,null,null,null,null,"Zona ITI Delta Dunării"]
[]
[null,null,"A 6.7"]
[]
[null,null,null,null,null,null,"Investiţii evaluate pe baza costurilor standard şi contribuție în natură realizate după depunerea cererii de finanţare,\ndar înainte de semnarea contractului de finantare. Se vor detalia operaţiunile ce urmează a fi efectuate."]
[]
[]
[]
[]
[]
[]
[]
[]
[null,"Detaliere criterii de selecţie îndeplinite"]
[]
[]
[]
[]
[]
[]
[]
[]
[]
[]
[]
[null,"A7",null,null,null,"Date necesare obtinerii extrasului de carte funciara pentru imobilul(cladirisi/sau terenuri) pe care sunt/vor fi realizate investitiile, pentru Cererile de Finantare care vizeaza investitii in lucrari privind contructii noi sau modernizari constructii.(daca este cazul, se va adauga cate o linie pentru fiecare extras de carte funciara necesar)."]
[null,null,null,null,null,null,null,null,null,null,null,"Judet/Mun. Bucuresti ",null,null,null,null,null,null,null,null,null,null,null,null,null,null,null,null,null,"Unitatea Administrativ Teritoriala (UAT : Oras/Comuna/Sector)"]
[]
[]
[]
[null,null,null,null,null,null,null,"Identificaror Electronic",null,null,null,null,null,null,null,null,null,null,null,null,null,"Nr carte funciara",null,null,null,null,null,null,null,null,null,null,null,"Nr cadastral",null,null,null,null,null,null,null,null,null,null,null,null,null,"Nr topografic"]
[]
[]
[null,null,null,null,null,null,"Observatii"]
[]
["B INFORMAŢII PRIVIND SOLICITANTUL"]
["B1 Descrierea solicitantului"]
["B1.1 Informaţii privind solicitantul"]
[null,"Data înființării / Data de naştere",null,null,null,null,null,null,null,null,null,null,null,null,null,null,null,null,null,"Cod Unic de Înregistrare și/sau Codul de",null,null,null,null,null,null,null,null,null,null,null,null,null,null,null,null,null,null,null,null,null,null,null,"Statut juridic al solicitantului"]
[null,null,null,null,null,null,null,null,null,null,null,null,null,null,null,null,null,null,null,"Înregistrare Fiscală"]
[]
[]
[null,"Număr de înregistrare în registrul comerțului / Registrul asociaţiilor şi fundaţiilor"]
[]
[null,"Codul CAEN al activităţii/activităţilor finanţate prin proiect:"]
[]
[]
[]
[null,"Codul unic de înregistrare APIA",null,null,null,null,null,null,null,null,null,null,null,null,null,null,null,null,null,null,null,null,null,null,null,null,null,null,null,null,null,null,null,null,null,null,"Anul atribuirii codului"]
[]
[]
[null,"B1.2 Sediul social / Domiciliul stabil al solicitantului / Reşedinţa din România"]
[null,"Judeţ",null,null,null,null,null,null,null,null,null,null,null,null,null,null,null,null,null,null,null,null,"Localitate",null,null,null,null,null,null,null,null,null,null,null,null,null,null,null,null,null,null,null,"Sat"]
[]
[null,"Cod Poştal",null,null,null,null,null,null,null,null,null,null,null,null,null,"Strada",null,null,null,null,null,null,null,null,null,null,null,null,null,null,null,null,null,null,null,null,null,null,null,null,null,null,null,null,null,null,null,null,null,null,null,null,"Nr."]
[]
[null,"Bloc",null,null,null,null,null,null,null,null,null,null,null,null,null,null,null,"Scara",null,null,null,null,null,null,null,null,null,null,null,null,null,null,"Et. ",null,null,null,null,null,null,"Ap.",null,null,null,null,null,null,"Sector"]
[]
[null,"Telefon fix/ mobil",null,null,null,null,null,null,null,null,null,null,null,null,null,null,null,null,null,null,"Fax",null,null,null,null,null,null,null,null,null,null,null,null,null,null,null,"E-mail"]
[]
[]
[null,"B1.3 Numele şi prenumele reprezentantului legal şi funcţia acestuia în cadrul organizaţiei, precum şi"]
[null,"specimenul de semnatură:"]
[]
[null,null,null,"Numele",null,null,null,null,null,null,null,null,null,null,"Prenumele",null,null,null,null,null,null,null,null,null,null,"Funcţia",null,null,null,null,null,null,null,null,null,null,"Reprezentant legal",null,null,null,null,null,null,null,null,null,null,"Specimen de"]
[null,null,null,null,null,null,null,null,null,null,null,null,null,null,null,null,null,null,null,null,null,null,null,null,null,null,null,null,null,null,null,null,null,null,null,null,null,null,null,null,null,null,null,null,null,null,null,"semnătură"]
[]
[null,null,null,null,null,null,null,null,null,null,null,null,null,null,null,null,null,null,null,null,null,null,null,null,null,null,null,null,null,null,null,null,null,null,null,null,"LEGAL"]
[]
[]
["B2 Informaţii referitoare la reprezentantul legal de proiect"]
[null,"B2.1 Date de identitate ale reprezentantului legal de proiect"]
[]
[null,null,null,"Data naşterii",null,null,null,null,null,null,null,null,null,null,null,null,null,null,null,null,null,null,null,null,"Cod numeric personal"]
[]
[]
[]
[]
[null,null,null,null,"Act de identitate",null,null,null,null,null,null,null,null,null,null,null,null,null,"Seria",null,null,"Nr.",null,null,null,null,null,null,"Eliberat la data de",null,null,null,null,null,null,null,null,"de:",null,null,null,null,null,null,null,null,null,null,null,null,null,"Valabil până la:"]
[null,null,null,null,"B.I.",null,null,"C.I.",null,null,"Paşaport"]
[]
[]
[]
[null,null,null,"Studii şi coordonate:"]
[]
[]
[]
[]
[]
[]
[]
[]
[]
[]
[]
[]
[null,"B2.2 Domiciliul stabil al reprezentantului legal de proiect"]
[null,"Judeţ",null,null,null,null,null,null,null,null,null,null,null,null,null,null,null,null,null,null,null,null,"Localitate",null,null,null,null,null,null,null,null,null,null,null,null,null,null,null,null,null,null,null,"Sat"]
[]
[null,"Cod Poştal",null,null,null,null,null,null,null,null,null,null,"Strada",null,null,null,null,null,null,null,null,null,null,null,null,null,null,null,null,null,"Nr.",null,null,null,null,null,"Bloc",null,null,null,null,null,null,null,null,null,null,null,"Scara",null,null,null,null,null,"Ap."]
[]
[null,"Telefon fix",null,null,null,null,null,null,null,null,null,null,null,null,null,null,null,null,null,null,"Telefon mobil",null,null,null,null,null,null,null,null,null,null,null,null,null,null,null,null,null,"Fax"]
[]
[null,"E-mail"]
[]
[]
["B3 Informaţii privind contul bancar pentru proiect F.E.A.D.R."]
[]
[null,null,"B3.1 Denumirea Băncii",null,null,null,null,null,null,null,null,null,null,null,null,null,null,null,null,null,null,null,null,null,null,null,null,null,null,null,null,"Denumirea Sucursalei/Filialei"]
[]
[]
[null,null,"B3.2 Adresa Băncii/Sucursalei"]
[]
[]
[null,null,"B3.3 Cod IBAN",null,null,null,null,null,null,null,null,null,null,null,null,null,null,null,null,null,null,null,null,null,null,null,null,null,null,null,null,"B3.4 Titularul contului bancar"]
[]
[]
["REGULI DE COMPLETARE\nSolicitantul are posibilitatea să opteze pentru Buget indicativ şi anexe conform HG 907/2016, prin bifarea check-box-ului\ncorespunzător din câmpul A6 sau pentru Buget indicativ şi anexe conform HG 28/2008, prin nebifarea check-box.\nCompletaţi devizele aferente capitolelor de cheltuieli, defalcat pe cheltuieli eligibile şi neeligibile prin completarea tabelelor\nincluse în acest document, respectiv:\n1. Tabelul \"Deviz financiar_cap3\" cuprinde cheltuielile aferente capitolului 3 - Cheltuieli pentru proiectare şi asistenţă tehnică,\ncheltuieli care trebuie să se regăseasca atât în Bugetul Indicativ (Tabel \"Buget indicativ\" din cererea de finanţare, partea\nspecifică) cât şi în Devizul General din Studiul de Fezabilitate\n2. Tabelul \"Devize obiect\" cuprinde formatul cadru al devizului pe obiect, iar solicitantul va completa atâtea devize pe obiect\ncâte obiecte de investiţie sunt incluse în proiect. Suma tuturor devizelor pe obiect trebuie să se regăsească atât în Bugetul\nIndicativ (tabelul \"Buget indicativ\" din cererea de finanţare, partea specifică) cât şi în Devizul General din Studiul de\nFezabilitate.\nÎn cazul în care proiectul de investiţii presupune mai multe devize pe obiect, solicitantul va crea în documentul curent câte o\ncopie a tabelului \"Devize obiect\" pentru fiecare deviz pe obiect şi va detalia cheltuielile eligibile şi neeligibile pe fiecare în\nparte.\n3. Tabelul \"cap.2+cap.5\" cuprinde cheltuieli aferente capitolelor 2 şi 5 şi trebuie să se regăsească atât în Bugetul Indicativ\n(tabel \"Buget indicativ\" din cererea de finanţare, partea specifică) cât şi Devizul General din Studiul de Fezabilitate.\n4. Tabelul \"Deviz culturi\" cuprinde devizele aferente tuturor tipurilor de culturi, plantaţii, vizate de proiect.\n5. Câmpul \"Prescorare\" de la secţiunea A6 este obligatoriu.\n6. În cazul înfiinţării şi/sau reconversiei plantaţiilor pomicole se va completa Deviz pe obiect specific, conform Fişei privind\ncosturile standard și contribuția în natură prezentă în cererea de finanțare și în fișa submăsurii în secțiunea ,,Sume aplicabile\nși rate de sprijin”, cu precizări referitoare la suprafaţa plantaţiei pomicole, densitatea utilizată, specia etc., în vederea calculării\nvalorii totale necesare realizării investiţiei în funcţie de costurile standard și contribuția în natură.\n7. În situaţia în care solicitantul îşi propune realizarea unor cheltuieli după depunerea cererii de finanţare şi înainte de\nsemnarea contractului aceste se vor preciza într-un deviz distinct.\nCOMPLETARE REGULI BUGET AGROMEDIU ART. 28\n8. În cazul art 28 (Agromediu), intensitatea suplimentară se acordă doar pentru contravaloarea utilajelor uşoare și a altor\nasemenea investiţii utilizate în cazul livezilor tradiţionale utilizate extensiv conform Ordinului MADR nr. 619/2015 (Ex: utilaje\nuşoare pentru cositul fânului, împraştiere gunoi de grajd, utilaje pentru transport fân şi gunoi de grajd etc.). Pentru astfel de\ninvestiţii se va completa separat „Bugetul de Agromediu” conform specificaţiilor, precum şi „Planul Financiar” specific,\naplicându-se la final, cheltuielilor eligibile procentul de 20%.\n9. Punctul A6.2 se va completa ţinând cont de următoarele:\nInvestiţie nouă - cuprinde lucrările de construcţii-montaj, utilaje, instalaţii, care se realizează pe amplasamente noi, lucrările\npentru construcţiile existente cărora li se schimbă destinaţia nefuncţionale/dezafectate\nModernizarea - cuprinde lucrările de construcţii şi instalaţii privind retehnologizarea, reutilarea şi refacerea sau extinderea\nconstrucţiilor existente aferente unităţilor în funcţiune şi cu autorizaţii de funcţionare valabile, fără modificarea destinaţiei\niniţiale, inclusiv utilarea/reutilarea cu maşini, utilaje şi echipamente necesare unei exploataţii agricole pentru producţia\nagricolă primară şi, după caz, pentru procesare la nivel de fermă.\n10. NOU - A6.7 Dacă se alege opțiunea “Semnatură electronică” reprezentantul legal va trebui să aplice semnătura\nelectronică în caseta dedicată din declarația F.\nÎn acest caz, specimenul de semnătură din secțiunea B1.3 și semnătura din formularul de înscriere în Registrul unic de\nidentificare (dacă e cazul), nu mai sunt necesare.\n11. NOU – Secțiunea A7: Pentru imobilul (clădiri şi/sau terenuri) pe care sunt/vor fi realizate investiţiile, pentru Cererile de\nFinanţare care vizează investiţii în lucrări privind construcţiile noi sau modernizări ale construcțiilor existente, cu lucrările de\ncadastru finalizate, se va completa secțiunea A7 din CF, cu informațiile cadastrale necesare obținerii de către AFIR a\nextrasului de carte funciară de la ANCPI.\nSe vor completa obligatoriu următoarele informații :Județ, UAT cât și următoarele date de identificare:\nIdentificator electronic\nsau:\nNr carte funciară și Nr cadastral\nsau\nNr carte funciară și Nr topografic.\nDacă este cazul, se va adăuga câte o linie pentru fiecare extras de carte funciară necesar.\n12. Trebuie bifate şi anexate toate documentele de pe coloana “DEPUNERE-Obligatoriu pentru toate proiectele” din\nsecțiunea E - Lista documentelor anexate.\nÎn coloana Nr. Pagini document, se va completa numărul paginilor aferente documentului anexat.\n(tip PDF: scanat sau semnat electronic, utilizând o semnatură electronică validă.)\n13. Fereastra cu mesajele de avertizare (dacă este cazul apare la închiderea formularului) se poate închide şi\napăsând tasta ENTER."]
[]
[]
[]
[]
[]
[]
[]
[]
[]
[]
[]
[]
[]
[]
[]
[]
[]
[]
[]
[]
[]
[]
[]
[]
[]
[]
[]
[]
[]
[]
[]
[]
[]
[]
[]
[]
[]
[]
[]
[]
[]
[]
[]
[]
[]
[]
[]
[]
[]
[]
[]
[null,"Buget Indicativ HG 907 (Euro) pentru INVESTIŢII în activitatea de producţie "]
["MINISTERUL AGRICULTURII ŞI DEZVOLTĂRII RURALE"]
["AGENŢIA PENTRU FINANŢAREA INVESTIŢIILOR RURALE"]
[]
[]
[null,"Procentul aferent intensităţii",null,null,null,null,null,null,null,null,null,null,null,null,null,null,null,null,null,"Curs EURO",null,null,null,null,null,null,null,null,null,null,null,null,null,null,null,"Data întocmirii Studiului de Fezabilitate"]
[]
["Submăsura",null,null,null,null,null,null,null,null,null,null,null,null,null,null,null,null,null,null,null,null,null,null,null,null,null,null,null,null,null,null,null,null,null,null,"M2/2A"]
["Denumirea capitolelor de cheltuieli",null,null,null,null,null,null,null,null,null,null,null,null,null,null,null,null,null,null,null,null,null,null,null,null,null,null,null,null,null,null,null,null,null,null,"Cheltuieli eligibile",null,null,null,null,null,null,null,null,"Cheltuieli neeligibile",null,null,null,null,null,null,null,"Total"]
[null,null,null,null,null,null,null,null,null,null,null,null,null,null,null,null,null,null,null,null,null,null,null,null,null,null,null,null,null,null,null,null,null,null,null,"EURO",null,null,null,null,null,null,null,null,"EURO",null,null,null,null,null,null,null,"EURO"]
[1,null,null,null,null,null,null,null,null,null,null,null,null,null,null,null,null,null,null,null,null,null,null,null,null,null,null,null,null,null,null,null,null,null,null,2,null,null,null,null,null,null,null,null,3,null,null,null,null,null,null,null,4]
["Capitolul 1 Cheltuieli pentru obtinerea şi amenajarea terenului - total, din care:",null,null,null,null,null,null,null,null,null,null,null,null,null,null,null,null,null,null,null,null,null,null,null,null,null,null,null,null,null,null,null,null,null,null,{"$f":"SUM(AJ295:AR297)","v":0},null,null,null,null,null,null,null,null,{"$f":"SUM(AS294:AZ297)","v":0},null,null,null,null,null,null,null,{"$f":"SUM(AJ293:AZ293)","v":0}]
["1.1 Obţinerea terenului",null,null,null,null,null,null,null,null,null,null,null,null,null,null,null,null,null,null,null,null,null,null,null,null,null,null,null,null,null,null,null,null,null,null,null,null,null,null,null,null,null,null,null,null,null,null,null,null,null,null,null,{"$f":"SUM(AJ294:AZ294)","v":0}]
["1.2 Amenajarea terenului",null,null,null,null,null,null,null,null,null,null,null,null,null,null,null,null,null,null,null,null,null,null,null,null,null,null,null,null,null,null,null,null,null,null,null,null,null,null,null,null,null,null,null,null,null,null,null,null,null,null,null,0]
["1.3 Amenajari pentru protecţia mediului şi aducerea la starea iniţială",null,null,null,null,null,null,null,null,null,null,null,null,null,null,null,null,null,null,null,null,null,null,null,null,null,null,null,null,null,null,null,null,null,null,null,null,null,null,null,null,null,null,null,null,null,null,null,null,null,null,null,0]
["1.4 Cheltuieli pentru relocarea/protecţia utilităţilor",null,null,null,null,null,null,null,null,null,null,null,null,null,null,null,null,null,null,null,null,null,null,null,null,null,null,null,null,null,null,null,null,null,null,null,null,null,null,null,null,null,null,null,null,null,null,null,null,null,null,null,0]
["Capitolul 2 Cheltuieli pentru asigurarea utilităţilor necesare obiectivului de investiţii",null,null,null,null,null,null,null,null,null,null,null,null,null,null,null,null,null,null,null,null,null,null,null,null,null,null,null,null,null,null,null,null,null,null,null,null,null,null,null,null,null,null,null,null,null,null,null,null,null,null,null,0]
["Capitolul 3 Cheltuieli pentru proiectare şi asistenţă tehnică - total, din care:",null,null,null,null,null,null,null,null,null,null,null,null,null,null,null,null,null,null,null,null,null,null,null,null,null,null,null,null,null,null,null,null,null,null,{"$f":"AJ300+AJ304+AJ305+AJ306+AJ307+AJ315+AJ318","v":0},null,null,null,null,null,null,null,null,{"$f":"AS300+AS304+AS305+AS306+AS307+AS314+AS315+AS318","v":0},null,null,null,null,null,null,null,0]
["3.1 Studii",null,null,null,null,null,null,null,null,null,null,null,null,null,null,null,null,null,null,null,null,null,null,null,null,null,null,null,null,null,null,null,null,null,null,{"$f":"SUM(AJ301:AR303)","v":0},null,null,null,null,null,null,null,null,{"$f":"SUM(AS301:AZ303)","v":0},null,null,null,null,null,null,null,0]
["       3.1.1 Studii de teren",null,null,null,null,null,null,null,null,null,null,null,null,null,null,null,null,null,null,null,null,null,null,null,null,null,null,null,null,null,null,null,null,null,null,null,null,null,null,null,null,null,null,null,null,null,null,null,null,null,null,null,0]
["       3.1.2 Raport privind impactul asupra mediului",null,null,null,null,null,null,null,null,null,null,null,null,null,null,null,null,null,null,null,null,null,null,null,null,null,null,null,null,null,null,null,null,null,null,null,null,null,null,null,null,null,null,null,null,null,null,null,null,null,null,null,0]
["       3.1.3 Alte studii specifice",null,null,null,null,null,null,null,null,null,null,null,null,null,null,null,null,null,null,null,null,null,null,null,null,null,null,null,null,null,null,null,null,null,null,null,null,null,null,null,null,null,null,null,null,null,null,null,null,null,null,null,0]
["3.2 Documentaţii-suport şi cheltuieli pentru obţinerea de avize, acorduri şi autorizaţii",null,null,null,null,null,null,null,null,null,null,null,null,null,null,null,null,null,null,null,null,null,null,null,null,null,null,null,null,null,null,null,null,null,null,null,null,null,null,null,null,null,null,null,null,null,null,null,null,null,null,null,0]
["3.3 Expertizare tehnică",null,null,null,null,null,null,null,null,null,null,null,null,null,null,null,null,null,null,null,null,null,null,null,null,null,null,null,null,null,null,null,null,null,null,null,null,null,null,null,null,null,null,null,null,null,null,null,null,null,null,null,0]
["3.4 Certificarea performanţei energetice şi auditul energetic al clădirilor",null,null,null,null,null,null,null,null,null,null,null,null,null,null,null,null,null,null,null,null,null,null,null,null,null,null,null,null,null,null,null,null,null,null,null,null,null,null,null,null,null,null,null,null,null,null,null,null,null,null,null,0]
["3.5 Proiectare",null,null,null,null,null,null,null,null,null,null,null,null,null,null,null,null,null,null,null,null,null,null,null,null,null,null,null,null,null,null,null,null,null,null,{"$f":"SUM(AJ308:AR313)","v":0},null,null,null,null,null,null,null,null,{"$f":"SUM(AS308:AZ313)","v":0},null,null,null,null,null,null,null,0]
["      3.5.1 Temă de proiectare",null,null,null,null,null,null,null,null,null,null,null,null,null,null,null,null,null,null,null,null,null,null,null,null,null,null,null,null,null,null,null,null,null,null,null,null,null,null,null,null,null,null,null,null,null,null,null,null,null,null,null,0]
["      3.5.2 Studiu de prefezabilitate",null,null,null,null,null,null,null,null,null,null,null,null,null,null,null,null,null,null,null,null,null,null,null,null,null,null,null,null,null,null,null,null,null,null,null,null,null,null,null,null,null,null,null,null,null,null,null,null,null,null,null,0]
["      3.5.3. Studiu de fezabilitate/documentaţie de avizare a lucrărilor de intervenţii\n                şi deviz general",null,null,null,null,null,null,null,null,null,null,null,null,null,null,null,null,null,null,null,null,null,null,null,null,null,null,null,null,null,null,null,null,null,null,null,null,null,null,null,null,null,null,null,null,null,null,null,null,null,null,null,0]
["      3.5.4. Documentaţiile tehnice necesare în vederea obţinerii avizelor/\n                acordurilor/autorizaţiilor",null,null,null,null,null,null,null,null,null,null,null,null,null,null,null,null,null,null,null,null,null,null,null,null,null,null,null,null,null,null,null,null,null,null,null,null,null,null,null,null,null,null,null,null,null,null,null,null,null,null,null,0]
["      3.5.5. Verificarea tehnică de calitate a proiectului tehnic şi a detaliilor de execuţie",null,null,null,null,null,null,null,null,null,null,null,null,null,null,null,null,null,null,null,null,null,null,null,null,null,null,null,null,null,null,null,null,null,null,null,null,null,null,null,null,null,null,null,null,null,null,null,null,null,null,null,0]
["      3.5.6. Proiect tehnic şi detalii de execuţie",null,null,null,null,null,null,null,null,null,null,null,null,null,null,null,null,null,null,null,null,null,null,null,null,null,null,null,null,null,null,null,null,null,null,null,null,null,null,null,null,null,null,null,null,null,null,null,null,null,null,null,0]
["3.6 Organizarea procedurilor de achiziţie",null,null,null,null,null,null,null,null,null,null,null,null,null,null,null,null,null,null,null,null,null,null,null,null,null,null,null,null,null,null,null,null,null,null,null,null,null,null,null,null,null,null,null,null,null,null,null,null,null,null,null,0]
["3.7 Consultanţă",null,null,null,null,null,null,null,null,null,null,null,null,null,null,null,null,null,null,null,null,null,null,null,null,null,null,null,null,null,null,null,null,null,null,{"$f":"AJ316","v":0},null,null,null,null,null,null,null,null,{"$f":"AS316+AS317","v":0},null,null,null,null,null,null,null,0]
["      3.7.1 Managementul de proiect pentru obiectivul de investiţii",null,null,null,null,null,null,null,null,null,null,null,null,null,null,null,null,null,null,null,null,null,null,null,null,null,null,null,null,null,null,null,null,null,null,null,null,null,null,null,null,null,null,null,null,null,null,null,null,null,null,null,0]
["     3.7.2 Auditul financiar",null,null,null,null,null,null,null,null,null,null,null,null,null,null,null,null,null,null,null,null,null,null,null,null,null,null,null,null,null,null,null,null,null,null,null,null,null,null,null,null,null,null,null,null,null,null,null,null,null,null,null,0]
["3.8 Asistenţă Tehnică",null,null,null,null,null,null,null,null,null,null,null,null,null,null,null,null,null,null,null,null,null,null,null,null,null,null,null,null,null,null,null,null,null,null,{"$f":"AJ319+AS322","v":0},null,null,null,null,null,null,null,null,{"$f":"AS319+AS322","v":0},null,null,null,null,null,null,null,0]
["      3.8.1 Asistenţă Tehnică din partea proiectantului",null,null,null,null,null,null,null,null,null,null,null,null,null,null,null,null,null,null,null,null,null,null,null,null,null,null,null,null,null,null,null,null,null,null,{"$f":"AJ320+AJ321","v":0},null,null,null,null,null,null,null,null,{"$f":"AS320+AS321","v":0},null,null,null,null,null,null,null,0]
["           3.8.1.1 pe perioada de execuţie a lucrărilor",null,null,null,null,null,null,null,null,null,null,null,null,null,null,null,null,null,null,null,null,null,null,null,null,null,null,null,null,null,null,null,null,null,null,null,null,null,null,null,null,null,null,null,null,null,null,null,null,null,null,null,0]
["           3.8.1.2 pentru participarea proiectantului la fazele incluse în programul de control al\n                       lucrărilor de execuţie, avizat de către Inspectoratul de Stat în Construcţii",null,null,null,null,null,null,null,null,null,null,null,null,null,null,null,null,null,null,null,null,null,null,null,null,null,null,null,null,null,null,null,null,null,null,null,null,null,null,null,null,null,null,null,null,null,null,null,null,null,null,null,0]
["      3.8.2 Dirigenţie de şantier",null,null,null,null,null,null,null,null,null,null,null,null,null,null,null,null,null,null,null,null,null,null,null,null,null,null,null,null,null,null,null,null,null,null,null,null,null,null,null,null,null,null,null,null,null,null,null,null,null,null,null,0]
["Verificare încadrare cheltuieli capitolul 3",null,null,null,null,null,null,null,null,null,null,null,null,null,null,null,null,null,null,null,null,null,null,null,null,null,null,null,null,null,null,null,{"$f":"AJ293+AJ298+AJ324","v":0},{"$f":"IF(AG323=0,0,AI323)","v":0},null,"verificarea se face in Totalizator"]
["Capitolul 4 Cheltuieli pentru investiţia de bază - total, din care:",null,null,null,null,null,null,null,null,null,null,null,null,null,null,null,null,null,null,null,null,null,null,null,null,null,null,null,null,null,null,null,null,null,null,{"$f":"AJ325+AJ332","v":0},null,null,null,null,null,null,null,null,{"$f":"AS325+AS332","v":0},null,null,null,null,null,null,null,{"$f":"SUM(AJ324:AZ324)","v":0}]
["A - Constructii şi lucrări de intervenţii - total, din care:",null,null,null,null,null,null,null,null,null,null,null,null,null,null,null,null,null,null,null,null,null,null,null,null,null,null,null,null,null,null,null,null,null,null,{"$f":"SUM(AJ326:AR331)","v":0},null,null,null,null,null,null,null,null,{"$f":"SUM(AS326:AZ331)","v":0},null,null,null,null,null,null,null,0]
["4.1 Construcţii şi instalaţii",null,null,null,null,null,null,null,null,null,null,null,null,null,null,null,null,null,null,null,null,null,null,null,null,null,null,null,null,null,null,null,null,null,null,null,null,null,null,null,null,null,null,null,null,null,null,null,null,null,null,null,0]
["4.2 Montaj utilaje, echipamente tehnologice şi funcţionale",null,null,null,null,null,null,null,null,null,null,null,null,null,null,null,null,null,null,null,null,null,null,null,null,null,null,null,null,null,null,null,null,null,null,null,null,null,null,null,null,null,null,null,null,null,null,null,null,null,null,null,0]
["4.3 Utilaje, echipamente tehnologice şi funcţionale care necesită montaj",null,null,null,null,null,null,null,null,null,null,null,null,null,null,null,null,null,null,null,null,null,null,null,null,null,null,null,null,null,null,null,null,null,null,null,null,null,null,null,null,null,null,null,null,null,null,null,null,null,null,null,0]
["4.4 Utilaje, echipamente tehnologice şi funcţionale care nu necesită montaj şi echipamente",null,null,null,null,null,null,null,null,null,null,null,null,null,null,null,null,null,null,null,null,null,null,null,null,null,null,null,null,null,null,null,null,null,null,null,null,null,null,null,null,null,null,null,null,null,null,null,null,null,null,null,0]
["4.5 Dotări",null,null,null,null,null,null,null,null,null,null,null,null,null,null,null,null,null,null,null,null,null,null,null,null,null,null,null,null,null,null,null,null,null,null,null,null,null,null,null,null,null,null,null,null,null,null,null,null,null,null,null,0]
["4.6 Active necorporale",null,null,null,null,null,null,null,null,null,null,null,null,null,null,null,null,null,null,null,null,null,null,null,null,null,null,null,null,null,null,null,null,null,null,null,null,null,null,null,null,null,null,null,null,null,null,null,null,null,null,null,0]
["B - Cheltuieli pentru investitii în culturi/plantaţii",null,null,null,null,null,null,null,null,null,null,null,null,null,null,null,null,null,null,null,null,null,null,null,null,null,null,null,null,null,null,null,null,null,null,{"$f":"SUM(AJ333:AR337)","v":0},null,null,null,null,null,null,null,null,{"$f":"SUM(AS333:AZ337)","v":0},null,null,null,null,null,null,null,0]
["Subcapitol 1 - Lucrări de pregătire a terenului",null,null,null,null,null,null,null,null,null,null,null,null,null,null,null,null,null,null,null,null,null,null,null,null,null,null,null,null,null,null,null,null,null,null,null,null,null,null,null,null,null,null,null,null,null,null,null,null,null,null,null,0]
["Subcapitol 2 - Infiinţarea plantaţiei",null,null,null,null,null,null,null,null,null,null,null,null,null,null,null,null,null,null,null,null,null,null,null,null,null,null,null,null,null,null,null,null,null,null,null,null,null,null,null,null,null,null,null,null,null,null,null,null,null,null,null,0]
["Subcapitol 3 - Intreţinere plantaţie în anul 1",null,null,null,null,null,null,null,null,null,null,null,null,null,null,null,null,null,null,null,null,null,null,null,null,null,null,null,null,null,null,null,null,null,null,null,null,null,null,null,null,null,null,null,null,null,null,null,null,null,null,null,0]
["Subcapitol 4 - Intreţinere plantaţie în anul 2",null,null,null,null,null,null,null,null,null,null,null,null,null,null,null,null,null,null,null,null,null,null,null,null,null,null,null,null,null,null,null,null,null,null,null,null,null,null,null,null,null,null,null,null,null,null,null,null,null,null,null,0]
["Subcapitol 5 - Instalat sistem susţinere şi împrejmuire",null,null,null,null,null,null,null,null,null,null,null,null,null,null,null,null,null,null,null,null,null,null,null,null,null,null,null,null,null,null,null,null,null,null,null,null,null,null,null,null,null,null,null,null,null,null,null,null,null,null,null,0]
["Capitolul 5 Alte cheltuieli - total, din care:",null,null,null,null,null,null,null,null,null,null,null,null,null,null,null,null,null,null,null,null,null,null,null,null,null,null,null,null,null,null,null,null,null,null,{"$f":"AJ339+AJ342+AJ348+AJ349","v":0},null,null,null,null,null,null,null,null,{"$f":"AS339+AS342+AS348+AS349","v":0},null,null,null,null,null,null,null,0]
["5.1 Organizare de şantier",null,null,null,null,null,null,null,null,null,null,null,null,null,null,null,null,null,null,null,null,null,null,null,null,null,null,null,null,null,null,null,null,null,null,{"$f":"SUM(AJ340:AR341)","v":0},null,null,null,null,null,null,null,null,{"$f":"SUM(AS340:AZ341)","v":0},null,null,null,null,null,null,null,0]
["      5.1.1 lucrări de construcţii şi instalaţii aferente organizării de şantier",null,null,null,null,null,null,null,null,null,null,null,null,null,null,null,null,null,null,null,null,null,null,null,null,null,null,null,null,null,null,null,null,null,null,null,null,null,null,null,null,null,null,null,null,null,null,null,null,null,null,null,0]
["      5.1.2 cheltuieli conexe orgănizării şantierului",null,null,null,null,null,null,null,null,null,null,null,null,null,null,null,null,null,null,null,null,null,null,null,null,null,null,null,null,null,null,null,null,null,null,null,null,null,null,null,null,null,null,null,null,null,null,null,null,null,null,null,0]
["5.2 Comisioane, taxe, costul creditului",null,null,null,null,null,null,null,null,null,null,null,null,null,null,null,null,null,null,null,null,null,null,null,null,null,null,null,null,null,null,null,null,null,null,{"$f":"SUM(AJ343:AR347)","v":0},null,null,null,null,null,null,null,null,{"$f":"SUM(AS343:AZ347)","v":0},null,null,null,null,null,null,null,0]
["      5.2.1 Comisioanele şi dobânzile aferente creditului băncii finanţatoare",null,null,null,null,null,null,null,null,null,null,null,null,null,null,null,null,null,null,null,null,null,null,null,null,null,null,null,null,null,null,null,null,null,null,null,null,null,null,null,null,null,null,null,null,null,null,null,null,null,null,null,0]
["      5.2.2 Cota aferentă ISC pentru controlul calităţii lucrărilor de construcţii",null,null,null,null,null,null,null,null,null,null,null,null,null,null,null,null,null,null,null,null,null,null,null,null,null,null,null,null,null,null,null,null,null,null,null,null,null,null,null,null,null,null,null,null,null,null,null,null,null,null,null,0]
["      5.2.3 Cota aferentă ISC pentru controlul statului în amenajarea teritoriului,\n               urbanism şi pentru autorizarea lucrărilor de construcţii",null,null,null,null,null,null,null,null,null,null,null,null,null,null,null,null,null,null,null,null,null,null,null,null,null,null,null,null,null,null,null,null,null,null,null,null,null,null,null,null,null,null,null,null,null,null,null,null,null,null,null,0]
["      5.2.4 Cota aferentă Casei Sociale a Constructorilor - CSC",null,null,null,null,null,null,null,null,null,null,null,null,null,null,null,null,null,null,null,null,null,null,null,null,null,null,null,null,null,null,null,null,null,null,null,null,null,null,null,null,null,null,null,null,null,null,null,null,null,null,null,0]
["      5.2.5 Taxe pentru acorduri, avize conforme şi autorizaţia de construire/desfiinţare",null,null,null,null,null,null,null,null,null,null,null,null,null,null,null,null,null,null,null,null,null,null,null,null,null,null,null,null,null,null,null,null,null,null,null,null,null,null,null,null,null,null,null,null,null,null,null,null,null,null,null,0]
["5.3 Cheltuieli diverse şi neprevăzute",null,null,null,null,null,null,null,null,null,null,null,null,null,null,null,null,null,null,null,null,null,null,null,null,null,null,null,null,null,null,null,null,null,null,null,null,null,null,null,null,null,null,null,null,null,null,null,null,null,null,null,0]
["5.4 Cheltuieli pentru informare şi publicitate",null,null,null,null,null,null,null,null,null,null,null,null,null,null,null,null,null,null,null,null,null,null,null,null,null,null,null,null,null,null,null,null,null,null,null,null,null,null,null,null,null,null,null,null,null,null,null,null,null,null,null,0]
["Procent cheltuieli diverse şi neprevăzute"]
["Capitolul 6 Cheltuieli pentru probe tehnologice si teste - total, din care:",null,null,null,null,null,null,null,null,null,null,null,null,null,null,null,null,null,null,null,null,null,null,null,null,null,null,null,null,null,null,null,null,null,null,{"$f":"SUM(AJ352:AR353)","v":0},null,null,null,null,null,null,null,null,{"$f":"SUM(AS352:AZ353)","v":0},null,null,null,null,null,null,null,0]
["6.1 Pregătirea personalului de exploatare",null,null,null,null,null,null,null,null,null,null,null,null,null,null,null,null,null,null,null,null,null,null,null,null,null,null,null,null,null,null,null,null,null,null,null,null,null,null,null,null,null,null,null,null,null,null,null,null,null,null,null,0]
["6.2 Probe tehnologice şi teste",null,null,null,null,null,null,null,null,null,null,null,null,null,null,null,null,null,null,null,null,null,null,null,null,null,null,null,null,null,null,null,null,null,null,null,null,null,null,null,null,null,null,null,null,null,null,null,null,null,null,null,0]
["TOTAL GENERAL",null,null,null,null,null,null,null,null,null,null,null,null,null,null,null,null,null,null,null,null,null,null,null,null,null,null,null,null,null,null,null,null,null,null,{"$f":"AJ293+AJ298+AJ299+AJ324+AJ338+AJ351","v":0},null,null,null,null,null,null,null,null,{"$f":"AS293+AS298+AS299+AS324+AS338+AS351","v":0},null,null,null,null,null,null,null,0]
["Verificare actualizare",null,null,null,null,null,null,null,null,null,null,null,null,null,null,null,null,null,null,null,null,null,null,null,null,null,null,null,null,null,null,{"$f":"AJ356*100/AJ354","v":{"$error":"#DIV/0!"}},null,null,{"$f":"IF(AJ354=0,0,AF355)","v":0},{"$f":"IF(AI355<=5,\"actualizare mai mică de 5% din valoarea eligibila\",\"actualizare mai mare de 5% din valoarea eligibila\")","v":"actualizare mai mică de 5% din valoarea eligibila"}]
["ACTUALIZARE Cheltuieli Eligibile (max 5%)",null,null,null,null,null,null,null,null,null,null,null,null,null,null,null,null,null,null,null,null,null,null,null,null,null,null,null,null,null,null,null,null,null,null,null,null,null,null,null,null,null,null,null,null,null,null,null,null,null,null,null,{"$f":"SUM(AJ356:AZ356)","v":0}]
["TOTAL GENERAL CU ACTUALIZARE",null,null,null,null,null,null,null,null,null,null,null,null,null,null,null,null,null,null,null,null,null,null,null,null,null,null,null,null,null,null,null,null,null,null,{"$f":"AJ354+AJ356","v":0},null,null,null,null,null,null,null,null,{"$f":"AS354","v":0},null,null,null,null,null,null,null,{"$f":"SUM(AJ357:AZ357)","v":0}]
["Valoare TVA",null,null,null,null,null,null,null,null,null,null,null,null,null,null,null,null,null,null,null,null,null,null,null,null,null,null,null,null,null,null,null,null,null,null,null,null,null,null,null,null,null,null,null,null,null,null,null,null,null,null,null,{"$f":"SUM(AJ358:AZ358)","v":0}]
["TOTAL GENERAL inclusiv TVA",null,null,null,null,null,null,null,null,null,null,null,null,null,null,null,null,null,null,null,null,null,null,null,null,null,null,null,null,null,null,null,null,null,null,{"$f":"BA357+BA358","v":0}]
[null,null,null,null,null,null,null,null,null,null,null,null,null,null,null,null,null,null,null,null,null,null,null,null,null,null,null,null,null,null,null,null,null,null,null,"LEI",null,null,null,null,null,null,null,null,"EURO"]
["VALOARE TOTALĂ",null,null,null,null,null,null,null,null,null,null,null,null,null,null,null,null,null,null,null,null,null,null,null,null,null,null,null,null,null,null,null,null,null,null,{"$f":"AS361*Z287","v":0},null,null,null,null,null,null,null,null,{"$f":"AJ359","v":0}]
["VALOARE ELIGIBILĂ",null,null,null,null,null,null,null,null,null,null,null,null,null,null,null,null,null,null,null,null,null,null,null,null,null,null,null,null,null,null,null,null,null,null,{"$f":"AS362*Z287","v":0},null,null,null,null,null,null,null,null,{"$f":"AJ357+AJ358","v":0}]
["VALOARE NEELIGIBILĂ",null,null,null,null,null,null,null,null,null,null,null,null,null,null,null,null,null,null,null,null,null,null,null,null,null,null,null,null,null,null,null,null,null,null,{"$f":"AS363*Z287","v":0},null,null,null,null,null,null,null,null,{"$f":"AS357+AS358","v":0}]
[]
["Plan Financiar",null,null,null,null,null,null,null,null,null,null,null,null,null,null,null,null,null,null,null,null,null,null,null,null,null,null,null,null,null,null,null,null,null,null,"Cheltuieli eligibile EURO",null,null,null,null,null,null,null,null,"Cheltuieli neeligibile EURO",null,null,null,null,null,null,null,"Total"]
["Ajutor public nerambursabil (contribuţie UE şi cofinanţare naţională)",null,null,null,null,null,null,null,null,null,null,null,null,null,null,null,null,null,null,null,null,null,null,null,null,null,null,null,null,null,null,null,null,null,null,null,null,null,null,null,null,null,null,null,null,null,null,null,null,null,null,null,{"$f":"SUM(AJ366:AZ366)","v":0}]
["Cofinantare privata, din care:",null,null,null,null,null,null,null,null,null,null,null,null,null,null,null,null,null,null,null,null,null,null,null,null,null,null,null,null,null,null,null,null,null,null,{"$f":"SUM(AJ368:AR370)","v":0},null,null,null,null,null,null,null,null,{"$f":"SUM(AS368:AZ370)","v":0},null,null,null,null,null,null,null,0]
[null,null,null,null,null,null,null,null,null,null,null,null,null,null,null,"- contributia in natura",null,null,null,null,null,null,null,null,null,null,null,null,null,null,null,null,null,null,null,null,null,null,null,null,null,null,null,null,null,null,null,null,null,null,null,null,0]
[null,null,null,null,null,null,null,null,null,null,null,null,null,null,null,"- autofinanțare",null,null,null,null,null,null,null,null,null,null,null,null,null,null,null,null,null,null,null,null,null,null,null,null,null,null,null,null,null,null,null,null,null,null,null,null,0]
[null,null,null,null,null,null,null,null,null,null,null,null,null,null,null,"- împrumuturi",null,null,null,null,null,null,null,null,null,null,null,null,null,null,null,null,null,null,null,null,null,null,null,null,null,null,null,null,null,null,null,null,null,null,null,null,0]
["TOTAL PROIECT",null,null,null,null,null,null,null,null,null,null,null,null,null,null,null,null,null,null,null,null,null,null,null,null,null,null,null,null,null,null,null,null,null,null,{"$f":"AJ366+AJ367","v":0},null,null,null,null,null,null,null,null,{"$f":"AS367","v":0},null,null,null,null,null,null,null,0]
["Procent contribuţie publică",null,null,null,null,null,null,null,null,null,null,null,null,null,null,null,null,null,null,null,null,null,null,null,null,null,null,null,null,null,null,null,null,{"$f":"AJ366*100/AJ371","v":{"$error":"#DIV/0!"}},{"$f":"IF(AJ371=0,0,AH372)","v":0},{"$f":"AI372","v":0},null,null,null,null,null,null,null,"%"]
["Avans solicitat",null,null,null,null,null,null,null,null,null,null,null,null,null,null,null,null,null,null,null,null,null,null,null,null,null,null,null,null,null,null,null,null,null,null,0]
["Procent avans solicitat ca procent din ajutorul public nerambursabil",null,null,null,null,null,null,null,null,null,null,null,null,null,null,null,null,null,null,null,null,null,null,null,null,null,null,null,null,null,null,null,null,null,{"$f":"AJ373*100/AJ366","v":{"$error":"#DIV/0!"}},{"$f":"IF(AJ366=0,0,AI374)","v":0},null,null,null,null,null,null,null,null,{"$f":"IF(AJ374<=50,\"Suma avans mai mica de 50% din ajutorul public\",\"Suma avans mai mare de 50% din ajutorul public\")","v":"Suma avans mai mica de 50% din ajutorul public"}]
[null,"Buget Indicativ HG 907 (Euro) pentru INVESTIŢII în activitatea de procesare şi comercializare"]
["MINISTERUL AGRICULTURII ŞI DEZVOLTĂRII RURALE"]
["AGENŢIA PENTRU FINANŢAREA INVESTIŢIILOR RURALE"]
[]
[]
[null,"Procentul aferent intensităţii",null,null,null,null,null,null,null,null,null,null,null,null,null,null,null,null,null,"Curs EURO",null,null,null,null,null,null,null,null,null,null,null,null,null,null,null,"Data întocmirii Studiului de Fezabilitate"]
[]
["Submăsura",null,null,null,null,null,null,null,null,null,null,null,null,null,null,null,null,null,null,null,null,null,null,null,null,null,null,null,null,null,null,null,null,null,null,"M2/2A"]
["Denumirea capitolelor de cheltuieli",null,null,null,null,null,null,null,null,null,null,null,null,null,null,null,null,null,null,null,null,null,null,null,null,null,null,null,null,null,null,null,null,null,null,"Cheltuieli eligibile",null,null,null,null,null,null,null,null,"Cheltuieli neeligibile",null,null,null,null,null,null,null,"Total"]
[null,null,null,null,null,null,null,null,null,null,null,null,null,null,null,null,null,null,null,null,null,null,null,null,null,null,null,null,null,null,null,null,null,null,null,"EURO",null,null,null,null,null,null,null,null,"EURO",null,null,null,null,null,null,null,"EURO"]
[1,null,null,null,null,null,null,null,null,null,null,null,null,null,null,null,null,null,null,null,null,null,null,null,null,null,null,null,null,null,null,null,null,null,null,2,null,null,null,null,null,null,null,null,3,null,null,null,null,null,null,null,4]
["Capitolul 1 Cheltuieli pentru obtinerea şi amenajarea terenului - total, din care:",null,null,null,null,null,null,null,null,null,null,null,null,null,null,null,null,null,null,null,null,null,null,null,null,null,null,null,null,null,null,null,null,null,null,{"$f":"SUM(AJ388:AR390)","v":0},null,null,null,null,null,null,null,null,{"$f":"SUM(AS387:AZ390)","v":0},null,null,null,null,null,null,null,{"$f":"SUM(AJ386:AZ386)","v":0}]
["1.1 Obţinerea terenului",null,null,null,null,null,null,null,null,null,null,null,null,null,null,null,null,null,null,null,null,null,null,null,null,null,null,null,null,null,null,null,null,null,null,null,null,null,null,null,null,null,null,null,null,null,null,null,null,null,null,null,{"$f":"SUM(AJ387:AZ387)","v":0}]
["1.2 Amenajarea terenului",null,null,null,null,null,null,null,null,null,null,null,null,null,null,null,null,null,null,null,null,null,null,null,null,null,null,null,null,null,null,null,null,null,null,null,null,null,null,null,null,null,null,null,null,null,null,null,null,null,null,null,0]
["1.3 Amenajari pentru protecţia mediului şi aducerea la starea iniţială",null,null,null,null,null,null,null,null,null,null,null,null,null,null,null,null,null,null,null,null,null,null,null,null,null,null,null,null,null,null,null,null,null,null,null,null,null,null,null,null,null,null,null,null,null,null,null,null,null,null,null,0]
["1.4 Cheltuieli pentru relocarea/protecţia utilităţilor",null,null,null,null,null,null,null,null,null,null,null,null,null,null,null,null,null,null,null,null,null,null,null,null,null,null,null,null,null,null,null,null,null,null,null,null,null,null,null,null,null,null,null,null,null,null,null,null,null,null,null,0]
["Capitolul 2 Cheltuieli pentru asigurarea utilităţilor necesare obiectivului de investiţii",null,null,null,null,null,null,null,null,null,null,null,null,null,null,null,null,null,null,null,null,null,null,null,null,null,null,null,null,null,null,null,null,null,null,null,null,null,null,null,null,null,null,null,null,null,null,null,null,null,null,null,0]
["Capitolul 3 Cheltuieli pentru proiectare şi asistenţă tehnică - total, din care:",null,null,null,null,null,null,null,null,null,null,null,null,null,null,null,null,null,null,null,null,null,null,null,null,null,null,null,null,null,null,null,null,null,null,{"$f":"AJ393+AJ397+AJ398+AJ399+AJ400+AJ408+AJ411","v":0},null,null,null,null,null,null,null,null,{"$f":"AS393+AS397+AS398+AS399+AS400+AS407+AS408+AS411","v":0},null,null,null,null,null,null,null,0]
["3.1 Studii",null,null,null,null,null,null,null,null,null,null,null,null,null,null,null,null,null,null,null,null,null,null,null,null,null,null,null,null,null,null,null,null,null,null,{"$f":"SUM(AJ394:AR396)","v":0},null,null,null,null,null,null,null,null,{"$f":"SUM(AS394:AZ396)","v":0},null,null,null,null,null,null,null,0]
["       3.1.1 Studii de teren",null,null,null,null,null,null,null,null,null,null,null,null,null,null,null,null,null,null,null,null,null,null,null,null,null,null,null,null,null,null,null,null,null,null,null,null,null,null,null,null,null,null,null,null,null,null,null,null,null,null,null,0]
["       3.1.2 Raport privind impactul asupra mediului",null,null,null,null,null,null,null,null,null,null,null,null,null,null,null,null,null,null,null,null,null,null,null,null,null,null,null,null,null,null,null,null,null,null,null,null,null,null,null,null,null,null,null,null,null,null,null,null,null,null,null,0]
["       3.1.3 Alte studii specifice",null,null,null,null,null,null,null,null,null,null,null,null,null,null,null,null,null,null,null,null,null,null,null,null,null,null,null,null,null,null,null,null,null,null,null,null,null,null,null,null,null,null,null,null,null,null,null,null,null,null,null,0]
["3.2 Documentaţii-suport şi cheltuieli pentru obţinerea de avize, acorduri şi autorizaţii",null,null,null,null,null,null,null,null,null,null,null,null,null,null,null,null,null,null,null,null,null,null,null,null,null,null,null,null,null,null,null,null,null,null,null,null,null,null,null,null,null,null,null,null,null,null,null,null,null,null,null,0]
["3.3 Expertizare tehnică",null,null,null,null,null,null,null,null,null,null,null,null,null,null,null,null,null,null,null,null,null,null,null,null,null,null,null,null,null,null,null,null,null,null,null,null,null,null,null,null,null,null,null,null,null,null,null,null,null,null,null,0]
["3.4 Certificarea performanţei energetice şi auditul energetic al clădirilor",null,null,null,null,null,null,null,null,null,null,null,null,null,null,null,null,null,null,null,null,null,null,null,null,null,null,null,null,null,null,null,null,null,null,null,null,null,null,null,null,null,null,null,null,null,null,null,null,null,null,null,0]
["3.5 Proiectare",null,null,null,null,null,null,null,null,null,null,null,null,null,null,null,null,null,null,null,null,null,null,null,null,null,null,null,null,null,null,null,null,null,null,{"$f":"SUM(AJ401:AR406)","v":0},null,null,null,null,null,null,null,null,{"$f":"SUM(AS401:AZ406)","v":0},null,null,null,null,null,null,null,0]
["      3.5.1 Temă de proiectare",null,null,null,null,null,null,null,null,null,null,null,null,null,null,null,null,null,null,null,null,null,null,null,null,null,null,null,null,null,null,null,null,null,null,null,null,null,null,null,null,null,null,null,null,null,null,null,null,null,null,null,0]
["      3.5.2 Studiu de prefezabilitate",null,null,null,null,null,null,null,null,null,null,null,null,null,null,null,null,null,null,null,null,null,null,null,null,null,null,null,null,null,null,null,null,null,null,null,null,null,null,null,null,null,null,null,null,null,null,null,null,null,null,null,0]
["      3.5.3. Studiu de fezabilitate/documentaţie de avizare a lucrărilor de intervenţii\n                şi deviz general",null,null,null,null,null,null,null,null,null,null,null,null,null,null,null,null,null,null,null,null,null,null,null,null,null,null,null,null,null,null,null,null,null,null,null,null,null,null,null,null,null,null,null,null,null,null,null,null,null,null,null,0]
["      3.5.4. Documentaţiile tehnice necesare în vederea obţinerii avizelor/\n                acordurilor/autorizaţiilor",null,null,null,null,null,null,null,null,null,null,null,null,null,null,null,null,null,null,null,null,null,null,null,null,null,null,null,null,null,null,null,null,null,null,null,null,null,null,null,null,null,null,null,null,null,null,null,null,null,null,null,0]
["      3.5.5. Verificarea tehnică de calitate a proiectului tehnic şi a detaliilor de execuţie",null,null,null,null,null,null,null,null,null,null,null,null,null,null,null,null,null,null,null,null,null,null,null,null,null,null,null,null,null,null,null,null,null,null,null,null,null,null,null,null,null,null,null,null,null,null,null,null,null,null,null,0]
["      3.5.6. Proiect tehnic şi detalii de execuţie",null,null,null,null,null,null,null,null,null,null,null,null,null,null,null,null,null,null,null,null,null,null,null,null,null,null,null,null,null,null,null,null,null,null,null,null,null,null,null,null,null,null,null,null,null,null,null,null,null,null,null,0]
["3.6 Organizarea procedurilor de achiziţie",null,null,null,null,null,null,null,null,null,null,null,null,null,null,null,null,null,null,null,null,null,null,null,null,null,null,null,null,null,null,null,null,null,null,null,null,null,null,null,null,null,null,null,null,null,null,null,null,null,null,null,0]
["3.7 Consultanţă",null,null,null,null,null,null,null,null,null,null,null,null,null,null,null,null,null,null,null,null,null,null,null,null,null,null,null,null,null,null,null,null,null,null,{"$f":"AJ409","v":0},null,null,null,null,null,null,null,null,{"$f":"AS409+AS410","v":0},null,null,null,null,null,null,null,0]
["      3.7.1 Managementul de proiect pentru obiectivul de investiţii",null,null,null,null,null,null,null,null,null,null,null,null,null,null,null,null,null,null,null,null,null,null,null,null,null,null,null,null,null,null,null,null,null,null,null,null,null,null,null,null,null,null,null,null,null,null,null,null,null,null,null,0]
["      3.7.2 Auditul financiar",null,null,null,null,null,null,null,null,null,null,null,null,null,null,null,null,null,null,null,null,null,null,null,null,null,null,null,null,null,null,null,null,null,null,null,null,null,null,null,null,null,null,null,null,null,null,null,null,null,null,null,0]
["3.8 Asistenţă Tehnică",null,null,null,null,null,null,null,null,null,null,null,null,null,null,null,null,null,null,null,null,null,null,null,null,null,null,null,null,null,null,null,null,null,null,{"$f":"AJ412+AJ415","v":0},null,null,null,null,null,null,null,null,{"$f":"AS412+AS415","v":0},null,null,null,null,null,null,null,0]
["      3.8.1 Asistenţă Tehnică din partea proiectantului",null,null,null,null,null,null,null,null,null,null,null,null,null,null,null,null,null,null,null,null,null,null,null,null,null,null,null,null,null,null,null,null,null,null,{"$f":"SUM(AJ413:AR414)","v":0},null,null,null,null,null,null,null,null,{"$f":"SUM(AS413:AZ414)","v":0},null,null,null,null,null,null,null,0]
["           3.8.1.1 pe perioada de execuţie a lucrărilor",null,null,null,null,null,null,null,null,null,null,null,null,null,null,null,null,null,null,null,null,null,null,null,null,null,null,null,null,null,null,null,null,null,null,null,null,null,null,null,null,null,null,null,null,null,null,null,null,null,null,null,0]
["           3.8.1.2 pentru participarea proiectantului la fazele incluse în programul de control al\n                       lucrărilor de execuţie, avizat de către Inspectoratul de Stat în Construcţii",null,null,null,null,null,null,null,null,null,null,null,null,null,null,null,null,null,null,null,null,null,null,null,null,null,null,null,null,null,null,null,null,null,null,null,null,null,null,null,null,null,null,null,null,null,null,null,null,null,null,null,0]
["      3.8.2 Dirigenţie de şantier",null,null,null,null,null,null,null,null,null,null,null,null,null,null,null,null,null,null,null,null,null,null,null,null,null,null,null,null,null,null,null,null,null,null,null,null,null,null,null,null,null,null,null,null,null,null,null,null,null,null,null,0]
["Verificare încadrare cheltuieli capitolul 3",null,null,null,null,null,null,null,null,null,null,null,null,null,null,null,null,null,null,null,null,null,null,null,null,null,null,null,null,null,null,null,{"$f":"AJ386+AJ391+AJ417","v":0},{"$f":"IF(AG416=0,0,AI416)","v":0},null,"verificarea se face in Totalizator"]
["Capitolul 4 Cheltuieli pentru investiţia de bază - total, din care:",null,null,null,null,null,null,null,null,null,null,null,null,null,null,null,null,null,null,null,null,null,null,null,null,null,null,null,null,null,null,null,null,null,null,{"$f":"AJ418+AJ425","v":0},null,null,null,null,null,null,null,null,{"$f":"AS418+AS425","v":0},null,null,null,null,null,null,null,{"$f":"SUM(AJ417:AZ417)","v":0}]
["A - Constructii şi lucrări de intervenţii - total, din care:",null,null,null,null,null,null,null,null,null,null,null,null,null,null,null,null,null,null,null,null,null,null,null,null,null,null,null,null,null,null,null,null,null,null,{"$f":"SUM(AJ419:AR424)","v":0},null,null,null,null,null,null,null,null,{"$f":"SUM(AS419:AZ424)","v":0},null,null,null,null,null,null,null,0]
["4.1 Construcţii şi instalaţii",null,null,null,null,null,null,null,null,null,null,null,null,null,null,null,null,null,null,null,null,null,null,null,null,null,null,null,null,null,null,null,null,null,null,null,null,null,null,null,null,null,null,null,null,null,null,null,null,null,null,null,0]
["4.2 Montaj utilaje, echipamente tehnologice şi funcţionale",null,null,null,null,null,null,null,null,null,null,null,null,null,null,null,null,null,null,null,null,null,null,null,null,null,null,null,null,null,null,null,null,null,null,null,null,null,null,null,null,null,null,null,null,null,null,null,null,null,null,null,0]
["4.3 Utilaje, echipamente tehnologice şi funcţionale care necesită montaj",null,null,null,null,null,null,null,null,null,null,null,null,null,null,null,null,null,null,null,null,null,null,null,null,null,null,null,null,null,null,null,null,null,null,null,null,null,null,null,null,null,null,null,null,null,null,null,null,null,null,null,0]
["4.4 Utilaje, echipamente tehnologice şi funcţionale care nu necesită montaj şi echipamente",null,null,null,null,null,null,null,null,null,null,null,null,null,null,null,null,null,null,null,null,null,null,null,null,null,null,null,null,null,null,null,null,null,null,null,null,null,null,null,null,null,null,null,null,null,null,null,null,null,null,null,0]
["4.5 Dotări",null,null,null,null,null,null,null,null,null,null,null,null,null,null,null,null,null,null,null,null,null,null,null,null,null,null,null,null,null,null,null,null,null,null,null,null,null,null,null,null,null,null,null,null,null,null,null,null,null,null,null,0]
["4.6 Active necorporale",null,null,null,null,null,null,null,null,null,null,null,null,null,null,null,null,null,null,null,null,null,null,null,null,null,null,null,null,null,null,null,null,null,null,null,null,null,null,null,null,null,null,null,null,null,null,null,null,null,null,null,0]
["B - Cheltuieli pentru investitii în culturi/plantaţii",null,null,null,null,null,null,null,null,null,null,null,null,null,null,null,null,null,null,null,null,null,null,null,null,null,null,null,null,null,null,null,null,null,null,{"$f":"SUM(AJ426:AR430)","v":0},null,null,null,null,null,null,null,null,{"$f":"SUM(AS426:AZ430)","v":0},null,null,null,null,null,null,null,0]
["Subcapitol 1 - Lucrări de pregătire a terenului",null,null,null,null,null,null,null,null,null,null,null,null,null,null,null,null,null,null,null,null,null,null,null,null,null,null,null,null,null,null,null,null,null,null,null,null,null,null,null,null,null,null,null,null,null,null,null,null,null,null,null,0]
["Subcapitol 2 - Infiinţarea plantaţiei",null,null,null,null,null,null,null,null,null,null,null,null,null,null,null,null,null,null,null,null,null,null,null,null,null,null,null,null,null,null,null,null,null,null,null,null,null,null,null,null,null,null,null,null,null,null,null,null,null,null,null,0]
["Subcapitol 3 - Intreţinere plantaţie în anul 1",null,null,null,null,null,null,null,null,null,null,null,null,null,null,null,null,null,null,null,null,null,null,null,null,null,null,null,null,null,null,null,null,null,null,null,null,null,null,null,null,null,null,null,null,null,null,null,null,null,null,null,0]
["Subcapitol 4 - Intreţinere plantaţie în anul 2",null,null,null,null,null,null,null,null,null,null,null,null,null,null,null,null,null,null,null,null,null,null,null,null,null,null,null,null,null,null,null,null,null,null,null,null,null,null,null,null,null,null,null,null,null,null,null,null,null,null,null,0]
["Subcapitol 5 - Instalat sistem susţinere şi împrejmuire",null,null,null,null,null,null,null,null,null,null,null,null,null,null,null,null,null,null,null,null,null,null,null,null,null,null,null,null,null,null,null,null,null,null,null,null,null,null,null,null,null,null,null,null,null,null,null,null,null,null,null,0]
["Capitolul 5 Alte cheltuieli - total, din care:",null,null,null,null,null,null,null,null,null,null,null,null,null,null,null,null,null,null,null,null,null,null,null,null,null,null,null,null,null,null,null,null,null,null,{"$f":"AJ432+AJ435+AJ441+AJ442","v":0},null,null,null,null,null,null,null,null,{"$f":"AS432+AS435+AS441+AS442","v":0},null,null,null,null,null,null,null,0]
["5.1 Organizare de şantier",null,null,null,null,null,null,null,null,null,null,null,null,null,null,null,null,null,null,null,null,null,null,null,null,null,null,null,null,null,null,null,null,null,null,{"$f":"SUM(AJ433:AR434)","v":0},null,null,null,null,null,null,null,null,{"$f":"SUM(AS433:AZ434)","v":0},null,null,null,null,null,null,null,0]
["      5.1.1 lucrări de construcţii şi instalaţii aferente organizării de şantier",null,null,null,null,null,null,null,null,null,null,null,null,null,null,null,null,null,null,null,null,null,null,null,null,null,null,null,null,null,null,null,null,null,null,null,null,null,null,null,null,null,null,null,null,null,null,null,null,null,null,null,0]
["      5.1.2 cheltuieli conexe orgănizării şantierului",null,null,null,null,null,null,null,null,null,null,null,null,null,null,null,null,null,null,null,null,null,null,null,null,null,null,null,null,null,null,null,null,null,null,null,null,null,null,null,null,null,null,null,null,null,null,null,null,null,null,null,0]
["5.2 Comisioane, taxe, costul creditului",null,null,null,null,null,null,null,null,null,null,null,null,null,null,null,null,null,null,null,null,null,null,null,null,null,null,null,null,null,null,null,null,null,null,{"$f":"AJ437+AJ438+AJ440","v":0},null,null,null,null,null,null,null,null,{"$f":"SUM(AS436:AZ440)","v":0},null,null,null,null,null,null,null,0]
["      5.2.1 Comisioanele şi dobânzile aferente creditului băncii finanţatoare",null,null,null,null,null,null,null,null,null,null,null,null,null,null,null,null,null,null,null,null,null,null,null,null,null,null,null,null,null,null,null,null,null,null,null,null,null,null,null,null,null,null,null,null,null,null,null,null,null,null,null,0]
["      5.2.2 Cota aferentă ISC pentru controlul calităţii lucrărilor de construcţii",null,null,null,null,null,null,null,null,null,null,null,null,null,null,null,null,null,null,null,null,null,null,null,null,null,null,null,null,null,null,null,null,null,null,null,null,null,null,null,null,null,null,null,null,null,null,null,null,null,null,null,0]
["      5.2.3 Cota aferentă ISC pentru controlul statului în amenajarea teritoriului, urbanism şi\n               pentru autorizarea lucrărilor de construcţii",null,null,null,null,null,null,null,null,null,null,null,null,null,null,null,null,null,null,null,null,null,null,null,null,null,null,null,null,null,null,null,null,null,null,null,null,null,null,null,null,null,null,null,null,null,null,null,null,null,null,null,0]
["      5.2.4 Cota aferentă Casei Sociale a Constructorilor - CSC",null,null,null,null,null,null,null,null,null,null,null,null,null,null,null,null,null,null,null,null,null,null,null,null,null,null,null,null,null,null,null,null,null,null,null,null,null,null,null,null,null,null,null,null,null,null,null,null,null,null,null,0]
["      5.2.5 Taxe pentru acorduri, avize conforme şi autorizaţia de construire/ desfiinţare",null,null,null,null,null,null,null,null,null,null,null,null,null,null,null,null,null,null,null,null,null,null,null,null,null,null,null,null,null,null,null,null,null,null,null,null,null,null,null,null,null,null,null,null,null,null,null,null,null,null,null,0]
["5.3 Cheltuieli diverse şi neprevăzute",null,null,null,null,null,null,null,null,null,null,null,null,null,null,null,null,null,null,null,null,null,null,null,null,null,null,null,null,null,null,null,null,null,null,null,null,null,null,null,null,null,null,null,null,null,null,null,null,null,null,null,0]
["5.4 Cheltuieli pentru informare şi publicitate",null,null,null,null,null,null,null,null,null,null,null,null,null,null,null,null,null,null,null,null,null,null,null,null,null,null,null,null,null,null,null,null,null,null,null,null,null,null,null,null,null,null,null,null,null,null,null,null,null,null,null,0]
["Procent cheltuieli diverse şi neprevăzute"]
["Capitolul 6 Cheltuieli pentru probe tehnologice si teste- total, din care:",null,null,null,null,null,null,null,null,null,null,null,null,null,null,null,null,null,null,null,null,null,null,null,null,null,null,null,null,null,null,null,null,null,null,{"$f":"SUM(AJ445:AR446)","v":0},null,null,null,null,null,null,null,null,{"$f":"SUM(AS445:AZ446)","v":0},null,null,null,null,null,null,null,{"$f":"SUM(AJ444:AZ444)","v":0}]
["6.1 Pregătirea personalului de exploatare",null,null,null,null,null,null,null,null,null,null,null,null,null,null,null,null,null,null,null,null,null,null,null,null,null,null,null,null,null,null,null,null,null,null,null,null,null,null,null,null,null,null,null,null,null,null,null,null,null,null,null,{"$f":"SUM(AJ445:AZ445)","v":0}]
["6.2 Probe tehnologice şi teste",null,null,null,null,null,null,null,null,null,null,null,null,null,null,null,null,null,null,null,null,null,null,null,null,null,null,null,null,null,null,null,null,null,null,null,null,null,null,null,null,null,null,null,null,null,null,null,null,null,null,null,{"$f":"SUM(AJ446:AZ446)","v":0}]
["TOTAL GENERAL",null,null,null,null,null,null,null,null,null,null,null,null,null,null,null,null,null,null,null,null,null,null,null,null,null,null,null,null,null,null,null,null,null,null,{"$f":"AJ386+AJ391+AJ392+AJ417+AJ431+AJ444","v":0},null,null,null,null,null,null,null,null,{"$f":"AS386+AS391+AS392+AS417+AS431+AS444","v":0},null,null,null,null,null,null,null,{"$f":"SUM(AJ447:AZ447)","v":0}]
["Verificare actualizare",null,null,null,null,null,null,null,null,null,null,null,null,null,null,null,null,null,null,null,null,null,null,null,null,null,null,null,null,null,null,{"$f":"AJ449*100/AJ447","v":{"$error":"#DIV/0!"}},null,null,{"$f":"IF(AJ447=0,0,AF448)","v":0},{"$f":"IF(AI448<=5,\"actualizare mai mică de 5% din valoarea eligibila\",\"actualizare mai mare de 5% din valoarea eligibila\")","v":"actualizare mai mică de 5% din valoarea eligibila"}]
["ACTUALIZARE Cheltuieli Eligibile (max 5%)",null,null,null,null,null,null,null,null,null,null,null,null,null,null,null,null,null,null,null,null,null,null,null,null,null,null,null,null,null,null,null,null,null,null,null,null,null,null,null,null,null,null,null,null,null,null,null,null,null,null,null,{"$f":"SUM(AJ449:AZ449)","v":0}]
["TOTAL GENERAL CU ACTUALIZARE",null,null,null,null,null,null,null,null,null,null,null,null,null,null,null,null,null,null,null,null,null,null,null,null,null,null,null,null,null,null,null,null,null,null,{"$f":"AJ447+AJ449","v":0},null,null,null,null,null,null,null,null,{"$f":"AS447","v":0},null,null,null,null,null,null,null,{"$f":"SUM(AJ450:AZ450)","v":0}]
["Valoare TVA",null,null,null,null,null,null,null,null,null,null,null,null,null,null,null,null,null,null,null,null,null,null,null,null,null,null,null,null,null,null,null,null,null,null,null,null,null,null,null,null,null,null,null,null,null,null,null,null,null,null,null,{"$f":"SUM(AJ451:AZ451)","v":0}]
["TOTAL GENERAL inclusiv TVA",null,null,null,null,null,null,null,null,null,null,null,null,null,null,null,null,null,null,null,null,null,null,null,null,null,null,null,null,null,null,null,null,null,null,{"$f":"BA450+BA451","v":0}]
[null,null,null,null,null,null,null,null,null,null,null,null,null,null,null,null,null,null,null,null,null,null,null,null,null,null,null,null,null,null,null,null,null,null,null,"LEI",null,null,null,null,null,null,null,null,"EURO"]
["VALOARE TOTALĂ",null,null,null,null,null,null,null,null,null,null,null,null,null,null,null,null,null,null,null,null,null,null,null,null,null,null,null,null,null,null,null,null,null,null,{"$f":"AS454*Z380","v":0},null,null,null,null,null,null,null,null,{"$f":"AJ452","v":0}]
["VALOARE ELIGIBILĂ",null,null,null,null,null,null,null,null,null,null,null,null,null,null,null,null,null,null,null,null,null,null,null,null,null,null,null,null,null,null,null,null,null,null,{"$f":"AS455*Z380","v":0},null,null,null,null,null,null,null,null,{"$f":"AJ450+AJ451","v":0}]
["VALOARE NEELIGIBILĂ",null,null,null,null,null,null,null,null,null,null,null,null,null,null,null,null,null,null,null,null,null,null,null,null,null,null,null,null,null,null,null,null,null,null,{"$f":"AS456*Z380","v":0},null,null,null,null,null,null,null,null,{"$f":"AS450+AS451","v":0}]
["Plan Financiar",null,null,null,null,null,null,null,null,null,null,null,null,null,null,null,null,null,null,null,null,null,null,null,null,null,null,null,null,null,null,null,null,null,null,"Cheltuieli eligibile EURO",null,null,null,null,null,null,null,null,"Cheltuieli neeligibile EURO",null,null,null,null,null,null,null,"Total"]
["Ajutor public nerambursabil (contribuţie UE şi cofinanţare naţională)",null,null,null,null,null,null,null,null,null,null,null,null,null,null,null,null,null,null,null,null,null,null,null,null,null,null,null,null,null,null,null,null,null,null,null,null,null,null,null,null,null,null,null,null,null,null,null,null,null,null,null,{"$f":"SUM(AJ458:AZ458)","v":0}]
["Cofinantare privata, din care:",null,null,null,null,null,null,null,null,null,null,null,null,null,null,null,null,null,null,null,null,null,null,null,null,null,null,null,null,null,null,null,null,null,null,{"$f":"SUM(AJ460:AR462)","v":0},null,null,null,null,null,null,null,null,{"$f":"SUM(AS460:AZ462)","v":0},null,null,null,null,null,null,null,0]
[null,null,null,null,null,null,null,null,null,null,null,null,null,null,null,"- contributia in natura",null,null,null,null,null,null,null,null,null,null,null,null,null,null,null,null,null,null,null,null,null,null,null,null,null,null,null,null,null,null,null,null,null,null,null,null,0]
[null,null,null,null,null,null,null,null,null,null,null,null,null,null,null,"- autofinanțare",null,null,null,null,null,null,null,null,null,null,null,null,null,null,null,null,null,null,null,null,null,null,null,null,null,null,null,null,null,null,null,null,null,null,null,null,0]
[null,null,null,null,null,null,null,null,null,null,null,null,null,null,null,"- împrumuturi",null,null,null,null,null,null,null,null,null,null,null,null,null,null,null,null,null,null,null,null,null,null,null,null,null,null,null,null,null,null,null,null,null,null,null,null,0]
["TOTAL PROIECT",null,null,null,null,null,null,null,null,null,null,null,null,null,null,null,null,null,null,null,null,null,null,null,null,null,null,null,null,null,null,null,null,null,null,{"$f":"AJ458+AJ459","v":0},null,null,null,null,null,null,null,null,{"$f":"AS459","v":0},null,null,null,null,null,null,null,0]
["Procent contribuţie publică",null,null,null,null,null,null,null,null,null,null,null,null,null,null,null,null,null,null,null,null,null,null,null,null,null,null,null,null,null,null,null,null,{"$f":"AJ458*100/AJ463","v":{"$error":"#DIV/0!"}},{"$f":"IF(AJ463=0,0,AH464)","v":0},{"$f":"AI464","v":0},null,null,null,null,null,null,null,"%"]
["Avans solicitat"]
["Procent avans solicitat ca procent din ajutorul public nerambursabil",null,null,null,null,null,null,null,null,null,null,null,null,null,null,null,null,null,null,null,null,null,null,null,null,null,null,null,null,null,null,null,null,null,{"$f":"AJ465*100/AJ458","v":{"$error":"#DIV/0!"}},{"$f":"IF(AJ458=0,0,AI466)","v":0},null,null,null,null,null,null,null,null,{"$f":"IF(AJ466<=50,\"Suma avans mai mica de 50% din ajutorul public\",\"Suma avans mai mare de 50% din ajutorul public\")","v":"Suma avans mai mica de 50% din ajutorul public"}]
[null,"Buget Indicativ HG 907 (Euro) pentru INVESTIŢII pentru agromediu "]
["MINISTERUL AGRICULTURII ŞI DEZVOLTĂRII RURALE"]
["AGENŢIA PENTRU FINANŢAREA INVESTIŢIILOR RURALE"]
[]
[]
[null,"Procentul aferent intensităţii",null,null,null,null,null,null,null,null,null,null,null,null,null,null,null,null,null,"Curs EURO",null,null,null,null,null,null,null,null,null,null,null,null,null,null,null,"Data întocmirii Studiului de Fezabilitate"]
[]
["Submăsura",null,null,null,null,null,null,null,null,null,null,null,null,null,null,null,null,null,null,null,null,null,null,null,null,null,null,null,null,null,null,null,null,null,null,"M2/2A"]
["Denumirea capitolelor de cheltuieli",null,null,null,null,null,null,null,null,null,null,null,null,null,null,null,null,null,null,null,null,null,null,null,null,null,null,null,null,null,null,null,null,null,null,"Cheltuieli eligibile",null,null,null,null,null,null,null,null,"Cheltuieli neeligibile",null,null,null,null,null,null,null,"Total"]
[null,null,null,null,null,null,null,null,null,null,null,null,null,null,null,null,null,null,null,null,null,null,null,null,null,null,null,null,null,null,null,null,null,null,null,"EURO",null,null,null,null,null,null,null,null,"EURO",null,null,null,null,null,null,null,"EURO"]
[1,null,null,null,null,null,null,null,null,null,null,null,null,null,null,null,null,null,null,null,null,null,null,null,null,null,null,null,null,null,null,null,null,null,null,2,null,null,null,null,null,null,null,null,3,null,null,null,null,null,null,null,4]
["Capitolul 1 Cheltuieli pentru obtinerea şi amenajarea terenului - total, din care:",null,null,null,null,null,null,null,null,null,null,null,null,null,null,null,null,null,null,null,null,null,null,null,null,null,null,null,null,null,null,null,null,null,null,{"$f":"SUM(AJ480:AR482)","v":0},null,null,null,null,null,null,null,null,{"$f":"SUM(AS479:AZ482)","v":0},null,null,null,null,null,null,null,{"$f":"SUM(AJ478:AZ478)","v":0}]
["1.1 Obţinerea terenului",null,null,null,null,null,null,null,null,null,null,null,null,null,null,null,null,null,null,null,null,null,null,null,null,null,null,null,null,null,null,null,null,null,null,null,null,null,null,null,null,null,null,null,null,null,null,null,null,null,null,null,{"$f":"SUM(AJ479:AZ479)","v":0}]
["1.2 Amenajarea terenului",null,null,null,null,null,null,null,null,null,null,null,null,null,null,null,null,null,null,null,null,null,null,null,null,null,null,null,null,null,null,null,null,null,null,null,null,null,null,null,null,null,null,null,null,null,null,null,null,null,null,null,0]
["1.3 Amenajari pentru protecţia mediului şi aducerea la starea iniţială",null,null,null,null,null,null,null,null,null,null,null,null,null,null,null,null,null,null,null,null,null,null,null,null,null,null,null,null,null,null,null,null,null,null,null,null,null,null,null,null,null,null,null,null,null,null,null,null,null,null,null,0]
["1.4 Cheltuieli pentru relocarea/protecţia utilităţilor",null,null,null,null,null,null,null,null,null,null,null,null,null,null,null,null,null,null,null,null,null,null,null,null,null,null,null,null,null,null,null,null,null,null,null,null,null,null,null,null,null,null,null,null,null,null,null,null,null,null,null,0]
["Capitolul 2 Cheltuieli pentru asigurarea utilităţilor necesare obiectivului de investiţii",null,null,null,null,null,null,null,null,null,null,null,null,null,null,null,null,null,null,null,null,null,null,null,null,null,null,null,null,null,null,null,null,null,null,null,null,null,null,null,null,null,null,null,null,null,null,null,null,null,null,null,0]
["Capitolul 3 Cheltuieli pentru proiectare şi asistenţă tehnică - total, din care:",null,null,null,null,null,null,null,null,null,null,null,null,null,null,null,null,null,null,null,null,null,null,null,null,null,null,null,null,null,null,null,null,null,null,{"$f":"AJ485+AJ489+AJ490+AJ491+AJ492+AJ500+AJ503","v":0},null,null,null,null,null,null,null,null,{"$f":"AS485+AS489+AS490+AS491+AS492+AS499+AS500+AS503","v":0},null,null,null,null,null,null,null,0]
["3.1 Studii",null,null,null,null,null,null,null,null,null,null,null,null,null,null,null,null,null,null,null,null,null,null,null,null,null,null,null,null,null,null,null,null,null,null,{"$f":"SUM(AJ486:AR488)","v":0},null,null,null,null,null,null,null,null,{"$f":"SUM(AS486:AZ488)","v":0},null,null,null,null,null,null,null,0]
["       3.1.1 Studii de teren",null,null,null,null,null,null,null,null,null,null,null,null,null,null,null,null,null,null,null,null,null,null,null,null,null,null,null,null,null,null,null,null,null,null,null,null,null,null,null,null,null,null,null,null,null,null,null,null,null,null,null,0]
["       3.1.2 Raport privind impactul asupra mediului",null,null,null,null,null,null,null,null,null,null,null,null,null,null,null,null,null,null,null,null,null,null,null,null,null,null,null,null,null,null,null,null,null,null,null,null,null,null,null,null,null,null,null,null,null,null,null,null,null,null,null,0]
["       3.1.3 Alte studii specifice",null,null,null,null,null,null,null,null,null,null,null,null,null,null,null,null,null,null,null,null,null,null,null,null,null,null,null,null,null,null,null,null,null,null,null,null,null,null,null,null,null,null,null,null,null,null,null,null,null,null,null,0]
["3.2 Documentaţii-suport şi cheltuieli pentru obţinerea de avize, acorduri şi autorizaţii",null,null,null,null,null,null,null,null,null,null,null,null,null,null,null,null,null,null,null,null,null,null,null,null,null,null,null,null,null,null,null,null,null,null,null,null,null,null,null,null,null,null,null,null,null,null,null,null,null,null,null,0]
["3.3 Expertizare tehnică",null,null,null,null,null,null,null,null,null,null,null,null,null,null,null,null,null,null,null,null,null,null,null,null,null,null,null,null,null,null,null,null,null,null,null,null,null,null,null,null,null,null,null,null,null,null,null,null,null,null,null,0]
["3.4 Certificarea performanţei energetice şi auditul energetic al clădirilor",null,null,null,null,null,null,null,null,null,null,null,null,null,null,null,null,null,null,null,null,null,null,null,null,null,null,null,null,null,null,null,null,null,null,null,null,null,null,null,null,null,null,null,null,null,null,null,null,null,null,null,0]
["3.5 Proiectare",null,null,null,null,null,null,null,null,null,null,null,null,null,null,null,null,null,null,null,null,null,null,null,null,null,null,null,null,null,null,null,null,null,null,{"$f":"SUM(AJ493:AR498)","v":0},null,null,null,null,null,null,null,null,{"$f":"SUM(AS493:AZ498)","v":0},null,null,null,null,null,null,null,0]
["      3.5.1 Temă de proiectare",null,null,null,null,null,null,null,null,null,null,null,null,null,null,null,null,null,null,null,null,null,null,null,null,null,null,null,null,null,null,null,null,null,null,null,null,null,null,null,null,null,null,null,null,null,null,null,null,null,null,null,0]
["      3.5.2 Studiu de prefezabilitate",null,null,null,null,null,null,null,null,null,null,null,null,null,null,null,null,null,null,null,null,null,null,null,null,null,null,null,null,null,null,null,null,null,null,null,null,null,null,null,null,null,null,null,null,null,null,null,null,null,null,null,0]
["      3.5.3. Studiu de fezabilitate/documentaţie de avizare a lucrărilor de intervenţii\n                şi deviz general",null,null,null,null,null,null,null,null,null,null,null,null,null,null,null,null,null,null,null,null,null,null,null,null,null,null,null,null,null,null,null,null,null,null,null,null,null,null,null,null,null,null,null,null,null,null,null,null,null,null,null,0]
["      3.5.4. Documentaţiile tehnice necesare în vederea obţinerii avizelor/\n                acordurilor/autorizaţiilor",null,null,null,null,null,null,null,null,null,null,null,null,null,null,null,null,null,null,null,null,null,null,null,null,null,null,null,null,null,null,null,null,null,null,null,null,null,null,null,null,null,null,null,null,null,null,null,null,null,null,null,0]
["      3.5.5. Verificarea tehnică de calitate a proiectului tehnic şi a detaliilor de execuţie",null,null,null,null,null,null,null,null,null,null,null,null,null,null,null,null,null,null,null,null,null,null,null,null,null,null,null,null,null,null,null,null,null,null,null,null,null,null,null,null,null,null,null,null,null,null,null,null,null,null,null,0]
["      3.5.6. Proiect tehnic şi detalii de execuţie",null,null,null,null,null,null,null,null,null,null,null,null,null,null,null,null,null,null,null,null,null,null,null,null,null,null,null,null,null,null,null,null,null,null,null,null,null,null,null,null,null,null,null,null,null,null,null,null,null,null,null,0]
["3.6 Organizarea procedurilor de achiziţie",null,null,null,null,null,null,null,null,null,null,null,null,null,null,null,null,null,null,null,null,null,null,null,null,null,null,null,null,null,null,null,null,null,null,null,null,null,null,null,null,null,null,null,null,null,null,null,null,null,null,null,0]
["3.7 Consultanţă",null,null,null,null,null,null,null,null,null,null,null,null,null,null,null,null,null,null,null,null,null,null,null,null,null,null,null,null,null,null,null,null,null,null,{"$f":"AJ501","v":0},null,null,null,null,null,null,null,null,{"$f":"AS501+AS502","v":0},null,null,null,null,null,null,null,0]
["      3.7.1 Managementul de proiect pentru obiectivul de investiţii",null,null,null,null,null,null,null,null,null,null,null,null,null,null,null,null,null,null,null,null,null,null,null,null,null,null,null,null,null,null,null,null,null,null,null,null,null,null,null,null,null,null,null,null,null,null,null,null,null,null,null,0]
["      3.7.2 Auditul financiar",null,null,null,null,null,null,null,null,null,null,null,null,null,null,null,null,null,null,null,null,null,null,null,null,null,null,null,null,null,null,null,null,null,null,null,null,null,null,null,null,null,null,null,null,null,null,null,null,null,null,null,0]
["3.8 Asistenţă Tehnică",null,null,null,null,null,null,null,null,null,null,null,null,null,null,null,null,null,null,null,null,null,null,null,null,null,null,null,null,null,null,null,null,null,null,{"$f":"AJ504+AJ507","v":0},null,null,null,null,null,null,null,null,{"$f":"AS504+AS507","v":0},null,null,null,null,null,null,null,0]
["      3.8.1 Asistenţă Tehnică din partea proiectantului",null,null,null,null,null,null,null,null,null,null,null,null,null,null,null,null,null,null,null,null,null,null,null,null,null,null,null,null,null,null,null,null,null,null,{"$f":"AJ505+AJ506","v":0},null,null,null,null,null,null,null,null,{"$f":"AS505+AS506","v":0},null,null,null,null,null,null,null,0]
["            3.8.1.1 pe perioada de execuţie a lucrărilor",null,null,null,null,null,null,null,null,null,null,null,null,null,null,null,null,null,null,null,null,null,null,null,null,null,null,null,null,null,null,null,null,null,null,null,null,null,null,null,null,null,null,null,null,null,null,null,null,null,null,null,0]
["            3.8.1.2 pentru participarea proiectantului la fazele incluse în programul de control al\n                        lucrărilor de execuţie, avizat de către Inspectoratul de Stat în Construcţii",null,null,null,null,null,null,null,null,null,null,null,null,null,null,null,null,null,null,null,null,null,null,null,null,null,null,null,null,null,null,null,null,null,null,null,null,null,null,null,null,null,null,null,null,null,null,null,null,null,null,null,0]
["      3.8.2 Dirigenţie de şantier",null,null,null,null,null,null,null,null,null,null,null,null,null,null,null,null,null,null,null,null,null,null,null,null,null,null,null,null,null,null,null,null,null,null,null,null,null,null,null,null,null,null,null,null,null,null,null,null,null,null,null,0]
["Verificare încadrare cheltuieli capitolul 3",null,null,null,null,null,null,null,null,null,null,null,null,null,null,null,null,null,null,null,null,null,null,null,null,null,null,null,null,null,null,null,{"$f":"AJ478+AJ483+AJ509","v":0},{"$f":"IF(AG508=0,0,AI508)","v":0},null,"verificarea se face in Totalizator"]
["Capitolul 4 Cheltuieli pentru investiţia de bază - total, din care:",null,null,null,null,null,null,null,null,null,null,null,null,null,null,null,null,null,null,null,null,null,null,null,null,null,null,null,null,null,null,null,null,null,null,{"$f":"AJ510+AJ517","v":0},null,null,null,null,null,null,null,null,{"$f":"AS510+AS517","v":0},null,null,null,null,null,null,null,{"$f":"SUM(AJ509:AZ509)","v":0}]
["A - Constructii şi lucrări de intervenţii - total, din care:",null,null,null,null,null,null,null,null,null,null,null,null,null,null,null,null,null,null,null,null,null,null,null,null,null,null,null,null,null,null,null,null,null,null,{"$f":"SUM(AJ511:AR516)","v":0},null,null,null,null,null,null,null,null,{"$f":"SUM(AS511:AZ516)","v":0},null,null,null,null,null,null,null,0]
["4.1 Construcţii şi instalaţii",null,null,null,null,null,null,null,null,null,null,null,null,null,null,null,null,null,null,null,null,null,null,null,null,null,null,null,null,null,null,null,null,null,null,null,null,null,null,null,null,null,null,null,null,null,null,null,null,null,null,null,0]
["4.2 Montaj utilaje, echipamente tehnologice şi funcţionale",null,null,null,null,null,null,null,null,null,null,null,null,null,null,null,null,null,null,null,null,null,null,null,null,null,null,null,null,null,null,null,null,null,null,null,null,null,null,null,null,null,null,null,null,null,null,null,null,null,null,null,0]
["4.3 Utilaje, echipamente tehnologice şi funcţionale care necesită montaj",null,null,null,null,null,null,null,null,null,null,null,null,null,null,null,null,null,null,null,null,null,null,null,null,null,null,null,null,null,null,null,null,null,null,null,null,null,null,null,null,null,null,null,null,null,null,null,null,null,null,null,0]
["4.4 Utilaje, echipamente tehnologice şi funcţionale care nu necesită montaj şi echipamente",null,null,null,null,null,null,null,null,null,null,null,null,null,null,null,null,null,null,null,null,null,null,null,null,null,null,null,null,null,null,null,null,null,null,null,null,null,null,null,null,null,null,null,null,null,null,null,null,null,null,null,0]
["4.5 Dotări",null,null,null,null,null,null,null,null,null,null,null,null,null,null,null,null,null,null,null,null,null,null,null,null,null,null,null,null,null,null,null,null,null,null,null,null,null,null,null,null,null,null,null,null,null,null,null,null,null,null,null,0]
["4.6 Active necorporale",null,null,null,null,null,null,null,null,null,null,null,null,null,null,null,null,null,null,null,null,null,null,null,null,null,null,null,null,null,null,null,null,null,null,null,null,null,null,null,null,null,null,null,null,null,null,null,null,null,null,null,0]
["B - Cheltuieli pentru investitii în culturi/plantaţii",null,null,null,null,null,null,null,null,null,null,null,null,null,null,null,null,null,null,null,null,null,null,null,null,null,null,null,null,null,null,null,null,null,null,{"$f":"SUM(AJ518:AR522)","v":0},null,null,null,null,null,null,null,null,{"$f":"SUM(AS518:AZ522)","v":0},null,null,null,null,null,null,null,0]
["Subcapitol 1 - Lucrări de pregătire a terenului",null,null,null,null,null,null,null,null,null,null,null,null,null,null,null,null,null,null,null,null,null,null,null,null,null,null,null,null,null,null,null,null,null,null,null,null,null,null,null,null,null,null,null,null,null,null,null,null,null,null,null,0]
["Subcapitol 2 - Infiinţarea plantaţiei",null,null,null,null,null,null,null,null,null,null,null,null,null,null,null,null,null,null,null,null,null,null,null,null,null,null,null,null,null,null,null,null,null,null,null,null,null,null,null,null,null,null,null,null,null,null,null,null,null,null,null,0]
["Subcapitol 3 - Intreţinere plantaţie în anul 1",null,null,null,null,null,null,null,null,null,null,null,null,null,null,null,null,null,null,null,null,null,null,null,null,null,null,null,null,null,null,null,null,null,null,null,null,null,null,null,null,null,null,null,null,null,null,null,null,null,null,null,0]
["Subcapitol 4 - Intreţinere plantaţie în anul 2",null,null,null,null,null,null,null,null,null,null,null,null,null,null,null,null,null,null,null,null,null,null,null,null,null,null,null,null,null,null,null,null,null,null,null,null,null,null,null,null,null,null,null,null,null,null,null,null,null,null,null,0]
["Subcapitol 5 - Instalat sistem susţinere şi împrejmuire",null,null,null,null,null,null,null,null,null,null,null,null,null,null,null,null,null,null,null,null,null,null,null,null,null,null,null,null,null,null,null,null,null,null,null,null,null,null,null,null,null,null,null,null,null,null,null,null,null,null,null,0]
["Capitolul 5 Alte cheltuieli - total, din care:",null,null,null,null,null,null,null,null,null,null,null,null,null,null,null,null,null,null,null,null,null,null,null,null,null,null,null,null,null,null,null,null,null,null,{"$f":"AJ524+AJ527+AJ533","v":0},null,null,null,null,null,null,null,null,{"$f":"AS524+AS527+AS533+AS534","v":0},null,null,null,null,null,null,null,0]
["5.1 Organizare de şantier",null,null,null,null,null,null,null,null,null,null,null,null,null,null,null,null,null,null,null,null,null,null,null,null,null,null,null,null,null,null,null,null,null,null,{"$f":"SUM(AJ525:AR526)","v":0},null,null,null,null,null,null,null,null,{"$f":"SUM(AS525:AZ526)","v":0},null,null,null,null,null,null,null,0]
["      5.1.1 lucrări de construcţii şi instalaţii aferente organizării de şantier",null,null,null,null,null,null,null,null,null,null,null,null,null,null,null,null,null,null,null,null,null,null,null,null,null,null,null,null,null,null,null,null,null,null,null,null,null,null,null,null,null,null,null,null,null,null,null,null,null,null,null,0]
["      5.1.2 cheltuieli conexe orgănizării şantierului",null,null,null,null,null,null,null,null,null,null,null,null,null,null,null,null,null,null,null,null,null,null,null,null,null,null,null,null,null,null,null,null,null,null,null,null,null,null,null,null,null,null,null,null,null,null,null,null,null,null,null,0]
["5.2 Comisioane, taxe, costul creditului",null,null,null,null,null,null,null,null,null,null,null,null,null,null,null,null,null,null,null,null,null,null,null,null,null,null,null,null,null,null,null,null,null,null,{"$f":"SUM(AJ528:AR532)","v":0},null,null,null,null,null,null,null,null,{"$f":"SUM(AS528:AZ532)","v":0},null,null,null,null,null,null,null,0]
["      5.2.1 Comisioanele şi dobânzile aferente creditului băncii finanţatoare",null,null,null,null,null,null,null,null,null,null,null,null,null,null,null,null,null,null,null,null,null,null,null,null,null,null,null,null,null,null,null,null,null,null,null,null,null,null,null,null,null,null,null,null,null,null,null,null,null,null,null,0]
["      5.2.2 Cota aferentă ISC pentru controlul calităţii lucrărilor de construcţii",null,null,null,null,null,null,null,null,null,null,null,null,null,null,null,null,null,null,null,null,null,null,null,null,null,null,null,null,null,null,null,null,null,null,null,null,null,null,null,null,null,null,null,null,null,null,null,null,null,null,null,0]
["      5.2.3 Cota aferentă ISC pentru controlul statului în amenajarea teritoriului, urbanism şi\n               pentru autorizarea lucrărilor de construcţii",null,null,null,null,null,null,null,null,null,null,null,null,null,null,null,null,null,null,null,null,null,null,null,null,null,null,null,null,null,null,null,null,null,null,null,null,null,null,null,null,null,null,null,null,null,null,null,null,null,null,null,0]
["      5.2.4 Cota aferentă Casei Sociale a Constructorilor - CSC",null,null,null,null,null,null,null,null,null,null,null,null,null,null,null,null,null,null,null,null,null,null,null,null,null,null,null,null,null,null,null,null,null,null,null,null,null,null,null,null,null,null,null,null,null,null,null,null,null,null,null,0]
["      5.2.5 Taxe pentru acorduri, avize conforme şi autorizaţia de construire/ desfiinţare",null,null,null,null,null,null,null,null,null,null,null,null,null,null,null,null,null,null,null,null,null,null,null,null,null,null,null,null,null,null,null,null,null,null,null,null,null,null,null,null,null,null,null,null,null,null,null,null,null,null,null,0]
["5.3 Cheltuieli diverse şi neprevăzute",null,null,null,null,null,null,null,null,null,null,null,null,null,null,null,null,null,null,null,null,null,null,null,null,null,null,null,null,null,null,null,null,null,null,null,null,null,null,null,null,null,null,null,null,null,null,null,null,null,null,null,0]
["5.4 Cheltuieli pentru informare şi publicitate",null,null,null,null,null,null,null,null,null,null,null,null,null,null,null,null,null,null,null,null,null,null,null,null,null,null,null,null,null,null,null,null,null,null,null,null,null,null,null,null,null,null,null,null,null,null,null,null,null,null,null,0]
["Procent cheltuieli diverse şi neprevăzute"]
["Capitolul 6 Cheltuieli pentru probe tehnologice si teste - total, din care:",null,null,null,null,null,null,null,null,null,null,null,null,null,null,null,null,null,null,null,null,null,null,null,null,null,null,null,null,null,null,null,null,null,null,{"$f":"SUM(AJ537:AR538)","v":0},null,null,null,null,null,null,null,null,{"$f":"SUM(AS537:AZ538)","v":0},null,null,null,null,null,null,null,{"$f":"SUM(AJ536:AZ536)","v":0}]
["6.1 Pregătirea personalului de exploatare",null,null,null,null,null,null,null,null,null,null,null,null,null,null,null,null,null,null,null,null,null,null,null,null,null,null,null,null,null,null,null,null,null,null,null,null,null,null,null,null,null,null,null,null,null,null,null,null,null,null,null,{"$f":"SUM(AJ537:AZ537)","v":0}]
["6.2 Probe tehnologice şi teste",null,null,null,null,null,null,null,null,null,null,null,null,null,null,null,null,null,null,null,null,null,null,null,null,null,null,null,null,null,null,null,null,null,null,null,null,null,null,null,null,null,null,null,null,null,null,null,null,null,null,null,{"$f":"SUM(AJ538:AZ538)","v":0}]
["TOTAL GENERAL",null,null,null,null,null,null,null,null,null,null,null,null,null,null,null,null,null,null,null,null,null,null,null,null,null,null,null,null,null,null,null,null,null,null,{"$f":"AJ478+AJ483+AJ484+AJ509+AJ523+AJ536","v":0},null,null,null,null,null,null,null,null,{"$f":"AS478+AS483+AS484+AS509+AS523+AS536","v":0},null,null,null,null,null,null,null,{"$f":"SUM(AJ539:AZ539)","v":0}]
["Verificare actualizare",null,null,null,null,null,null,null,null,null,null,null,null,null,null,null,null,null,null,null,null,null,null,null,null,null,null,null,null,null,null,{"$f":"AJ541*100/AJ539","v":{"$error":"#DIV/0!"}},null,null,{"$f":"IF(AJ539=0,0,AF540)","v":0},{"$f":"IF(AI540<=5,\"actualizare mai mică de 5% din valoarea eligibila\",\"actualizare mai mare de 5% din valoarea eligibila\")","v":"actualizare mai mică de 5% din valoarea eligibila"}]
["ACTUALIZARE Cheltuieli Eligibile (max 5%)",null,null,null,null,null,null,null,null,null,null,null,null,null,null,null,null,null,null,null,null,null,null,null,null,null,null,null,null,null,null,null,null,null,null,null,null,null,null,null,null,null,null,null,null,null,null,null,null,null,null,null,{"$f":"SUM(AJ541:AZ541)","v":0}]
["TOTAL GENERAL CU ACTUALIZARE",null,null,null,null,null,null,null,null,null,null,null,null,null,null,null,null,null,null,null,null,null,null,null,null,null,null,null,null,null,null,null,null,null,null,{"$f":"AJ539+AJ541","v":0},null,null,null,null,null,null,null,null,{"$f":"AS539","v":0},null,null,null,null,null,null,null,{"$f":"SUM(AJ542:AZ542)","v":0}]
["Valoare TVA",null,null,null,null,null,null,null,null,null,null,null,null,null,null,null,null,null,null,null,null,null,null,null,null,null,null,null,null,null,null,null,null,null,null,null,null,null,null,null,null,null,null,null,null,null,null,null,null,null,null,null,{"$f":"SUM(AJ543:AZ543)","v":0}]
["TOTAL GENERAL inclusiv TVA",null,null,null,null,null,null,null,null,null,null,null,null,null,null,null,null,null,null,null,null,null,null,null,null,null,null,null,null,null,null,null,null,null,null,{"$f":"BA542+BA543","v":0}]
[null,null,null,null,null,null,null,null,null,null,null,null,null,null,null,null,null,null,null,null,null,null,null,null,null,null,null,null,null,null,null,null,null,null,null,"LEI",null,null,null,null,null,null,null,null,"EURO"]
["VALOARE TOTALĂ",null,null,null,null,null,null,null,null,null,null,null,null,null,null,null,null,null,null,null,null,null,null,null,null,null,null,null,null,null,null,null,null,null,null,{"$f":"AS546*Z472","v":0},null,null,null,null,null,null,null,null,{"$f":"AJ544","v":0}]
["VALOARE ELIGIBILĂ",null,null,null,null,null,null,null,null,null,null,null,null,null,null,null,null,null,null,null,null,null,null,null,null,null,null,null,null,null,null,null,null,null,null,{"$f":"AS547*Z472","v":0},null,null,null,null,null,null,null,null,{"$f":"AJ542+AJ543","v":0}]
["VALOARE NEELIGIBILĂ",null,null,null,null,null,null,null,null,null,null,null,null,null,null,null,null,null,null,null,null,null,null,null,null,null,null,null,null,null,null,null,null,null,null,{"$f":"AS548*Z472","v":0},null,null,null,null,null,null,null,null,{"$f":"AS542+AS543","v":0}]
["Plan Financiar",null,null,null,null,null,null,null,null,null,null,null,null,null,null,null,null,null,null,null,null,null,null,null,null,null,null,null,null,null,null,null,null,null,null,"Cheltuieli eligibile EURO",null,null,null,null,null,null,null,null,"Cheltuieli neeligibile EURO",null,null,null,null,null,null,null,"Total"]
["Ajutor public nerambursabil (contribuţie UE şi cofinanţare naţională)",null,null,null,null,null,null,null,null,null,null,null,null,null,null,null,null,null,null,null,null,null,null,null,null,null,null,null,null,null,null,null,null,null,null,null,null,null,null,null,null,null,null,null,null,null,null,null,null,null,null,null,{"$f":"SUM(AJ550:AZ550)","v":0}]
["Cofinantare privata, din care:",null,null,null,null,null,null,null,null,null,null,null,null,null,null,null,null,null,null,null,null,null,null,null,null,null,null,null,null,null,null,null,null,null,null,{"$f":"SUM(AJ552:AR554)","v":0},null,null,null,null,null,null,null,null,{"$f":"SUM(AS552:AZ554)","v":0},null,null,null,null,null,null,null,0]
[null,null,null,null,null,null,null,null,null,null,null,null,null,null,null,"- contributia in natura",null,null,null,null,null,null,null,null,null,null,null,null,null,null,null,null,null,null,null,null,null,null,null,null,null,null,null,null,null,null,null,null,null,null,null,null,0]
[null,null,null,null,null,null,null,null,null,null,null,null,null,null,null,"- autofinanțare",null,null,null,null,null,null,null,null,null,null,null,null,null,null,null,null,null,null,null,null,null,null,null,null,null,null,null,null,null,null,null,null,null,null,null,null,0]
[null,null,null,null,null,null,null,null,null,null,null,null,null,null,null,"- împrumuturi",null,null,null,null,null,null,null,null,null,null,null,null,null,null,null,null,null,null,null,null,null,null,null,null,null,null,null,null,null,null,null,null,null,null,null,null,0]
["TOTAL PROIECT",null,null,null,null,null,null,null,null,null,null,null,null,null,null,null,null,null,null,null,null,null,null,null,null,null,null,null,null,null,null,null,null,null,null,{"$f":"AJ550+AJ551","v":0},null,null,null,null,null,null,null,null,{"$f":"AS551","v":0},null,null,null,null,null,null,null,0]
["Procent contribuţie publică",null,null,null,null,null,null,null,null,null,null,null,null,null,null,null,null,null,null,null,null,null,null,null,null,null,null,null,null,null,null,null,null,{"$f":"AJ550*100/AJ555","v":{"$error":"#DIV/0!"}},{"$f":"IF(AJ555=0,0,AH556)","v":0},{"$f":"AI556","v":0},null,null,null,null,null,null,null,"%"]
["Avans solicitat"]
["Procent avans solicitat ca procent din ajutorul public nerambursabil",null,null,null,null,null,null,null,null,null,null,null,null,null,null,null,null,null,null,null,null,null,null,null,null,null,null,null,null,null,null,null,null,null,{"$f":"AJ557*100/AJ550","v":{"$error":"#DIV/0!"}},{"$f":"IF(AJ550=0,0,AI558)","v":0},null,null,null,null,null,null,null,null,{"$f":"IF(AJ558<=50,\"Suma avans mai mica de 50% din ajutorul public\",\"Suma avans mai mare de 50% din ajutorul public\")","v":"Suma avans mai mica de 50% din ajutorul public"}]
[null,"BUGET INDICATIV TOTALIZATOR HG 907"]
["MINISTERUL AGRICULTURII ŞI DEZVOLTĂRII RURALE"]
["AGENŢIA PENTRU FINANŢAREA INVESTIŢIILOR RURALE"]
[]
[]
[null,null,null,null,null,null,null,null,null,null,null,null,null,null,null,null,null,null,null,"Curs EURO",null,null,null,null,null,null,null,null,null,null,null,null,null,null,null,"Data întocmirii Studiului de Fezabilitate"]
[]
["Submăsura",null,null,null,null,null,null,null,null,null,null,null,null,null,null,null,null,null,null,null,null,null,null,null,null,null,null,null,null,null,null,null,null,null,null,"M2/2A"]
["Denumirea capitolelor de cheltuieli",null,null,null,null,null,null,null,null,null,null,null,null,null,null,null,null,null,null,null,null,null,null,null,null,null,null,null,null,null,null,null,null,null,null,"Cheltuieli eligibile",null,null,null,null,null,null,null,null,"Cheltuieli neeligibile",null,null,null,null,null,null,null,"Total"]
[null,null,null,null,null,null,null,null,null,null,null,null,null,null,null,null,null,null,null,null,null,null,null,null,null,null,null,null,null,null,null,null,null,null,null,"EURO",null,null,null,null,null,null,null,null,"EURO",null,null,null,null,null,null,null,"EURO"]
[1,null,null,null,null,null,null,null,null,null,null,null,null,null,null,null,null,null,null,null,null,null,null,null,null,null,null,null,null,null,null,null,null,null,null,2,null,null,null,null,null,null,null,null,3,null,null,null,null,null,null,null,4]
["Capitolul 1 Cheltuieli pentru obtinerea şi amenajarea terenului - total, din care:",null,null,null,null,null,null,null,null,null,null,null,null,null,null,null,null,null,null,null,null,null,null,null,null,null,null,null,null,null,null,null,null,null,null,{"$f":"SUM(AJ572:AR574)","v":0},null,null,null,null,null,null,null,null,{"$f":"SUM(AS571:AZ574)","v":0},null,null,null,null,null,null,null,{"$f":"SUM(AJ570:AZ570)","v":0}]
["1.1 Obţinerea terenului",null,null,null,null,null,null,null,null,null,null,null,null,null,null,null,null,null,null,null,null,null,null,null,null,null,null,null,null,null,null,null,null,null,null,null,null,null,null,null,null,null,null,null,{"$f":"AS294+AS387+AS479","v":0},null,null,null,null,null,null,null,{"$f":"SUM(AJ571:AZ571)","v":0}]
["1.2 Amenajarea terenului",null,null,null,null,null,null,null,null,null,null,null,null,null,null,null,null,null,null,null,null,null,null,null,null,null,null,null,null,null,null,null,null,null,null,{"$f":"AJ295+AJ388+AJ480","v":0},null,null,null,null,null,null,null,null,{"$f":"AS295+AS388+AS480","v":0},null,null,null,null,null,null,null,0]
["1.3 Amenajari pentru protecţia mediului şi aducerea la starea iniţială",null,null,null,null,null,null,null,null,null,null,null,null,null,null,null,null,null,null,null,null,null,null,null,null,null,null,null,null,null,null,null,null,null,null,{"$f":"AJ296+AJ389+AJ481","v":0},null,null,null,null,null,null,null,null,{"$f":"AS296+AS389+AS481","v":0},null,null,null,null,null,null,null,0]
["1.4 Cheltuieli pentru relocarea/protecţia utilităţilor",null,null,null,null,null,null,null,null,null,null,null,null,null,null,null,null,null,null,null,null,null,null,null,null,null,null,null,null,null,null,null,null,null,null,{"$f":"AJ297+AJ390+AJ482","v":0},null,null,null,null,null,null,null,null,{"$f":"AS297+AS390+AS482","v":0},null,null,null,null,null,null,null,0]
["Capitolul 2 Cheltuieli pentru asigurarea utilităţilor necesare obiectivului de investiţii",null,null,null,null,null,null,null,null,null,null,null,null,null,null,null,null,null,null,null,null,null,null,null,null,null,null,null,null,null,null,null,null,null,null,{"$f":"AJ298+AJ391+AJ483","v":0},null,null,null,null,null,null,null,null,{"$f":"AS298+AS391+AS483","v":0},null,null,null,null,null,null,null,0]
["Capitolul 3 Cheltuieli pentru proiectare şi asistenţă tehnică - total, din care:",null,null,null,null,null,null,null,null,null,null,null,null,null,null,null,null,null,null,null,null,null,null,null,null,null,null,null,null,null,null,null,null,null,null,{"$f":"AJ577+AJ581+AJ582+AJ583+AJ584+AJ591+AJ592+AJ595","v":0},null,null,null,null,null,null,null,null,{"$f":"AS577+AS581+AS582+AS583+AS584+AS591+AS592+AS595","v":0},null,null,null,null,null,null,null,0]
["3.1 Studii",null,null,null,null,null,null,null,null,null,null,null,null,null,null,null,null,null,null,null,null,null,null,null,null,null,null,null,null,null,null,null,null,null,null,{"$f":"AJ578+AJ579+AJ580","v":0},null,null,null,null,null,null,null,null,{"$f":"AS578+AS579+AS580","v":0},null,null,null,null,null,null,null,0]
["       3.1.1 Studii de teren",null,null,null,null,null,null,null,null,null,null,null,null,null,null,null,null,null,null,null,null,null,null,null,null,null,null,null,null,null,null,null,null,null,null,{"$f":"AJ301+AJ394+AJ486","v":0},null,null,null,null,null,null,null,null,{"$f":"AS301+AS394+AS486","v":0},null,null,null,null,null,null,null,0]
["       3.1.2 Raport privind impactul asupra mediului",null,null,null,null,null,null,null,null,null,null,null,null,null,null,null,null,null,null,null,null,null,null,null,null,null,null,null,null,null,null,null,null,null,null,0,null,null,null,null,null,null,null,null,0,null,null,null,null,null,null,null,0]
["       3.1.3 Alte studii specifice",null,null,null,null,null,null,null,null,null,null,null,null,null,null,null,null,null,null,null,null,null,null,null,null,null,null,null,null,null,null,null,null,null,null,0,null,null,null,null,null,null,null,null,0,null,null,null,null,null,null,null,0]
["3.2 Documentaţii-suport şi cheltuieli pentru obţinerea de avize, acorduri şi autorizaţii",null,null,null,null,null,null,null,null,null,null,null,null,null,null,null,null,null,null,null,null,null,null,null,null,null,null,null,null,null,null,null,null,null,null,0,null,null,null,null,null,null,null,null,0,null,null,null,null,null,null,null,0]
["3.3 Expertizare tehnică",null,null,null,null,null,null,null,null,null,null,null,null,null,null,null,null,null,null,null,null,null,null,null,null,null,null,null,null,null,null,null,null,null,null,0,null,null,null,null,null,null,null,null,0,null,null,null,null,null,null,null,0]
["3.4 Certificarea performanţei energetice şi auditul energetic al clădirilor",null,null,null,null,null,null,null,null,null,null,null,null,null,null,null,null,null,null,null,null,null,null,null,null,null,null,null,null,null,null,null,null,null,null,0,null,null,null,null,null,null,null,null,0,null,null,null,null,null,null,null,0]
["3.5 Proiectare",null,null,null,null,null,null,null,null,null,null,null,null,null,null,null,null,null,null,null,null,null,null,null,null,null,null,null,null,null,null,null,null,null,null,{"$f":"SUM(AJ585:AR590)","v":0},null,null,null,null,null,null,null,null,{"$f":"SUM(AS585:AZ590)","v":0},null,null,null,null,null,null,null,0]
["      3.5.1 Temă de proiectare",null,null,null,null,null,null,null,null,null,null,null,null,null,null,null,null,null,null,null,null,null,null,null,null,null,null,null,null,null,null,null,null,null,null,0,null,null,null,null,null,null,null,null,0,null,null,null,null,null,null,null,0]
["      3.5.2 Studiu de prefezabilitate",null,null,null,null,null,null,null,null,null,null,null,null,null,null,null,null,null,null,null,null,null,null,null,null,null,null,null,null,null,null,null,null,null,null,0,null,null,null,null,null,null,null,null,0,null,null,null,null,null,null,null,0]
["      3.5.3. Studiu de fezabilitate/documentaţie de avizare a lucrărilor de intervenţii\n                şi deviz general",null,null,null,null,null,null,null,null,null,null,null,null,null,null,null,null,null,null,null,null,null,null,null,null,null,null,null,null,null,null,null,null,null,null,0,null,null,null,null,null,null,null,null,0,null,null,null,null,null,null,null,0]
["      3.5.4. Documentaţiile tehnice necesare în vederea obţinerii avizelor/\n                acordurilor/autorizaţiilor",null,null,null,null,null,null,null,null,null,null,null,null,null,null,null,null,null,null,null,null,null,null,null,null,null,null,null,null,null,null,null,null,null,null,0,null,null,null,null,null,null,null,null,0,null,null,null,null,null,null,null,0]
["      3.5.5. Verificarea tehnică de calitate a proiectului tehnic şi a detaliilor de execuţie",null,null,null,null,null,null,null,null,null,null,null,null,null,null,null,null,null,null,null,null,null,null,null,null,null,null,null,null,null,null,null,null,null,null,0,null,null,null,null,null,null,null,null,0,null,null,null,null,null,null,null,0]
["      3.5.6. Proiect tehnic şi detalii de execuţie",null,null,null,null,null,null,null,null,null,null,null,null,null,null,null,null,null,null,null,null,null,null,null,null,null,null,null,null,null,null,null,null,null,null,0,null,null,null,null,null,null,null,null,0,null,null,null,null,null,null,null,0]
["3.6 Organizarea procedurilor de achiziţie",null,null,null,null,null,null,null,null,null,null,null,null,null,null,null,null,null,null,null,null,null,null,null,null,null,null,null,null,null,null,null,null,null,null,null,null,null,null,null,null,null,null,null,0,null,null,null,null,null,null,null,0]
["3.7 Consultanţă",null,null,null,null,null,null,null,null,null,null,null,null,null,null,null,null,null,null,null,null,null,null,null,null,null,null,null,null,null,null,null,null,null,null,{"$f":"AJ593","v":0},null,null,null,null,null,null,null,null,{"$f":"AS593+AS594","v":0},null,null,null,null,null,null,null,0]
["      3.7.1 Managementul de proiect pentru obiectivul de investiţii",null,null,null,null,null,null,null,null,null,null,null,null,null,null,null,null,null,null,null,null,null,null,null,null,null,null,null,null,null,null,null,null,null,null,{"$f":"AJ316+AJ409+AJ501","v":0},null,null,null,null,null,null,null,null,0,null,null,null,null,null,null,null,0]
["      3.7.2 Auditul financiar",null,null,null,null,null,null,null,null,null,null,null,null,null,null,null,null,null,null,null,null,null,null,null,null,null,null,null,null,null,null,null,null,null,null,null,null,null,null,null,null,null,null,null,0,null,null,null,null,null,null,null,0]
["3.8 Asistenţă Tehnică",null,null,null,null,null,null,null,null,null,null,null,null,null,null,null,null,null,null,null,null,null,null,null,null,null,null,null,null,null,null,null,null,null,null,{"$f":"AJ596+AJ599","v":0},null,null,null,null,null,null,null,null,{"$f":"AS596+AS599","v":0},null,null,null,null,null,null,null,0]
["      3.8.1 Asistenţă Tehnică din partea proiectantului",null,null,null,null,null,null,null,null,null,null,null,null,null,null,null,null,null,null,null,null,null,null,null,null,null,null,null,null,null,null,null,null,null,null,{"$f":"AJ597+AJ598","v":0},null,null,null,null,null,null,null,null,{"$f":"AS597+AS598","v":0},null,null,null,null,null,null,null,0]
["           3.8.1.1 pe perioada de execuţie a lucrărilor",null,null,null,null,null,null,null,null,null,null,null,null,null,null,null,null,null,null,null,null,null,null,null,null,null,null,null,null,null,null,null,null,null,null,{"$f":"AJ320+AJ413+AJ505","v":0},null,null,null,null,null,null,null,null,{"$f":"AS320+AS413+AS505","v":0},null,null,null,null,null,null,null,0]
["           3.8.1.2 pentru participarea proiectantului la fazele incluse în programul de control al\n                       lucrărilor de execuţie, avizat de către Inspectoratul de Stat în Construcţii",null,null,null,null,null,null,null,null,null,null,null,null,null,null,null,null,null,null,null,null,null,null,null,null,null,null,null,null,null,null,null,null,null,null,{"$f":"AJ321+AJ414+AJ506","v":0},null,null,null,null,null,null,null,null,{"$f":"AS321+AS414+AS506","v":0},null,null,null,null,null,null,null,0]
["      3.8.2 Dirigenţie de şantier",null,null,null,null,null,null,null,null,null,null,null,null,null,null,null,null,null,null,null,null,null,null,null,null,null,null,null,null,null,null,null,null,null,null,{"$f":"AJ322+AJ415+AJ507","v":0},null,null,null,null,null,null,null,null,{"$f":"AS322+AS415+AS507","v":0},null,null,null,null,null,null,null,0]
["Verificare încadrare cheltuieli capitolul 3",null,null,null,null,null,null,null,null,null,null,null,null,null,null,null,null,null,null,null,null,null,null,null,null,null,null,null,null,null,null,null,{"$f":"AJ570+AJ575+AJ601","v":0},{"$f":"IF(AG600=0,0,AI600)","v":0}]
["Capitolul 4 Cheltuieli pentru investiţia de bază - total, din care:",null,null,null,null,null,null,null,null,null,null,null,null,null,null,null,null,null,null,null,null,null,null,null,null,null,null,null,null,null,null,null,null,null,null,{"$f":"AJ602+AJ609","v":0},null,null,null,null,null,null,null,null,{"$f":"AS602+AS609","v":0},null,null,null,null,null,null,null,{"$f":"SUM(AJ601:AZ601)","v":0}]
["A - Constructii şi lucrări de intervenţii - total, din care:",null,null,null,null,null,null,null,null,null,null,null,null,null,null,null,null,null,null,null,null,null,null,null,null,null,null,null,null,null,null,null,null,null,null,{"$f":"SUM(AJ603:AR608)","v":0},null,null,null,null,null,null,null,null,{"$f":"SUM(AS603:AZ608)","v":0},null,null,null,null,null,null,null,0]
["4.1 Construcţii şi instalaţii",null,null,null,null,null,null,null,null,null,null,null,null,null,null,null,null,null,null,null,null,null,null,null,null,null,null,null,null,null,null,null,null,null,null,{"$f":"AJ326+AJ419+AJ511","v":0},null,null,null,null,null,null,null,null,{"$f":"AS326+AS419+AS511","v":0},null,null,null,null,null,null,null,0]
["4.2 Montaj utilaje, echipamente tehnologice şi funcţionale",null,null,null,null,null,null,null,null,null,null,null,null,null,null,null,null,null,null,null,null,null,null,null,null,null,null,null,null,null,null,null,null,null,null,0,null,null,null,null,null,null,null,null,0,null,null,null,null,null,null,null,0]
["4.3 Utilaje, echipamente tehnologice şi funcţionale care necesită montaj",null,null,null,null,null,null,null,null,null,null,null,null,null,null,null,null,null,null,null,null,null,null,null,null,null,null,null,null,null,null,null,null,null,null,0,null,null,null,null,null,null,null,null,0,null,null,null,null,null,null,null,0]
["4.4 Utilaje, echipamente tehnologice şi funcţionale care nu necesită montaj\n      şi echipamente",null,null,null,null,null,null,null,null,null,null,null,null,null,null,null,null,null,null,null,null,null,null,null,null,null,null,null,null,null,null,null,null,null,null,0,null,null,null,null,null,null,null,null,0,null,null,null,null,null,null,null,0]
["4.5 Dotări",null,null,null,null,null,null,null,null,null,null,null,null,null,null,null,null,null,null,null,null,null,null,null,null,null,null,null,null,null,null,null,null,null,null,0,null,null,null,null,null,null,null,null,0,null,null,null,null,null,null,null,0]
["4.6 Active necorporale",null,null,null,null,null,null,null,null,null,null,null,null,null,null,null,null,null,null,null,null,null,null,null,null,null,null,null,null,null,null,null,null,null,null,0,null,null,null,null,null,null,null,null,0,null,null,null,null,null,null,null,0]
["B - Cheltuieli pentru investitii în culturi/plantaţii",null,null,null,null,null,null,null,null,null,null,null,null,null,null,null,null,null,null,null,null,null,null,null,null,null,null,null,null,null,null,null,null,null,null,{"$f":"SUM(AJ610:AR614)","v":0},null,null,null,null,null,null,null,null,{"$f":"SUM(AS610:AZ614)","v":0},null,null,null,null,null,null,null,0]
["Subcapitol 1 - Lucrări de pregătire a terenului",null,null,null,null,null,null,null,null,null,null,null,null,null,null,null,null,null,null,null,null,null,null,null,null,null,null,null,null,null,null,null,null,null,null,0,null,null,null,null,null,null,null,null,0,null,null,null,null,null,null,null,0]
["Subcapitol 2 - Infiinţarea plantaţiei",null,null,null,null,null,null,null,null,null,null,null,null,null,null,null,null,null,null,null,null,null,null,null,null,null,null,null,null,null,null,null,null,null,null,0,null,null,null,null,null,null,null,null,0,null,null,null,null,null,null,null,0]
["Subcapitol 3 - Intreţinere plantaţie în anul 1",null,null,null,null,null,null,null,null,null,null,null,null,null,null,null,null,null,null,null,null,null,null,null,null,null,null,null,null,null,null,null,null,null,null,null,null,null,null,null,null,null,null,null,0,null,null,null,null,null,null,null,0]
["Subcapitol 4 - Intreţinere plantaţie în anul 2",null,null,null,null,null,null,null,null,null,null,null,null,null,null,null,null,null,null,null,null,null,null,null,null,null,null,null,null,null,null,null,null,null,null,null,null,null,null,null,null,null,null,null,0,null,null,null,null,null,null,null,0]
["Subcapitol 5 - Instalat sistem susţinere şi împrejmuire",null,null,null,null,null,null,null,null,null,null,null,null,null,null,null,null,null,null,null,null,null,null,null,null,null,null,null,null,null,null,null,null,null,null,{"$f":"AJ337+AJ430+AJ522","v":0},null,null,null,null,null,null,null,null,0,null,null,null,null,null,null,null,0]
["Capitolul 5 Alte cheltuieli - total, din care:",null,null,null,null,null,null,null,null,null,null,null,null,null,null,null,null,null,null,null,null,null,null,null,null,null,null,null,null,null,null,null,null,null,null,{"$f":"AJ616+AJ619+AJ625","v":0},null,null,null,null,null,null,null,null,{"$f":"AS616+AS619+AS625+AS626","v":0},null,null,null,null,null,null,null,0]
["5.1 Organizare de şantier",null,null,null,null,null,null,null,null,null,null,null,null,null,null,null,null,null,null,null,null,null,null,null,null,null,null,null,null,null,null,null,null,null,null,{"$f":"SUM(AJ617:AR618)","v":0},null,null,null,null,null,null,null,null,{"$f":"SUM(AS617:AZ618)","v":0},null,null,null,null,null,null,null,0]
["      5.1.1 lucrări de construcţii şi instalaţii aferente organizării de şantier",null,null,null,null,null,null,null,null,null,null,null,null,null,null,null,null,null,null,null,null,null,null,null,null,null,null,null,null,null,null,null,null,null,null,{"$f":"AJ340+AJ433+AJ525","v":0},null,null,null,null,null,null,null,null,{"$f":"AS340+AS433+AS525","v":0},null,null,null,null,null,null,null,0]
["      5.1.2 cheltuieli conexe orgănizării şantierului",null,null,null,null,null,null,null,null,null,null,null,null,null,null,null,null,null,null,null,null,null,null,null,null,null,null,null,null,null,null,null,null,null,null,{"$f":"AJ341+AJ434+AJ526","v":0},null,null,null,null,null,null,null,null,0,null,null,null,null,null,null,null,0]
["5.2 Comisioane, taxe, costul creditului",null,null,null,null,null,null,null,null,null,null,null,null,null,null,null,null,null,null,null,null,null,null,null,null,null,null,null,null,null,null,null,null,null,null,{"$f":"AJ621+AJ622+AJ624","v":0},null,null,null,null,null,null,null,null,{"$f":"AS620+AS621+AS622+AS623+AS624","v":0},null,null,null,null,null,null,null,0]
["      5.2.1 Comisioanele şi dobânzile aferente creditului băncii finanţatoare",null,null,null,null,null,null,null,null,null,null,null,null,null,null,null,null,null,null,null,null,null,null,null,null,null,null,null,null,null,null,null,null,null,null,null,null,null,null,null,null,null,null,null,0,null,null,null,null,null,null,null,0]
["      5.2.2 Cota aferentă ISC pentru controlul calităţii lucrărilor de construcţii",null,null,null,null,null,null,null,null,null,null,null,null,null,null,null,null,null,null,null,null,null,null,null,null,null,null,null,null,null,null,null,null,null,null,{"$f":"AJ344+AJ437+AJ529","v":0},null,null,null,null,null,null,null,null,0,null,null,null,null,null,null,null,0]
["      5.2.3 Cota aferentă ISC pentru controlul statului în amenajarea teritoriului,urbanism şi\n               pentru autorizarea lucrărilor de construcţii",null,null,null,null,null,null,null,null,null,null,null,null,null,null,null,null,null,null,null,null,null,null,null,null,null,null,null,null,null,null,null,null,null,null,{"$f":"AJ345+AJ438+AJ530","v":0},null,null,null,null,null,null,null,null,0,null,null,null,null,null,null,null,0]
["      5.2.4 Cota aferentă Casei Sociale a Constructorilor - CSC",null,null,null,null,null,null,null,null,null,null,null,null,null,null,null,null,null,null,null,null,null,null,null,null,null,null,null,null,null,null,null,null,null,null,null,null,null,null,null,null,null,null,null,0,null,null,null,null,null,null,null,0]
["      5.2.5 Taxe pentru acorduri, avize conforme şi autorizaţia de construire/ desfiinţare",null,null,null,null,null,null,null,null,null,null,null,null,null,null,null,null,null,null,null,null,null,null,null,null,null,null,null,null,null,null,null,null,null,null,{"$f":"AJ347+AJ440+AJ532","v":0},null,null,null,null,null,null,null,null,0,null,null,null,null,null,null,null,0]
["5.3 Cheltuieli diverse şi neprevăzute",null,null,null,null,null,null,null,null,null,null,null,null,null,null,null,null,null,null,null,null,null,null,null,null,null,null,null,null,null,null,null,null,null,null,{"$f":"AJ348+AJ441+AJ533","v":0},null,null,null,null,null,null,null,null,0,null,null,null,null,null,null,null,0]
["5.4 Cheltuieli pentru informare şi publicitate",null,null,null,null,null,null,null,null,null,null,null,null,null,null,null,null,null,null,null,null,null,null,null,null,null,null,null,null,null,null,null,null,null,null,null,null,null,null,null,null,null,null,null,0,null,null,null,null,null,null,null,0]
["Procent cheltuieli diverse şi neprevăzute"]
["Capitolul 6 Cheltuieli pentru probe tehnologice si teste- total, din care:",null,null,null,null,null,null,null,null,null,null,null,null,null,null,null,null,null,null,null,null,null,null,null,null,null,null,null,null,null,null,null,null,null,null,{"$f":"SUM(AJ629:AR630)","v":0},null,null,null,null,null,null,null,null,{"$f":"SUM(AS629:AZ630)","v":0},null,null,null,null,null,null,null,{"$f":"SUM(AJ628:AZ628)","v":0}]
["6.1 Pregătirea personalului de exploatare",null,null,null,null,null,null,null,null,null,null,null,null,null,null,null,null,null,null,null,null,null,null,null,null,null,null,null,null,null,null,null,null,null,null,null,null,null,null,null,null,null,null,null,{"$f":"AS352+AS445+AS537","v":0},null,null,null,null,null,null,null,{"$f":"SUM(AJ629:AZ629)","v":0}]
["6.2 Probe tehnologice şi teste",null,null,null,null,null,null,null,null,null,null,null,null,null,null,null,null,null,null,null,null,null,null,null,null,null,null,null,null,null,null,null,null,null,null,{"$f":"AJ353+AJ446+AJ538","v":0},null,null,null,null,null,null,null,null,{"$f":"AS353+AS446+AS538","v":0},null,null,null,null,null,null,null,{"$f":"SUM(AJ630:AZ630)","v":0}]
["TOTAL GENERAL",null,null,null,null,null,null,null,null,null,null,null,null,null,null,null,null,null,null,null,null,null,null,null,null,null,null,null,null,null,null,null,null,null,null,{"$f":"AJ570+AJ575+AJ576+AJ601+AJ615+AJ628","v":0},null,null,null,null,null,null,null,null,{"$f":"AS570+AS575+AS576+AS601+AS615+AS628","v":0},null,null,null,null,null,null,null,{"$f":"SUM(AJ631:AZ631)","v":0}]
["Verificare actualizare",null,null,null,null,null,null,null,null,null,null,null,null,null,null,null,null,null,null,null,null,null,null,null,null,null,null,null,null,null,null,{"$f":"AJ633*100/AJ631","v":{"$error":"#DIV/0!"}},null,null,{"$f":"IF(AJ631=0,0,AF632)","v":0},{"$f":"IF(AI632<=5,\"actualizare mai mică de 5% din valoarea eligibila\",\"actualizare mai mare de 5% din valoarea eligibila\")","v":"actualizare mai mică de 5% din valoarea eligibila"}]
["ACTUALIZARE Cheltuieli Eligibile (max 5%)",null,null,null,null,null,null,null,null,null,null,null,null,null,null,null,null,null,null,null,null,null,null,null,null,null,null,null,null,null,null,null,null,null,null,{"$f":"AJ356+AJ449+AJ541","v":0},null,null,null,null,null,null,null,null,null,null,null,null,null,null,null,null,{"$f":"SUM(AJ633:AZ633)","v":0}]
["TOTAL GENERAL CU ACTUALIZARE",null,null,null,null,null,null,null,null,null,null,null,null,null,null,null,null,null,null,null,null,null,null,null,null,null,null,null,null,null,null,null,null,null,null,{"$f":"AJ631+AJ633","v":0},null,null,null,null,null,null,null,null,{"$f":"AS631","v":0},null,null,null,null,null,null,null,{"$f":"SUM(AJ634:AZ634)","v":0}]
["Valoare TVA",null,null,null,null,null,null,null,null,null,null,null,null,null,null,null,null,null,null,null,null,null,null,null,null,null,null,null,null,null,null,null,null,null,null,{"$f":"AJ358+AJ451+AJ543","v":0},null,null,null,null,null,null,null,null,{"$f":"AS358+AS451+AS543","v":0},null,null,null,null,null,null,null,{"$f":"SUM(AJ635:AZ635)","v":0}]
["TOTAL GENERAL inclusiv TVA",null,null,null,null,null,null,null,null,null,null,null,null,null,null,null,null,null,null,null,null,null,null,null,null,null,null,null,null,null,null,null,null,null,null,{"$f":"BA634+BA635","v":0}]
[null,null,null,null,null,null,null,null,null,null,null,null,null,null,null,null,null,null,null,null,null,null,null,null,null,null,null,null,null,null,null,null,null,null,null,"LEI",null,null,null,null,null,null,null,null,"EURO"]
["VALOARE TOTALĂ",null,null,null,null,null,null,null,null,null,null,null,null,null,null,null,null,null,null,null,null,null,null,null,null,null,null,null,null,null,null,null,null,null,null,{"$f":"AS638*Z564","v":0},null,null,null,null,null,null,null,null,{"$f":"AJ636","v":0}]
["VALOARE ELIGIBILĂ",null,null,null,null,null,null,null,null,null,null,null,null,null,null,null,null,null,null,null,null,null,null,null,null,null,null,null,null,null,null,null,null,null,null,{"$f":"AS639*Z564","v":0},null,null,null,null,null,null,null,null,{"$f":"AJ634+AJ635","v":0}]
["VALOARE NEELIGIBILĂ",null,null,null,null,null,null,null,null,null,null,null,null,null,null,null,null,null,null,null,null,null,null,null,null,null,null,null,null,null,null,null,null,null,null,{"$f":"AS640*Z564","v":0},null,null,null,null,null,null,null,null,{"$f":"AS634+AS635","v":0}]
["Plan Financiar",null,null,null,null,null,null,null,null,null,null,null,null,null,null,null,null,null,null,null,null,null,null,null,null,null,null,null,null,null,null,null,null,null,null,"Cheltuieli eligibile EURO",null,null,null,null,null,null,null,null,"Cheltuieli neeligibile EURO",null,null,null,null,null,null,null,"Total"]
["Ajutor public nerambursabil (contribuţie UE şi cofinanţare naţională)",null,null,null,null,null,null,null,null,null,null,null,null,null,null,null,null,null,null,null,null,null,null,null,null,null,null,null,null,null,null,null,null,null,null,{"$f":"AJ366+AJ458+AJ550","v":0},null,null,null,null,null,null,null,null,null,null,null,null,null,null,null,null,{"$f":"SUM(AJ642:AZ642)","v":0}]
["Cofinantare privata, din care:",null,null,null,null,null,null,null,null,null,null,null,null,null,null,null,null,null,null,null,null,null,null,null,null,null,null,null,null,null,null,null,null,null,null,{"$f":"AJ644+AJ645+AJ646","v":0},null,null,null,null,null,null,null,null,{"$f":"AS644+AS645+AS646","v":0},null,null,null,null,null,null,null,0]
[null,null,null,null,null,null,null,null,null,null,null,null,null,null,null,"- contributia in natura",null,null,null,null,null,null,null,null,null,null,null,null,null,null,null,null,null,null,null,{"$f":"AJ368+AJ460+AJ552","v":0},null,null,null,null,null,null,null,null,{"$f":"AS368+AS460+AS552","v":0},null,null,null,null,null,null,null,0]
[null,null,null,null,null,null,null,null,null,null,null,null,null,null,null,"- autofinanțare",null,null,null,null,null,null,null,null,null,null,null,null,null,null,null,null,null,null,null,{"$f":"AJ369+AJ461+AJ553","v":0},null,null,null,null,null,null,null,null,{"$f":"AS369+AS461+AS553","v":0},null,null,null,null,null,null,null,0]
[null,null,null,null,null,null,null,null,null,null,null,null,null,null,null,"- împrumuturi",null,null,null,null,null,null,null,null,null,null,null,null,null,null,null,null,null,null,null,{"$f":"AJ370+AJ462+AJ554","v":0},null,null,null,null,null,null,null,null,{"$f":"AS370+AS462+AS554","v":0},null,null,null,null,null,null,null,0]
["TOTAL PROIECT",null,null,null,null,null,null,null,null,null,null,null,null,null,null,null,null,null,null,null,null,null,null,null,null,null,null,null,null,null,null,null,null,null,null,{"$f":"AJ642+AJ643","v":0},null,null,null,null,null,null,null,null,{"$f":"AS643","v":0},null,null,null,null,null,null,null,0]
["Procent contribuţie publică",null,null,null,null,null,null,null,null,null,null,null,null,null,null,null,null,null,null,null,null,null,null,null,null,null,null,null,null,null,null,null,null,{"$f":"AJ642*100/AJ647","v":{"$error":"#DIV/0!"}},{"$f":"IF(AJ647=0,0,AH648)","v":0},{"$f":"AI648","v":0},null,null,null,null,null,null,null,"%"]
["Avans solicitat"]
["Procent avans solicitat ca procent din ajutorul public nerambursabil",null,null,null,null,null,null,null,null,null,null,null,null,null,null,null,null,null,null,null,null,null,null,null,null,null,null,null,null,null,null,null,null,null,{"$f":"AJ649*100/AJ642","v":{"$error":"#DIV/0!"}},{"$f":"IF(AJ642=0,0,AI650)","v":0},null,null,null,null,null,null,null,null,{"$f":"IF(AJ650<=50,\"Suma avans mai mica de 50% din ajutorul public\",\"Suma avans mai mare de 50% din ajutorul public\")","v":"Suma avans mai mica de 50% din ajutorul public"}]
[]
[null,null,null,null,null,null,null,"MINISTERUL AGRICULTURII ŞI DEZVOLTĂRII RURALE"]
[null,null,null,null,null,null,null,null,null,null,null,null,null,null,null,null,null,null,null,null,null,null,null,null,null,null,null,null,null,null,null,null,null,null,null,null,null,null,null,null,null,null,"Anexa A1 HG_907"]
[null,null,null,null,null,null,null,"AGENŢIA PENTRU FINANŢAREA INVESTIŢIILOR RURALE"]
[]
[null,null,null,null,null,null,null,"Deviz financiar- Capitolul 3 - Cheltuieli pentru proiectare şi asistenţa tehnică - EURO"]
["Nr.1"]
[]
["(Titlu deviz)"]
["Nr.crt",null,null,null,"Specificaţie",null,null,null,null,null,null,null,null,null,null,null,null,null,null,null,null,null,null,null,null,null,null,null,null,null,null,null,null,null,null,null,null,null,null,null,null,null,"Valoare eligibilă",null,null,null,null,null,null,null,null,"Valoare\nneeligibilă"]
["3.1",null,null,null,"Cheltuieli pentru studii ",null,null,null,null,null,null,null,null,null,null,null,null,null,null,null,null,null,null,null,null,null,null,null,null,null,null,null,null,null,null,null,null,null,null,null,null,null,{"$f":"SUM(AQ662:AY664)","v":0},null,null,null,null,null,null,null,null,{"$f":"SUM(AZ662:BI664)","v":0}]
[null,null,null,null,"3.1.1 Studii de teren: studii geotehnice, geologice, hidrologice, hidrogeotehnice, fotogrammetrice, topografica şi de stabilitate ale terenului pe care se amplasează obiectivul de investiţie"]
[null,null,null,null,"3.1.2 Raport privind impactul asupra mediului"]
[null,null,null,null,"3.1.3 Studii de specialitate necesare în funcţie de specificul investiţiei"]
["3.2",null,null,null,"Documentaţii-suport şi cheltuieli pentru obţinerea de avize, acorduri şi autorizaţii",null,null,null,null,null,null,null,null,null,null,null,null,null,null,null,null,null,null,null,null,null,null,null,null,null,null,null,null,null,null,null,null,null,null,null,null,null,{"$f":"SUM(AQ666:AY674)","v":0},null,null,null,null,null,null,null,null,{"$f":"SUM(AZ666:BI674)","v":0}]
[null,null,null,null,"1. obţinerea/prelungirea valabilităţii ceritificatului de urbanism"]
[null,null,null,null,"2. obţinerea/prelungirea valabilităţii autorizaţiei de construire/desfiinţare"]
[null,null,null,null,"3. obţinerea avizelor şi acordurilor pentru racorduri şi branşamente la reţele publice de alimentare cu apă, canalizare, alimentare cu gaze, alimentare cu agent termic, energie electrică, telefonie"]
[null,null,null,null,"4. obţinerea certificatului de nomenclatură stradală şi adresă"]
[null,null,null,null,"5. întocmirea documentaţiei, obţinerea numărului cadastral provizoriu şi înregistrarea terenului în cartea funciară"]
[null,null,null,null,"6. obţinerea actului administrativ al autorităţii competente pentru protecţia mediului"]
[null,null,null,null,"7. obţinerea avizului de protecţie civilă"]
[null,null,null,null,"8. avizul de specialitate în cazul obiectivelor de patrimoniu"]
[null,null,null,null,"9. alte avize, acorduri şi autorizaţii"]
["3.3",null,null,null,"Cheltuieli pentru expertizarea tehnică a construcţiilor existente, a structurilor şi/sau, după caz, a proiectelor tehnice, inclusiv întocmirea de către expertul tehnic a raportului de expertiză tehnică"]
["3.4",null,null,null,"Cheltuieli pentru certificarea performanţei energetice şi auditul energetic al clădirilor"]
["3.5",null,null,null,"Cheltuieli pentru proiectare",null,null,null,null,null,null,null,null,null,null,null,null,null,null,null,null,null,null,null,null,null,null,null,null,null,null,null,null,null,null,null,null,null,null,null,null,null,{"$f":"SUM(AQ678:AY683)","v":0},null,null,null,null,null,null,null,null,{"$f":"SUM(AZ678:BI683)","v":0}]
[null,null,null,null,"3.5.1 Temă de proiectare"]
[null,null,null,null,"3.5.2 Studiu de prefezabilitate"]
[null,null,null,null,"3.5.3 Studiu de fezabilitate/documentaţie de avizare a lucrărilor de intervenţii şi deviz general"]
[null,null,null,null,"3.5.4 Documentaţiile tehnice necesare în vederea obţinerii avizelor/acordurilor/ autorizaţiilor"]
[null,null,null,null,"3.5.5 Verificarea tehnică de calitate a proiectului tehnic şi a detaliilor de execuţie"]
[null,null,null,null,"3.5.6 Proiect tehnic şi detalii de execuţie"]
["3.6",null,null,null,"Cheltuieli aferente organizării şi derulării procedurilor de achiziţii publice",null,null,null,null,null,null,null,null,null,null,null,null,null,null,null,null,null,null,null,null,null,null,null,null,null,null,null,null,null,null,null,null,null,null,null,null,null,{"$f":"SUM(AQ685:AY688)","v":0},null,null,null,null,null,null,null,null,{"$f":"SUM(AZ685:BI688)","v":0}]
[null,null,null,null,"1. Cheltuieli aferente întocmirii documentaţiei de atribuire şi multiplicării acesteia (exclusiv cele cumpărate de ofertanţi)"]
[null,null,null,null,"2. Cheltuieli cu onorariile, transportul, cazarea şi diurna membrilor desemnaţi în comisiile de evaluare"]
[null,null,null,null,"3. Anunţuri de intenţie, de participare şi de atribuire a contractelor, corespondenţă prin poştă, fax, poştă electronică în legătură cu procedurile de achiziţie publică"]
[null,null,null,null,"4. Cheltuieli aferente organizării şi derulării procedurilor de achiziţii publice"]
["3.7",null,null,null,"Cheltuieli pentru consultanţă",null,null,null,null,null,null,null,null,null,null,null,null,null,null,null,null,null,null,null,null,null,null,null,null,null,null,null,null,null,null,null,null,null,null,null,null,null,{"$f":"SUM(AQ690:AY691)","v":0},null,null,null,null,null,null,null,null,{"$f":"SUM(AZ690:BI691)","v":0}]
[null,null,null,null,"3.7.1 Managementul de proiect pentru obiectivul de investiţii"]
[null,null,null,null,"3.7.2 Auditul financiar"]
["3.8",null,null,null,"Cheltuieli pentru asistenţă tehnică",null,null,null,null,null,null,null,null,null,null,null,null,null,null,null,null,null,null,null,null,null,null,null,null,null,null,null,null,null,null,null,null,null,null,null,null,null,{"$f":"AQ693+AQ696","v":0},null,null,null,null,null,null,null,null,{"$f":"AZ693+AZ696","v":0}]
[null,null,null,null,"3.8.1. Asistenţă tehnică din partea proiectantului",null,null,null,null,null,null,null,null,null,null,null,null,null,null,null,null,null,null,null,null,null,null,null,null,null,null,null,null,null,null,null,null,null,null,null,null,null,{"$f":"SUM(AQ694:AY695)","v":0},null,null,null,null,null,null,null,null,{"$f":"SUM(AZ694:BI695)","v":0}]
[null,null,null,null,"\n1.1. pe perioada de execuţie a lucrărilor"]
[null,null,null,null,"1.2. pentru participarea proiectantului la fazele incluse în programul de control al lucrărilor de execuţie, avizat de către Inspectoratul de Stat în Construcţii"]
[null,null,null,null,"3.8.2 Dirigenţie de şantier, asigurată de personal tehnic de specialitate, autorizat"]
["Total valoare fără TVA",null,null,null,null,null,null,null,null,null,null,null,null,null,null,null,null,null,null,null,null,null,null,null,null,null,null,null,null,null,null,null,null,null,null,null,null,null,null,null,null,null,{"$f":"AQ661+AQ665+AQ675+AQ676+AQ677+AQ684+AQ689+AQ692","v":0},null,null,null,null,null,null,null,null,{"$f":"AZ661+AZ665+AZ675+AZ676+AZ677+AZ684+AZ689+AZ692","v":0}]
["Valoare TVA (aferentă cheltuielilor eligibile şi neeligibile)"]
["TOTAL DEVIZ FINANCIAR 1 (inclusiv TVA)",null,null,null,null,null,null,null,null,null,null,null,null,null,null,null,null,null,null,null,null,null,null,null,null,null,null,null,null,null,null,null,null,null,null,null,null,null,null,null,null,null,{"$f":"SUM(AQ697:BI698)","v":0}]
[]
[]
[]
[]
[]
[]
[null,null,null,null,null,null,null,"MINISTERUL AGRICULTURII ŞI DEZVOLTĂRII RURALE"]
[null,null,null,null,null,null,null,null,null,null,null,null,null,null,null,null,null,null,null,null,null,null,null,null,null,null,null,null,null,null,null,null,null,null,null,null,null,null,null,null,null,null,"Anexa A2 HG_907"]
[null,null,null,null,null,null,null,"AGENŢIA PENTRU FINANŢAREA INVESTIŢIILOR RURALE"]
[]
[null,null,null,null,null,null,null,"DEVIZUL OBIECTULUI *"]
["Nr.1"]
[]
[]
["Nr. crt.",null,null,null,"Denumire",null,null,null,null,null,null,null,null,null,null,null,null,null,null,null,null,null,null,null,null,null,null,null,null,null,null,null,null,null,null,null,null,null,null,null,null,null,"Valoarea pe categorii de lucrări, fară TVA - EURO"]
[null,null,null,null,"Cap. 4 - Cheltuieli pentru investiţia de bază",null,null,null,null,null,null,null,null,null,null,null,null,null,null,null,null,null,null,null,null,null,null,null,null,null,null,null,null,null,null,null,null,null,null,null,null,null,"Valoare eligibilă",null,null,null,null,null,null,null,null,"Valoare\nneeligibilă"]
["I - LUCRĂRI DE CONSTRUCŢII ŞI INSTALAŢII"]
["4.1",null,null,null,"Construcţii şi instalaţii"]
[null,null,null,null,"4.1.1 Terasamente, sistematizare pe verticală şi amenajări exterioare"]
[null,null,null,null,"4.1.2 Rezistenţă"]
[null,null,null,null,"4.1.3 Arhitectură"]
[null,null,null,null,"4.1.4 Instalaţii"]
[null,null,null,null,"TOTAL I ( fără TVA)",null,null,null,null,null,null,null,null,null,null,null,null,null,null,null,null,null,null,null,null,null,null,null,null,null,null,null,null,null,null,null,null,null,null,null,null,null,{"$f":"SUM(AQ717:AY721)","v":0},null,null,null,null,null,null,null,null,{"$f":"SUM(AZ717:BI721)","v":0}]
["II - MONTAJ"]
["4.2",null,null,null,"Montaj utilaje, echipamente tehnologice şi funcţionale"]
[null,null,null,null,"TOTAL II ( fără TVA)",null,null,null,null,null,null,null,null,null,null,null,null,null,null,null,null,null,null,null,null,null,null,null,null,null,null,null,null,null,null,null,null,null,null,null,null,null,{"$f":"SUM(AQ724)","v":0},null,null,null,null,null,null,null,null,{"$f":"SUM(AZ724)","v":0}]
["III - PROCURARE"]
["4.3",null,null,null,"Utilaje, echipamente tehnologice şi funcţionale care necesită montaj"]
["4.4",null,null,null,"Utilaje, echipamente tehnologice şi funcţionale care nu necesită montaj şi echipamente de transport"]
["4.5",null,null,null,"Dotări"]
["4.6",null,null,null,"Active necorporale"]
[null,null,null,null,"TOTAL III ( fără TVA)",null,null,null,null,null,null,null,null,null,null,null,null,null,null,null,null,null,null,null,null,null,null,null,null,null,null,null,null,null,null,null,null,null,null,null,null,null,{"$f":"SUM(AQ727:AY730)","v":0},null,null,null,null,null,null,null,null,{"$f":"SUM(AZ727:BI730)","v":0}]
["TOTAL ( TOTAL I + TOTAL II +TOTAL III) fără TVA",null,null,null,null,null,null,null,null,null,null,null,null,null,null,null,null,null,null,null,null,null,null,null,null,null,null,null,null,null,null,null,null,null,null,null,null,null,null,null,null,null,{"$f":"AQ731+AQ725+AQ722","v":0},null,null,null,null,null,null,null,null,{"$f":"AZ731+AZ725+AZ722","v":0}]
["TVA aferent cheltuielilor eligibile şi neeligibile"]
["TOTAL DEVIZ PE OBIECT (inclusiv TVA)",null,null,null,null,null,null,null,null,null,null,null,null,null,null,null,null,null,null,null,null,null,null,null,null,null,null,null,null,null,null,null,null,null,null,null,null,null,null,null,null,null,{"$f":"AQ732+AZ732+AQ733+AZ733","v":0}]
[]
[null,"*) Se înscrie denumirea obiectului de construcţie sau intervenţie"]
[]
[]
[]
[]
[]
[]
[null,null,null,null,null,null,null,"MINISTERUL AGRICULTURII ŞI DEZVOLTĂRII RURALE",null,null,null,null,null,null,null,null,null,null,null,null,null,null,null,null,null,null,null,null,null,null,null,null,null,null,null,null,null,null,null,null,null,null,"Anexa A3 HG_907"]
[]
[null,null,null,null,null,null,null,"AGENŢIA PENTRU FINANŢAREA INVESTIŢIILOR RURALE"]
[]
["Nr.1"]
[]
[]
["Deviz capitolul 2- Cheltuieli pentru asigurarea utilităţilor necesare obiectivului - EURO"]
["Nr. crt.",null,null,null,"Specificaţie",null,null,null,null,null,null,null,null,null,null,null,null,null,null,null,null,null,null,null,null,null,null,null,null,null,null,null,null,null,null,null,null,null,null,null,null,null,"Valoare eligibilă",null,null,null,null,null,null,null,null,"Valoare\nneeligibilă"]
[1,null,null,null,"Alimentare cu apă"]
[2,null,null,null,"Canalizare"]
[3,null,null,null,"Alimentare cu gaze naturale"]
[4,null,null,null,"Alimentare cu agent termic"]
[5,null,null,null,"Alimentare cu energie electrică"]
[6,null,null,null,"Telecomunicaţii (telefonie, radio-tv,etc)"]
[7,null,null,null,"Drumuri de acces"]
[8,null,null,null,"Căi ferate industriale"]
[9,null,null,null,"Alte utilitati"]
[null,null,null,null,"TOTAL DEVIZ CAPITOLUL 2",null,null,null,null,null,null,null,null,null,null,null,null,null,null,null,null,null,null,null,null,null,null,null,null,null,null,null,null,null,null,null,null,null,null,null,null,null,{"$f":"SUM(AQ752:AY760)","v":0},null,null,null,null,null,null,null,null,{"$f":"SUM(AZ752:BI760)","v":0}]
[null,null,null,null,"Valoare TVA aferentă cheltuielilor eligibile şi neeligibile"]
["TOTAL DEVIZ CAPITOLUL 2 (inclusiv TVA)",null,null,null,null,null,null,null,null,null,null,null,null,null,null,null,null,null,null,null,null,null,null,null,null,null,null,null,null,null,null,null,null,null,null,null,null,null,null,null,null,null,{"$f":"AQ761+AZ761+AQ762+AZ762","v":0}]
[]
[" Deviz capitolul 5 - Alte cheltuieli - EURO"]
["Nr. crt.",null,null,null,"Specificaţie",null,null,null,null,null,null,null,null,null,null,null,null,null,null,null,null,null,null,null,null,null,null,null,null,null,null,null,null,null,null,null,null,null,null,null,null,null,"Valoare eligibilă",null,null,null,null,null,null,null,null,"Valoare\nneeligibilă"]
[]
["5.1 ",null,null,null,"Organizare de şantier",null,null,null,null,null,null,null,null,null,null,null,null,null,null,null,null,null,null,null,null,null,null,null,null,null,null,null,null,null,null,null,null,null,null,null,null,null,{"$f":"SUM(AQ769:AY770)","v":0},null,null,null,null,null,null,null,null,{"$f":"SUM(AZ769:BI770)","v":0}]
[null,null,null,null,"5.1.1 Lucrări de construcţii şi instalaţii aferente organizării de şantier"]
[null,null,null,null,"5.1.2 Cheltuieli conexe organizării de şantier"]
["5.2",null,null,null,"Comisioane, cote, taxe, costul creditului",null,null,null,null,null,null,null,null,null,null,null,null,null,null,null,null,null,null,null,null,null,null,null,null,null,null,null,null,null,null,null,null,null,null,null,null,null,{"$f":"SUM(AQ773:AY776)","v":0},null,null,null,null,null,null,null,null,{"$f":"SUM(AZ772:BI776)","v":0}]
[null,null,null,null,"5.2.1. Comisioanele şi dobânzile aferente creditului băncii finanţatoare"]
[null,null,null,null,"5.2.2. Cota aferentă ISC pentru controlul calităţii lucrărilor de construcţii"]
[null,null,null,null,"5.2.3. Cota aferentă ISC pentru controlul statului în amenajarea teritoriului, urbanism şi pentru autorizarea lucrărilor de construcţii"]
[null,null,null,null,"5.2.4. Cota aferentă Casei Sociale a Constructorilor - CSC"]
[null,null,null,null,"5.2.5. Taxe pentru acorduri, avize conforme şi autorizaţia de construire/ desfiinţare"]
["5.3",null,null,null," Cheltuieli diverse si neprevazute"]
["5.4",null,null,null," Cheltuieli pentru informare şi publicitate"]
[null,null,null,null,"TOTAL DEVIZ CAPITOLUL 5",null,null,null,null,null,null,null,null,null,null,null,null,null,null,null,null,null,null,null,null,null,null,null,null,null,null,null,null,null,null,null,null,null,null,null,null,null,{"$f":"AQ768+AQ771+AQ777","v":0},null,null,null,null,null,null,null,null,{"$f":"AZ768+AZ771+AZ777+AZ778","v":0}]
[null,null,null,null,"VALOARE TVA aferentă cheltuielilor eligibile şi neeligibile"]
[null,null,null,null,"TOTAL DEVIZ CAPITOLUL 5 ( inclusiv TVA)",null,null,null,null,null,null,null,null,null,null,null,null,null,null,null,null,null,null,null,null,null,null,null,null,null,null,null,null,null,null,null,null,null,null,null,null,null,{"$f":"AQ779+AZ779+AQ780+AZ780","v":0}]
[]
[]
[]
[]
[]
[]
["MINISTERUL AGRICULTURII ŞI DEZVOLTĂRII RURALE",null,null,null,null,null,null,null,null,null,null,null,null,null,null,null,null,null,null,null,null,null,null,null,null,null,null,null,null,null,null,null,null,null,null,null,null,null,null,null,null,null,"Anexa A4"]
["AGENŢIA PENTRU FINANŢAREA INVESTIŢIILOR RURALE"]
[]
["Deviz cheltuieli culturi - EURO "]
["Nr. crt.",null,null,null,"Specificaţie",null,null,null,null,null,null,null,null,null,null,null,null,null,null,null,null,null,null,null,null,null,null,null,null,null,null,null,null,null,null,null,null,null,null,null,null,null,"Valoare eligibilă",null,null,null,null,null,null,null,null,"Valoare\nneeligibilă"]
["I. LUCRĂRI DE ÎNFIINŢARE PLANTAŢIE"]
[1,null,null,null,"Subcapitolul I Lucrări de pregătire a terenului"]
[null,null,null,null,"1. Manoperă"]
["a"]
[null,null,null,null,"Total (1)",null,null,null,null,null,null,null,null,null,null,null,null,null,null,null,null,null,null,null,null,null,null,null,null,null,null,null,null,null,null,null,null,null,null,null,null,null,{"$f":"AQ796","v":0},null,null,null,null,null,null,null,null,{"$f":"AZ796","v":0}]
[null,null,null,null,"2. Lucrări mecanice"]
["a"]
["b"]
["c"]
[null,null,null,null,"Total (2)",null,null,null,null,null,null,null,null,null,null,null,null,null,null,null,null,null,null,null,null,null,null,null,null,null,null,null,null,null,null,null,null,null,null,null,null,null,{"$f":"SUM(AQ799:AY801)","v":0},null,null,null,null,null,null,null,null,{"$f":"SUM(AZ799:BI801)","v":0}]
[null,null,null,null,"Total subcapitol I (1+2)",null,null,null,null,null,null,null,null,null,null,null,null,null,null,null,null,null,null,null,null,null,null,null,null,null,null,null,null,null,null,null,null,null,null,null,null,null,{"$f":"AQ797+AQ802","v":0},null,null,null,null,null,null,null,null,{"$f":"AZ797+AZ802","v":0}]
[2,null,null,null,"Subcapitolul II Înfiinţarea plantaţiei"]
["Atenţie! Sunt eligibile numai cheltuielile cu servicii executate de terţi."]
[null,null,null,null,"1. Manoperă"]
["a"]
["b"]
["c"]
["d"]
["e"]
["f"]
["g"]
["h"]
["i"]
[null,null,null,null,"Total (1)",null,null,null,null,null,null,null,null,null,null,null,null,null,null,null,null,null,null,null,null,null,null,null,null,null,null,null,null,null,null,null,null,null,null,null,null,null,{"$f":"SUM(AQ807:AY815)","v":0},null,null,null,null,null,null,null,null,{"$f":"SUM(AZ807:BI815)","v":0}]
[null,null,null,null,"2. Lucrări mecanice"]
["a"]
["b"]
["c"]
["d"]
[null,null,null,null,"Total (2)",null,null,null,null,null,null,null,null,null,null,null,null,null,null,null,null,null,null,null,null,null,null,null,null,null,null,null,null,null,null,null,null,null,null,null,null,null,{"$f":"SUM(AQ818:AY821)","v":0},null,null,null,null,null,null,null,null,{"$f":"SUM(AZ818:BI821)","v":0}]
[null,null,null,null,"3. Materii şi materiale "]
["a"]
["b"]
["c"]
["d"]
["e"]
[null,null,null,null,"Total (3)",null,null,null,null,null,null,null,null,null,null,null,null,null,null,null,null,null,null,null,null,null,null,null,null,null,null,null,null,null,null,null,null,null,null,null,null,null,{"$f":"SUM(AQ824:AY828)","v":0},null,null,null,null,null,null,null,null,{"$f":"SUM(AZ824:BI828)","v":0}]
[null,null,null,null,"Total subcapitol II (1+2+3)",null,null,null,null,null,null,null,null,null,null,null,null,null,null,null,null,null,null,null,null,null,null,null,null,null,null,null,null,null,null,null,null,null,null,null,null,null,{"$f":"AQ816+AQ822+AQ829","v":0},null,null,null,null,null,null,null,null,{"$f":"AZ816+AZ822+AZ829","v":0}]
[3,null,null,null,"Subcapitolul III Întreţinere plantaţie în anul 1   ATENŢIE! Cheltuieli neeligibile"]
[null,null,null,null,"1. Manoperă"]
[null,null,null,null,"Total (1)"]
[null,null,null,null,"2. Lucrări mecanice"]
[null,null,null,null,"Total (2)"]
[null,null,null,null,"3. Materii şi materiale "]
[null,null,null,null,"Total (3)"]
[null,null,null,null,"Total subcapitol III (1+2+3)",null,null,null,null,null,null,null,null,null,null,null,null,null,null,null,null,null,null,null,null,null,null,null,null,null,null,null,null,null,null,null,null,null,null,null,null,null,null,null,null,null,null,null,null,null,null,{"$f":"AZ833+AZ835+AZ837","v":0}]
[4,null,null,null,"Subcapitolul IV Întreţinere plantaţie în anul 2   ATENŢIE! Cheltuieli neeligibile"]
[null,null,null,null,"1. Manoperă"]
[null,null,null,null,"Total (1)"]
[null,null,null,null,"2. Lucrări mecanice"]
[null,null,null,null,"Total (2)"]
[null,null,null,null,"3. Materii şi materiale "]
[null,null,null,null,"Total (3)"]
[null,null,null,null,"Total subcapitol IV (1+2+3)",null,null,null,null,null,null,null,null,null,null,null,null,null,null,null,null,null,null,null,null,null,null,null,null,null,null,null,null,null,null,null,null,null,null,null,null,null,null,null,null,null,null,null,null,null,null,{"$f":"AZ841+AZ843+AZ845","v":0}]
[5,null,null,null,"Subcapitolul V Instalat sistem susţinere şi împrejmuire"]
[null,null,null,null,"1. Manoperă"]
["a"]
["b"]
["c"]
["d"]
["e"]
["f"]
["g"]
[null,null,null,null,"Total (1)",null,null,null,null,null,null,null,null,null,null,null,null,null,null,null,null,null,null,null,null,null,null,null,null,null,null,null,null,null,null,null,null,null,null,null,null,null,{"$f":"SUM(AQ849:AY855)","v":0},null,null,null,null,null,null,null,null,{"$f":"SUM(AZ849:BI855)","v":0}]
[null,null,null,null,"2. Materii şi materiale"]
["a"]
["b"]
["c"]
["d"]
[null,null,null,null,"Total (2)",null,null,null,null,null,null,null,null,null,null,null,null,null,null,null,null,null,null,null,null,null,null,null,null,null,null,null,null,null,null,null,null,null,null,null,null,null,{"$f":"SUM(AQ858:AY861)","v":0},null,null,null,null,null,null,null,null,{"$f":"SUM(AZ858:BI861)","v":0}]
[null,null,null,null,"Total subcapitol V (1+2)",null,null,null,null,null,null,null,null,null,null,null,null,null,null,null,null,null,null,null,null,null,null,null,null,null,null,null,null,null,null,null,null,null,null,null,null,null,{"$f":"AQ856+AQ862","v":0},null,null,null,null,null,null,null,null,{"$f":"AZ856+AZ862","v":0}]
["TOTAL ELIGIBIL / NEELIGIBIL FĂRĂ TVA",null,null,null,null,null,null,null,null,null,null,null,null,null,null,null,null,null,null,null,null,null,null,null,null,null,null,null,null,null,null,null,null,null,null,null,null,null,null,null,null,null,{"$f":"AQ803+AQ830+AQ863","v":0},null,null,null,null,null,null,null,null,{"$f":"AZ803+AZ830+AZ838+AZ846+AZ863","v":0}]
["VALOARE TVA aferentă cheltuielilor eligibile şi neeligibile"]
["TOTAL DEVIZ CU TVA",null,null,null,null,null,null,null,null,null,null,null,null,null,null,null,null,null,null,null,null,null,null,null,null,null,null,null,null,null,null,null,null,null,null,null,null,null,null,null,null,null,{"$f":"SUM(AQ864:BI865)","v":0}]
[]
["MINISTERUL AGRICULTURII ŞI DEZVOLTĂRII RURALE",null,null,null,null,null,null,null,null,null,null,null,null,null,null,null,null,null,null,null,null,null,null,null,null,null,null,null,null,null,null,null,null,null,null,null,null,null,null,null,null,null,"Anexa A5"]
["AGENŢIA PENTRU FINANŢAREA INVESTIŢIILOR RURALE"]
["VALORI PENTRU COSTURI STANDARD ŞI CONTRIBUŢIE ÎN NATURĂ, APLICABILE INVESTIŢIILOR\ndin cadrul sub-programului tematic pomicol\nM2/2A"]
[]
[]
[]
[null,"I. Valori aplicabile tuturor speciilor"]
[]
[]
[null,null,null,null,null,null,null,null,null,null,null,null,null,"Costuri în Euro / ha"]
["Nr. crt.",null,"Specificare",null,null,null,null,null,null,null,null,null,null,"COST STANDARD",null,null,null,null,null,null,null,"Suprafaţa (ha)",null,null,null,null,null,null,null,"Total costuri (euro)",null,null,null,null,null,null,null,null,"contribuţie\nîn natură",null,null,null,null,null,null,null,"Suprafaţa (ha)",null,null,null,"Total costuri (euro)",null,null,null,"Total GENERAL (euro)"]
[1,null,"Proiectare, analize sol asistenta tehnica",null,null,null,null,null,null,null,null,null,null,620,null,null,null,null,null,null,null,null,null,null,null,null,null,null,null,{"$f":"N879*V879","v":0},null,null,null,null,null,null,null,null,0,null,null,null,null,null,null,null,{"$f":"AM879*AQ879","v":0},null,null,null,{"$f":"AM879*AU879","v":0},null,null,null,{"$f":"AD879+AY879","v":0}]
[2,null,"Pregătirea terenului",null,null,null,null,null,null,null,null,null,null,840,null,null,null,null,null,null,null,null,null,null,null,null,null,null,null,{"$f":"N880*V880","v":0},null,null,null,null,null,null,null,null,714,null,null,null,null,null,null,null,{"$f":"AM880*AQ880","v":0},null,null,null,{"$f":"AM880*AU880","v":0},null,null,null,{"$f":"AD880+AY880","v":0}]
[3,null,"defrisare plantatie",null,null,null,null,null,null,null,null,null,null,760,null,null,null,null,null,null,null,null,null,null,null,null,null,null,null,{"$f":"N881*V881","v":0},null,null,null,null,null,null,null,null,646,null,null,null,null,null,null,null,0,null,null,null,{"$f":"AM881*AU881","v":0},null,null,null,{"$f":"AD881+AY881","v":0}]
[4,null,"Echipament de irigare localizată",null,null,null,null,null,null,null,null,null,null,3500,null,null,null,null,null,null,null,null,null,null,null,null,null,null,null,{"$f":"N882*V882","v":0},null,null,null,null,null,null,null,null,0,null,null,null,null,null,null,null,0,null,null,null,{"$f":"AM882*AU882","v":0},null,null,null,{"$f":"AD882+AY882","v":0}]
[5,null,"instalare echipamente irigare localizata",null,null,null,null,null,null,null,null,null,null,500,null,null,null,null,null,null,null,null,null,null,null,null,null,null,null,{"$f":"N883*V883","v":0},null,null,null,null,null,null,null,null,425,null,null,null,null,null,null,null,0,null,null,null,{"$f":"AM883*AU883","v":0},null,null,null,{"$f":"AD883+AY883","v":0}]
["Costuri EURO/ml perimetru"]
[4,null,"Sistem de împrejmuire",null,null,null,null,null,null,null,null,null,null,10,null,null,null,null,null,null,null,{"$f":"N885*R885","v":0},null,null,null,null,null,null,null,{"$f":"N885*V885","v":0},null,null,null,null,null,null,null,null,0,null,null,null,null,null,null,null,0,null,null,null,{"$f":"AM885*AU885","v":0},null,null,null,{"$f":"AD885+AY885","v":0}]
[5,null,"Instalare sistem împrejmuire",null,null,null,null,null,null,null,null,null,null,2,null,null,null,null,null,null,null,{"$f":"N886*R886","v":0},null,null,null,null,null,null,null,{"$f":"N886*V886","v":0},null,null,null,null,null,null,null,null,1.7,null,null,null,null,null,null,null,0,null,null,null,0,null,null,null,{"$f":"AD886+AY886","v":0}]
[null,null,"Total:",null,null,null,null,null,null,null,null,null,null,null,null,null,null,null,null,null,null,null,null,null,null,null,null,null,null,{"$f":"AD885+AD886+AD879+AD880+AD881+AD882+AD883","v":0},null,null,null,null,null,null,null,null,0,null,null,null,null,null,null,null,0,null,null,null,{"$f":"AY886+AY885+AY883+AY882+AY881+AY880+AY879","v":0},null,null,null,{"$f":"AD887+AY887","v":0}]
[]
["** Defrişarea nu se aplică culturii de căpşuni şi pepinierelor pomicole"]
[null,"II. Valori aplicabile culturilor de cireş, măr, mur cu ghimpi, păr, prun, vişin şi zmeur"]
["a) Achiziţionarea şi instalarea sistemelor de susţinere:"]
["Costuri în Euro / ha"]
["Nr.\ncrt.",null,"Specificare",null,null,null,null,null,null,null,null,null,null,"cost\nstandard",null,null,"Suprafaţa\n(ha)",null,null,"Total\ncosturi\n(euro",null,"cost\nstandard",null,null,"Suprafaţa\n(ha)",null,null,"Total\ncosturi\n(euro",null,"contribuţie\nîn natură",null,null,"Suprafaţa\n(ha)",null,null,null,"Total\ncosturi\n(euro)",null,null,null,null,null,"contribuţie\nîn natură",null,null,null,"Suprafaţa\n(ha)",null,null,null,"Total\ncosturi\n(euro)",null,null,null,"Total\ngeneral\n(euro)"]
[null,null,"Număr de pomi la\nhectar",null,null,null,null,null,null,null,null,null,null,"< 1250",null,null,null,null,null,null,null,">= 1250",null,null,null,null,null,null,null,"<1250",null,null,null,null,null,null,null,null,null,null,null,null,">=1250"]
[1,null,"Sistem de sustinere",null,null,null,null,null,null,null,null,null,null,8850,null,null,null,null,null,{"$f":"N895*Q895","v":0},null,"10550"]
[2,null,"Tutori",null,null,null,null,null,null,null,null,null,null,885,null,null,null,null,null,{"$f":"N896*Q896","v":0},null,"2380"]
[3,null,"instalare sistem de sustinere",null,null,null,null,null,null,null,null,null,null,790,null,null,null,null,null,{"$f":"N897*Q897","v":0},null,"875",null,null,null,null,null,null,null,672,null,null,null,null,null,null,null,null,null,null,null,null,744]
[null,null,"Total:",null,null,null,null,null,null,null,null,null,null,0,null,null,{"$f":"SUM(Q895:S897)","v":0},null,null,{"$f":"SUM(T895:U897)","v":0}]
["             "]
["b) Achiziţionarea şi instalarea sistemelor de plasă antigrindină:"]
["Costuri în Euro / ha"]
["Nr.\ncrt.",null,"Specificare",null,null,null,null,null,null,null,null,null,null,"cost\nstandard",null,null,"Suprafaţa\n(ha)",null,null,"Total\ncosturi\n(euro",null,"cost\nstandard",null,null,"Suprafaţa\n(ha)",null,null,"Total\ncosturi\n(euro",null,"contribuţie\nîn natură",null,null,"Suprafaţa\n(ha)",null,null,null,"Total\ncosturi\n(euro)",null,null,null,null,null,"contribuţie\nîn natură",null,null,null,"Suprafaţa\n(ha)",null,null,null,"Total\ncosturi\n(euro)",null,null,null,"Total\ngeneral\n(euro)"]
[null,null,"Număr de pomi la\nhectar",null,null,null,null,null,null,null,null,null,null,"< 1250",null,null,null,null,null,null,null,">= 1250",null,null,null,null,null,null,null,"<1250",null,null,null,null,null,null,null,null,null,null,null,null,">=1250"]
[1,null,"Sistem plasă\nantigrindină",null,null,null,null,null,null,null,null,null,null,16000,null,null,null,null,null,{"$f":"N895*Q895","v":0},null,18000,null,null,null,null,null,null,null,null,null,null,null,null,{"$f":"Z904*AD904","v":0},null,null,null,null,null,null,null,null,null,null,null,{"$f":"AM904*AQ904","v":0},null,null,null,null,null,null,null,null,null,null,{"$f":"AY904*BC904","v":0}]
[2,null,"Instalare plasă\nantigrindină",null,null,null,null,null,null,null,null,null,null,1600,null,null,null,null,null,{"$f":"N896*Q896","v":0},null,1800,null,null,null,null,null,null,null,null,null,null,null,null,{"$f":"Z905*AD905","v":0},null,null,null,null,null,null,null,null,null,null,null,{"$f":"AM905*AQ905","v":0},null,null,null,null,null,null,null,null,null,null,{"$f":"AY905*BC905","v":0}]
[null,null,"Total:",null,null,null,null,null,null,null,null,null,null,0,null,null,null,null,null,{"$f":"N897*Q897","v":0},null,0,null,null,null,null,null,null,null,null,null,null,null,null,{"$f":"SUM(AI904:AL905)","v":0},null,null,null,null,null,null,null,null,null,null,null,{"$f":"SUM(AU904:AX905)","v":0},null,null,null,null,null,null,null,null,null,null,{"$f":"SUM(BF904:BJ905)","v":0}]
["Notă: Investiţiile de la punctul b) includ şi investiţiile de la punctul a)"]
[]
[null,"III. Valori aplicabile culturilor de cireş, mur cu ghimpi şi zmeur"]
[null,"Achiziţionarea şi instalarea sistemului de protecţie antiploaie"]
["Costuri în Euro / ha"]
["Nr.\ncrt.",null,null,"Specificare",null,null,null,null,null,null,null,null,null,null,"cost\nstandard",null,null,null,null,null,null,"Suprafaţa\n(ha)",null,null,null,"Total\ncosturi\n(euro)",null,null,null,null,null,null,null,null,"contribuţie\nîn natură",null,null,null,null,null,null,null,"Suprafaţa\n(ha)",null,null,null,null,null,null,null,"Total\ncosturi\n(euro)",null,null,null,null,null,null,"Total\ngeneral\n(euro)"]
[1,null,null,"Sistem prelată antiploaie",null,null,null,null,null,null,null,null,null,null,25650]
[2,null,null,"Instalare sistem prelată antiploaie",null,null,null,null,null,null,null,null,null,null,2150]
[null,null,null,"Total:"]
["Notă: Investiţiile de la punctul III) includ şi investiţiile de la punctul II) subpunctele a) si b)"]
[]
[null,"IV. Valori Costuri Standard şi Contribuţie în Natură, pe specii"]
["IV.1. Cultura pomilor fructifer"]
["Nr.\ncrt.",null,null,"Specificare",null,null,null,null,null,null,null,null,null,null,"cost\nstandard",null,null,null,null,null,null,"Suprafaţa\n(ha)",null,null,null,"Total\ncosturi\n(euro)",null,null,null,null,null,null,null,null,"contribuţie\nîn natură",null,null,null,null,null,null,null,"Suprafaţa\n(ha)",null,null,null,null,null,null,null,"Total\ncosturi\n(euro)",null,null,null,null,null,null,"Total\ngeneral\n(euro)"]
["Fertilizare şi dezinfectare sol (lucrare completă)"]
[1,null,null,"a) măr, păr, gutui, prun, cais, piersic,\nnectarin, cires, vişin, migdal, alun;",null,null,null,null,null,null,null,null,null,null,1238]
[2,null,null,"b) nuc, castan",null,null,null,null,null,null,null,null,null,null,850]
["Din care: lucrări mecanice şi manuale"]
[1,null,null,"a) măr, păr, gutui, prun, cais, piersic,\nnectarin, cires, vişin, migdal, alun;",null,null,null,null,null,null,null,null,null,null,430,null,null,null,null,null,null,null,null,null,null,null,null,null,null,null,null,null,null,null,365]
[2,null,null,"b) nuc, castan",null,null,null,null,null,null,null,null,null,null,298,null,null,null,null,null,null,null,null,null,null,null,null,null,null,null,null,null,null,null,253]
["gunoi de grajd"]
[1,null,null,"a) măr, păr, gutui, prun, cais, piersic,\nnectarin, cires, vişin, migdal, alun;",null,null,null,null,null,null,null,null,null,null,450,null,null,null,null,null,null,null,null,null,null,null,null,null,null,null,null,null,null,null,383]
[2,null,null,"b) nuc, castan",null,null,null,null,null,null,null,null,null,null,337,null,null,null,null,null,null,null,null,null,null,null,null,null,null,null,null,null,null,null,286]
[null,"Costuri EURO/plantă"]
["Material săditor pentru plantat"]
[1,null,null,"a) măr, păr, gutui, prun, cais, piersic,\nnectarin, cires, vişin, migdal, alun;",null,null,null,null,null,null,null,null,null,null,5.24,null,null,null,null,null,null,null,null,null,null,null,null,null,null,null,null,null,null,null,4.45]
[2,null,null,"b) migdal;\n",null,null,null,null,null,null,null,null,null,null,6,null,null,null,null,null,null,null,null,null,null,null,null,null,null,null,null,null,null,null,5.0999999999999996]
[3,null,null,"c) castan, cireş;",null,null,null,null,null,null,null,null,null,null,8.5,null,null,null,null,null,null,null,null,null,null,null,null,null,null,null,null,null,null,null,7.22]
[4,null,null,"d) nuc altoit.",null,null,null,null,null,null,null,null,null,null,19,null,null,null,null,null,null,null,null,null,null,null,null,null,null,null,null,null,null,null,16.149999999999999]
["Plantat pomi (lucrare completă)"]
[1,null,null,"a) măr, păr, gutui, prun, cais, piersic,\nnectarin, cires, vişin, migdal, alun;",null,null,null,null,null,null,null,null,null,null,1.05]
[2,null,null,"b) nuc, castan",null,null,null,null,null,null,null,null,null,null,1.5]
["Din care: lucrări mecanice şi manuale"]
[1,null,null,"a) măr, păr, gutui, prun, cais, piersic,\nnectarin, cires, vişin, migdal, alun;",null,null,null,null,null,null,null,null,null,null,0.95,null,null,null,null,null,null,null,null,null,null,null,null,null,null,null,null,null,null,null,0.81]
[2,null,null,"b) nuc, castan",null,null,null,null,null,null,null,null,null,null,1.35,null,null,null,null,null,null,null,null,null,null,null,null,null,null,null,null,null,null,null,1.1499999999999999]
[]
["IV.2. Cultura arbuştilor fructiferi"]
["Costuri în Euro / ha"]
["Nr.\ncrt.",null,null,"Specificare",null,null,null,null,null,null,null,null,null,null,"cost\nstandard",null,null,null,null,null,null,"Suprafaţa\n(ha)",null,null,null,"Total\ncosturi\n(euro)",null,null,null,null,null,null,null,null,"contribuţie\nîn natură",null,null,null,null,null,null,null,"Suprafaţa\n(ha)",null,null,null,null,null,null,null,"Total\ncosturi\n(euro)",null,null,null,null,null,null,"Total\ngeneral\n(euro)"]
["Fertilizare şi dezinfectare sol (lucrare completă)"]
[1,null,null,"a) afin;",null,null,null,null,null,null,null,null,null,null,8175]
[null,null,null,"b) agriş, coacăz, lonicera, aronia, mur,\nzmeur;",null,null,null,null,null,null,null,null,null,null,1438]
[null,null,null,"c) corn, măceş, soc, cătină, trandafir pentru\ndulceaţă;",null,null,null,null,null,null,null,null,null,null,1022]
["Din care: lucrări mecanice şi manuale"]
[1,null,null,"a) afin;",null,null,null,null,null,null,null,null,null,null,2420,null,null,null,null,null,null,null,null,null,null,null,null,null,null,null,null,null,null,null,2057]
[null,null,null,"b) agriş, coacăz, lonicera, aronia, mur,\nzmeur;",null,null,null,null,null,null,null,null,null,null,462,null,null,null,null,null,null,null,null,null,null,null,null,null,null,null,null,null,null,null,393]
[null,null,null,"c) corn, măceş, soc, cătină, trandafir pentru\ndulceaţă;",null,null,null,null,null,null,null,null,null,null,335,null,null,null,null,null,null,null,null,null,null,null,null,null,null,null,null,null,null,null,285]
["gunoi de grajd"]
[1,null,null,"a) afin;",null,null,null,null,null,null,null,null,null,null,450,null,null,null,null,null,null,null,null,null,null,null,null,null,null,null,null,null,null,null,383]
[null,null,null,"b) agriş, coacăz, lonicera, aronia, mur,\nzmeur;",null,null,null,null,null,null,null,null,null,null,450,null,null,null,null,null,null,null,null,null,null,null,null,null,null,null,null,null,null,null,383]
[null,null,null,"c) corn, măceş, soc, cătină, trandafir pentru\ndulceaţă;",null,null,null,null,null,null,null,null,null,null,337,null,null,null,null,null,null,null,null,null,null,null,null,null,null,null,null,null,null,null,286]
["Costuri EURO/plantă"]
["Material săditor pentru planta"]
[2,null,null,"a) afin;",null,null,null,null,null,null,null,null,null,null,2,null,null,null,null,null,null,null,null,null,null,null,null,null,null,null,null,null,null,null,1.7]
[null,null,null,"b) agriş, coacăz, trandafir, aronia, măceş,\nmur;\n\n",null,null,null,null,null,null,null,null,null,null,1.07,null,null,null,null,null,null,null,null,null,null,null,null,null,null,null,null,null,null,null,0.91]
[null,null,null,"c) lonicera, soc, cătină;",null,null,null,null,null,null,null,null,null,null,1.6,null,null,null,null,null,null,null,null,null,null,null,null,null,null,null,null,null,null,null,1.36]
[null,null,null,"d) corn;",null,null,null,null,null,null,null,null,null,null,5.2,null,null,null,null,null,null,null,null,null,null,null,null,null,null,null,null,null,null,null,4.42]
[null,null,null,"e) zmeur",null,null,null,null,null,null,null,null,null,null,0.65,null,null,null,null,null,null,null,null,null,null,null,null,null,null,null,null,null,null,null,0.55000000000000004]
["Plantat arbuşti (lucrare completă)"]
[2,null,null,"a) afin, agriş, coacaz, lonicera, mur, măceş,\ntrandafir, cătină, aronia;",null,null,null,null,null,null,null,null,null,null,0.34]
[null,null,null,"b) zmeur\n\n",null,null,null,null,null,null,null,null,null,null,0.23]
[null,null,null,"c) corn, soc,",null,null,null,null,null,null,null,null,null,null,0.7]
["Din care: lucrări mecanice şi manuale"]
[2,null,null,"a) afin, agriş, coacaz, lonicera, mur, măceş,\ntrandafir, cătină, aronia;",null,null,null,null,null,null,null,null,null,null,0.3,null,null,null,null,null,null,null,null,null,null,null,null,null,null,null,null,null,null,null,0.25]
[null,null,null,"b) zmeur\n\n",null,null,null,null,null,null,null,null,null,null,0.2,null,null,null,null,null,null,null,null,null,null,null,null,null,null,null,null,null,null,null,0.17]
[null,null,null,"c) corn, soc,",null,null,null,null,null,null,null,null,null,null,0.63,null,null,null,null,null,null,null,null,null,null,null,null,null,null,null,null,null,null,null,0.54]
[]
["V. Cultura căpşunului"]
["Costuri în Euro / ha"]
["Nr.\ncrt.",null,null,"Specificare",null,null,null,null,null,null,null,null,null,null,"cost\nstandard",null,null,null,null,null,null,"Suprafaţa\n(ha)",null,null,null,"Total\ncosturi\n(euro)",null,null,null,null,null,null,null,null,"contribuţie\nîn natură",null,null,null,null,null,null,null,"Suprafaţa\n(ha)",null,null,null,null,null,null,null,"Total\ncosturi\n(euro)",null,null,null,null,null,null,"Total\ngeneral\n(euro)"]
["Număr de plante la hectar",null,null,null,null,null,null,null,null,null,null,null,null,null,">= 37000",null,null,null,null,null,null,null,null,null,null,null,null,null,null,null,null,null,null,null,">= 37000"]
[null,null,null,"Fertilizare şi dezinfectare sol",null,null,null,null,null,null,null,null,null,null,1793]
["din care:"]
[1,null,null,"lucrări mecanice şi manuale",null,null,null,null,null,null,null,null,null,null,108,null,null,null,null,null,null,null,null,null,null,null,null,null,null,null,null,null,null,null,92]
[null,null,null,"gunoi de grajd",null,null,null,null,null,null,null,null,null,null,450,null,null,null,null,null,null,null,null,null,null,null,null,null,null,null,null,null,null,null,383]
[null,null,null,"Material săditor pentru plantat",null,null,null,null,null,null,null,null,null,null,3668,null,null,null,null,null,null,null,null,null,null,null,null,null,null,null,null,null,null,null,3118]
[null,null,null,"Plantat arbuşti (lucrare completă)",null,null,null,null,null,null,null,null,null,null,703,null,null,null,null,null,null,null,null,null,null,null,null,null,null,null,null,null,null,null,598]
[null,null,null,"total"]
[]
["a) Achizitionare şi instalare solar(tunel jos):"]
[null,null,null,null,null,null,null,null,null,null,null,null,null,null,null,null,null,null,null,null,null,null,null,"Costuri în Euro / ha"]
["Nr.\ncrt.",null,null,"Specificare",null,null,null,null,null,null,null,null,null,null,"cost\nstandard",null,null,null,null,null,null,"Suprafaţa\n(ha)",null,null,null,"Total\ncosturi\n(euro)",null,null,null,null,null,null,null,null,"contribuţie\nîn natură",null,null,null,null,null,null,null,"Suprafaţa\n(ha)",null,null,null,null,null,null,null,"Total\ncosturi\n(euro)",null,null,null,null,null,null,"Total\ngeneral\n(euro)"]
[1,null,null,"Sistem solar(tunel jos)",null,null,null,null,null,null,null,null,null,null,3573]
[2,null,null,"Instalare sistem solar(tunel jos)",null,null,null,null,null,null,null,null,null,null,592]
[null,null,null,"total"]
[]
["VI. Pepiniera pomicolă câmpul I"]
[null,null,null,null,null,null,null,null,null,null,null,null,null,null,null,null,null,null,null,null,null,null,null,null,null,null,"Costuri în Euro / ha"]
["Nr.\ncrt.",null,null,"Specificare",null,null,null,null,null,null,null,null,null,null,"cost\nstandard",null,null,null,null,null,null,"Suprafaţa\n(ha)",null,null,null,"Total\ncosturi\n(euro)",null,null,null,null,null,null,null,null,"contribuţie\nîn natură",null,null,null,null,null,null,null,"Suprafaţa\n(ha)",null,null,null,null,null,null,null,"Total\ncosturi\n(euro)",null,null,null,null,null,null,"Total\ngeneral\n(euro)"]
["Număr de plante la hectar",null,null,null,null,null,null,null,null,null,null,null,null,null,">= 50000 plantate-45000 altoite",null,null,null,null,null,null,null,null,null,null,null,null,null,null,null,null,null,null,null,">= 50000 plantate-45000 altoite"]
[null,null,null,"Fertilizare şi dezinfectare sol",null,null,null,null,null,null,null,null,null,null,1047]
["din care:"]
[null,null,null,"lucrări mecanice şi manuale",null,null,null,null,null,null,null,null,null,null,66,null,null,null,null,null,null,null,null,null,null,null,null,null,null,null,null,null,null,null,56]
[null,null,null,"gunoi de grajd\n",null,null,null,null,null,null,null,null,null,null,450,null,null,null,null,null,null,null,null,null,null,null,null,null,null,null,null,null,null,null,383]
[null,null,null,"Material biologic (portaltoi, ramuri altoi)\n",null,null,null,null,null,null,null,null,null,null,14054,null,null,null,null,null,null,null,null,null,null,null,null,null,null,null,null,null,null,null,11946]
[null,null,null,"Plantat portaltoi (lucrare completă)\n",null,null,null,null,null,null,null,null,null,null,914,null,null,null,null,null,null,null,null,null,null,null,null,null,null,null,null,null,null,null,777]
[null,null,null,"Altoit (lucrare completă)\n",null,null,null,null,null,null,null,null,null,null,2500,null,null,null,null,null,null,null,null,null,null,null,null,null,null,null,null,null,null,null,0]
[null,null,null,"Din care lucrări manuale\n",null,null,null,null,null,null,null,null,null,null,1964,null,null,null,null,null,null,null,null,null,null,null,null,null,null,null,null,null,null,null,1669]
[null,null,null,"total\n"]
["* Valorile nu conţin TVA"]
["MINISTERUL AGRICULTURII ŞI DEZVOLTĂRII RURALE",null,null,null,null,null,null,null,null,null,null,null,null,null,null,null,null,null,null,null,null,null,null,null,null,null,null,null,null,null,"SECTIUNE SPECIFICĂ MĂSURA M2/2A"]
["AGENŢIA PENTRU FINANŢAREA INVESTIŢIILOR RURALE"]
[]
["D. ALTE INFORMAȚII :"]
["Programarea proiectului:"]
["Numar luni de implementare"]
[]
["E. LISTA DOCUMENTELOR ANEXATE PROIECTELOR AFERENTE MĂSURII M2/2A",null,null,null,null,null,null,null,null,null,null,null,null,null,null,null,null,null,null,null,null,null,null,null,null,null,null,null,null,null,null,null,null,null,null,null,null,null,null,null,null,null,null,null,null,null,null,null,null,null,null,null,null,null,null,"OPIS"]
[null,null,null,null,null,null,null,null,null,null,null,null,null,null,null,null,null,null,null,null,null,null,null,null,null,null,null,null,null,null,null,null,null,null,null,null,null,null,null,null,null,null,null,null,null,null,null,null,null,null,null,null,null,null,null,"documente"]
["A se anexa documentele în ordinea de mai jos:"]
["Lista documente",null,null,null,null,null,null,null,null,null,null,null,null,null,null,null,null,null,null,null,null,null,null,null,null,null,null,null,null,null,"Obligatoriu pentru toate proiectele",null,null,null,null,"Obligatoriu, dacă proiectul impune",null,null,null,null,null,null,"PAGINA de la - până la",null,null,null,null,null,null,null,"Obligatoriu pentru toate proiectele",null,null,null,null,"Obligatoriu, dacă proiectul impune"]
["ETAPA:",null,null,null,null,null,null,null,null,null,null,null,null,null,null,null,null,null,null,null,null,null,null,null,null,null,null,null,null,null,"DEPUNERE",null,null,null,null,null,null,null,null,null,null,null,null,null,null,null,null,null,null,null,"CONTRACTARE"]
["1.a) Studiul de fezabilitate însoţit de Proiectul de înfiinţare a plantaţiei pomicole\n(în cazul înfiinţării/reconversiei plantatiilor) și avizat de ICDP Mărăcineni sau de\nstaţiunile de cercetare – dezvoltare pomicole din zonă)."]
["1.b) EXPERTIZA TEHNICĂ DE SPECIALITATE ASUPRA CONSTRUCŢIEI\nEXISTENTE"]
["1.c) RAPORTUL PRIVIND STADIUL FIZIC AL LUCRĂRILOR"]
["1.d) Anexa C – pentru solicitantii cu statut juridic PFA, I.I. sau I.F."]
["1.e) Anexa B – pentru celelalte categorii de statut juridic"]
["2. SITUAŢIILE FINANCIARE (bilanţ - formularul 10, contul de profit şi pierderi - formularul 20, formularele 30 și 40), precedente anului depunerii proiectului înregistrate la Administraţia Financiară. În cazul în care solicitantul este înfiinţat cu cel puţin trei ani financiari înainte de anul depunerii cererii de finanţare se vor depune ultimile trei situaţii financiare sau"]
["Declaraţa de inactivitate înregistrata la Administraţia Financiară, în cazul solicitanţilor care nu au desfăşurat activitate anterior depunerii proiectului sau"]
["Pentru persoane fizice autorizate, intreprinderi familiale și intreprinderi individuale:\nDeclarație privind veniturile realizate in anul precedent depunerii proiectului inregistrata la Administratia Financiara"]
["3. Documente solicitate pentru:\nTerenul agricol\na) Copie după documentul autentificat la notar care atestă dreptul de\nproprietate (a1) al terenului şi/sau tabel centralizator (a2) emis de Primărie\nsemnat de persoanele autorizate conform legii conţinând sumarul contractelor\nde arendare cu suprafeţele pe care va fi realizată investiția, luate în arendă pe\ncategorii de folosinţă, perioada de arendare şi/sau contractul de concesiune,\ncu o valabilitate de minimum 15 ani, excepție făcând pepinierele, culturile de\ncăpșun, zmeur, mur, coacăz și agriș unde perioada minimă este de 10 ani,\nîncepând cu anul depunerii Cererii de Finanţare"]
["Contractul de concesiune va fi însoţit de adresa emisă de concedent şi\ntrebuie să conţină:\n- situaţia privind respectarea clauzelor contractuale și dacă este în graficul de realizare a investiţiilor prevăzute în contract şi alte clauze;\n· suprafaţa concesionată la zi (dacă pentru suprafaţa concesionată există solicitări privind retrocedarea sau diminuarea, și dacă da, să se menţioneze care este suprafaţa supusă acestui proces)\n-În cazul Societăţilor agricole se ataşează tabelul centralizator emis de catre Societatea agricolă care va cuprinde suprafeţele aduse în folosinţa societăţii şi numele membrilor fermieri care le deţin în proprietate, cu o valabilitate de minimum 15 ani, excepţie făcând pepinierele, culturile de căpşun, zmeur, mur, coacăz şi agriş unde perioada minimă este de 10 ani, începând cu anul depunerii Cererii de Finanţare.\nPentru cooperative agricole, societăţi cooperative agricole, grupuri de\nproducatori, se vor prezenta documentele prevăzute mai sus pentru toţi\nmembrii fermieri ai acestor solicitanţi deserviţi de investiţie."]
["a3) Copie din Registrul Agricol emis de Primării, eliberată cu cel mult 30\nde zile înaintea depunerii cererii de finanţare în cazul solicitanţilor care prin intermediul proiectului vizează investiţii pe terenuri în pregătire."]
["b) IMOBILUL (clădirile şi/sau terenurile) pe care sunt/ vor fi realizate investiţiile:\nActul de proprietate, contract de concesionare sau alt document încheiat la notar care să certifice dreptul de folosinţă pe o perioadă de cel puțin 10 ani începând cu anul depunerii cererii de finanţare în cazul clădirilor asupra cărora se intervine cu investiţii de modernizare/extindere şi a terenurilor pe care se vor realiza investiţii ce presupun lucrări de construcţii montaj, care să confere titularului dreptul de execuţie a lucrărilor de construcţii, în conformitate cu prevederile Legii nr.50/1991, republicată, cu modificările şi completările ulterioare, având în vedere tipul de investiţie propusă prin proiect.\nContractul de concesiune va fi însoţit de adresa emisă de concedent şi\ntrebuie să conţină:\n- situaţia privind respectarea clauzelor contractuale şi dacă este în graficul de realizare a investiţiilor prevăzute în contract şi alte clauze;\n- suprafaţa concesionată la zi (dacă pentru suprafaţa concesionată există\nsolicitări privind retrocedarea sau diminuarea, şi dacă da, să se menţioneze care este suprafaţa supusă acestui proces) pentru terenul pe care este amplasată clădirea."]
["c.1) DOCUMENT CARE SĂ CERTIFICE CĂ NU AU FOST FINALIZATE\nLUCRĂRILE DE CADASTRU, pentru proiectele care vizează investiţii de lucrări privind construcţiile noi sau modernizări ale acestora.\nAtenție!**Pentru imobilele cu lucrările de cadastru finalizate, se va completa secțiunea A7 din CF, cu informațiile cadastrale, AFIR rezervându-și dreptul de a consulta baza de date ANCPI, în vederea obținerii Extrasului de Carte Funciară."]
["c.2) Acordul creditorului privind execuția investiției și graficul de rambursare a creditului.\nAtenție! Se va depune în situația în care imobilul pe care se execută investiția nu este liber de sarcini (gajat pentru un credit)."]
["d) Document pentru efectivul de animale deţinut în proprietate:\n1) Extras din Registrul Exploatatiei emis de ANSVSA/DSVSA cu cel mult 30 de zile înainte de data depunerii CF, din care să rezulte efectivul de animale deţinut, însoţit de formular de mişcare ANSVSA/DSVSA (Anexa 4 din Normele sanitare veterinare ale Ordinului ANSVSA nr. 40/2010);\nPentru exploataţiile agricole care deţin păsari si albine - Adeverinţă eliberată de medicul veterinar de circumscripţie, emisă cu cel mult 30 de zile înainte de data depunerii CF, din care rezulta numarul păsarilor şi al familiilor de albine şi data înscrierii solicitantului în Registrul Exploatației.\nPentru cooperative agricole, societăţi cooperative agricole, grupuri de\nproducatori, se vor prezenta documentele prevăzute la punctul d) pentru toţi membrii acestor solicitanţi."]
["2) PAŞAPORTUL emis de ANZ pentru ecvideele (cabalinele) cu rasă şi origine."]
["4. CERTIFICAT DE URBANISM pentru proiecte care prevăd construcţii (noi, extinderi sau modernizări)."]
["5. DOCUMENT EMIS DE ANPM PENTRU PROIECT (conform protocolului de colaborare intre AFIR - ANPM - GNM)"]
["6.1 CERTIFICATE CARE SĂ ATESTE LIPSA DATORIILOR RESTANTE FISCALE şi sociale, valabile la data incheierii contractului, emise de Direcţia Generală a Finanţelor Publice și de primăriile pe raza cărora îşi au sediul social și puncte de lucru (numai în cazul în care solicitantul este proprietar asupra imobilelor) şi, dacă este cazul, graficul de reeşalonare a datoriilor către bugetul consolidat.\n"]
["Atenție! Certificatele trebuie să menționeze clar lipsa datoriilor prin mențiunea„nu are datorii fiscale și sociale sau locale” sau bararea rubricii în care ar trebui să fie menționate.                                                 Atentie !Solicitantul va prezenta decizia de rambursare aprobată a sumelor negative solicitate la rambursare prin deconturile de TVA și/sau alte documente aprobate pentru soluționarea cererilor de restituire, decizie/documente care au fost aprobate ulterior eliberării certificatului de atestare fiscală, pentru compensarea obligațiilor fiscale de la Sect.A.                                                                                6.2 CAZIERUL JUDICIAR AL REPREZENTANTULUI LEGAL care să ateste\nlipsa înscrierilor care privesc sancțiuni economico-financiare, valabil la data\nîncheierii contractului."]
["7.1 DOCUMENT EMIS DE DSVSA PENTRU PROIECT, conform Protocolului de colaborare dintre AFIR şi ANSVSA publicat pe pagina de internet www.afir.info."]
["7.2 DOCUMENT EMIS DE DSP JUDEŢEANĂ, conform Protocolului de\ncolaborare dintre AFIR şi MS publicat pe pagina de internet www.afir.info\nAtenție! În cazul investiţiilor care prevăd atât achiziţie de utilaje agricole cât și\nutilaje necesare procesării, documentul 7.1 va trebui să ateste conformitatea\nproiectului cu legislatia în vigoare pentru domeniul sanitar veterinar și siguranta\nalimentelor şi trebuie să facă referire clar şi la activitatea de procesare.\nDocumentele acestui punct vor fi emise cu cel mult un an înaintea depunerii\nCererii de finanţare.\nÎn cazul proiectelor care prevăd doar achiziţii de utilaje agricole nu este\nnecesară prezentarea documentelor 7.1 şi 7.2."]
["8.1 DOCUMENTE CARE DOVEDESC CAPACITATEA ŞI SURSA DE COFINANŢARE privată a investiţiei, emise de o instituţie financiară, în original\n(extras de cont şi/sau contract de credit)."]
["8.2 DOCUMENT DE LA BANCĂ/TREZORERIE cu datele de identificare ale\nacesteia şi ale contului aferent proiectului FEADR (denumirea, adresa instituţiei\nfinanciare, codul IBAN al contului în care se derulează operaţiunile cu AFIR);"]
["9.1 AUTORIZAŢIE SANITARĂ/ NOTIFICARE de constatare a conformităţii cu legislaţia sanitară emise cu cel mult un an înaintea depunerii Cererii de Finanţare, pentru unitățile care se modernizează și se autorizează/avizează conform legislației în vigoare."]
["9.2 NOTA DE CONSTATARE PRIVIND CONDIŢIILE DE MEDIU pentru toate unităţile în funcţiune."]
["10.\na) HOTĂRÂRE JUDECĂTOREASCĂ definitivă pronunţată pe baza actului de constituire și a statutului propriu în cazul Societăţilor agricole, însoțită de Statutul Societății agricole;"]
["b) STATUT pentru Societatea cooperativă agricolă (înfiinţată în baza Legii nr.1/ 2005) si Cooperativa agricolă (înfiinţată în baza Legii nr. 566/ 2004 cumodificările și completările ulterioare) composesorate , obşti şi alte formeasociative de proprietate asupra terenurilor (menţionate în Legea nr.1/2000pentru reconstituirea dreptului de proprietate asupra terenurilor agricole şi celorforestiere, cu modificările şi completările ulterioare)."]
["c) DOCUMENT DE ÎNFIINȚARE A INSTITUTELOR DE CERCETARE, aCentrelor şi staţiunilor de cercetare – dezvoltare şi didactice, inclusiv universitățiavând în subordine stațiuni de cercetare dezvoltare și didactice din domeniulagricol."]
["11.1 DIPLOMĂ DE STUDII SUPERIOARE în domeniul agricol, agro-alimentar\nsau economie agrară, după caz, adeverinţă de absolvire a studiilor respective,\nînsoţită de foaia matricolă pentru cei care au absolvit în ultimele 12 luni;"]
["11.2 DIPLOMA DE ABSOLVIRE STUDII postliceale şi liceale în domeniul agricol;\nAtenţie! Documentele se pot prezenta pentru administratorul persoanei juridice sau pentru managerul exploataţiei agricole (angajatul pe post de director general sau şef de exploataţie cu responsabilităţi privind deciziile referitoare la gestionare, la beneficii şi la riscurile financiare legate de exploataţie).\nAtenție! Pentru angajat cu studii superioare în domeniul proiectului, se prezintă DIPLOMĂ DE STUDII SUPERIOARE în domeniul agricol (Facultate de Horticultură- specializarea Horticultură și Facultatea de Agronomiespecializarea Agricultură)"]
["11.3 DIPLOMA DE ABSOLVIRE A ȘCOLII PROFESIONALE sau diploma/ certificat de calificare ce atestă formarea profesională/certificat de competențe emis de un centru de evaluare si certificare a competentelor profesionale obţinute pe alte căi decât cele formale, care trebuie de asemenea să fie autorizat de Autoritatea Naţionala pentru Calificări sau Certificat de absolvire a cursului de calificare emis de ANCA, care conferă un nivel minim de calificare în domeniul agricol, agro-alimentar sau economie agrară, "]
["11.4 adeverinta de absolvire a studiilor in domeniu, pana la eliberarea documentului doveditor, dar nu mai tarziu de ultima plata."]
["11.5 EXTRAS DIN REGISTRUL GENERAL DE EVIDENȚĂ A SALARIAȚILOR care să ateste înregistrarea contractului individual de muncă."]
["12. ÎN CAZUL PROIECTELOR CARE INCLUD ȘI INVESTIȚII PRIVIND\nIRIGAȚIILE:\n12.1 AVIZ DE GOSPODĂRIREAPELOR/ NOTIFICAREA DE ÎNCEPERE A EXECUȚIEI, în cazul investiţiilor noi;\nsau\nAUTORIZAȚIE GOSPODĂRIRE/ NOTIFICARE DE PUNERE ÎN FUNCȚIUNE, în cazul funcţionării sistemului de irigaţii;"]
["12.2 AVIZ EMIS DE ANIF (dacă este cazul)"]
["12.3 DOCUMENT EMIS DE OUAI privind acordul de branşare (dacă este cazul)"]
["12.4 Document privind acordul de branșare emis de entitatea care administrează sursa de apă (dacă este cazul)"]
["13. AUTORIZAŢA PENTRU PRODUCEREA, PRELUCRAREA ŞI\nCOMERCIALIZAREA SEMINŢELOR ŞI MATERIALULUI SĂDITOR\nAtenţie! Autorizaţia pentru producerea, prelucrarea şi comercializarea seminţelor certificate şi a materialului săditor este eliberată de Inspectoratul Teritorial pentru Calitatea Semințelor și Materialului Săditor (ITCSMS), pentru soiurile care se regăsesc în Catalogul oficial al soiurilor de plante de cultură (ISTIS)."]
["14. AUTORIZAŢIA DE PLANTARE\nPentru plantaţiile de pomi cu suprafaţa mai mare de 2 ha şi pentru plantaţiile de arbuşti fructiferi cu suprafaţa mai mare de 0,5 ha autorizaţia de plantare se eliberează în baza unui proiect de înfiinţare a plantaţiei pomicole elaborat de persoane autorizate şi avizat de institutul de cercetare-dezvoltare pentru pomicultură sau de staţiunea de cercetare-dezvoltare pomicolă din zonă.\nAtentie! Inclusiv investițiile care vizează înființarea de plantații pomicole pe suprafețe mai mici de 2 ha vor avea proiect de înfiinţare a plantaţiei pomicole elaborat de persoane autorizate şi avizat de institutul de cercetare-dezvoltare pentru pomicultură sau de staţiunea de cercetare-dezvoltare pomicolă din zonă."]
["15. AUTORIZAŢIA DE DEFRIŞARE\nDefrişarea plantaţiilor de pomi şi arbuşti fructiferi de interes comercial\naparţinând persoanelor fizice sau juridice se face numai în baza autorizaţiei de defrişare eliberate de direcţiile pentru agricultură şi dezvoltare rurală judeţene şi, respectiv, a municipiului Bucureşti, în condiţiile prevăzute de legislaţia în vigoare."]
["16. DOCUMENTE CARE ATESTĂ CALITATEA DE MEMBRU OIPA\n16.1 DOCUMENT EMIS DE CĂTRE ORGANIZATIA INTERPROFESIONALĂ\nPENTRU PRODUSELE AGROALIMENTARE (OIPA), din care să reiasă că\nsolicitantul si , daca este cazul, tertele persoane cu care acesta incheie\ncontracte si/sau precontracte, are/au calitatea de membru al acesteia,\ndocument avizat de consiliul director.\nSe va lua în considerare atât documentul avizat de către Preşedintele\nConsiliului Director cât și de o altă persoană împuternicită de Consiliul Director conform prevederilor statutului.                                                             În acest caz, pe lângă documentul emis de OIPA din care sa reiasă ca solicitantul este membru al acesteia, solicitantul trebuie sa prezinte şi\nHotărârea Consiliului Director de împuternicire a Preşedintelui Consiliului\nDirector sau a unei alte persoane din cadrul Consiliului Director, conform\nprevederilor statutului, în vederea semnării acestor documente."]
["16.2 Precontractele/ contractele cu membrii OIPA/ Grup de Producători (GP)/ cooperative/ organizaţie de producători, în vederea condiţionării/ procesării/ comercializării producției proprii."]
["17. Precontractele cu persoane juridice prin care se realizează comercializarea produselor proprii"]
["18.1 FIŞA DE ÎNREGISTRARE CA PRODUCĂTOR ȘI/SAU PROCESATOR\nÎN AGRICULTURĂ ECOLOGICĂ, ELIBERATA DE DAJ, ÎNSOȚITĂ DE\nCONTRACTUL ÎNCHEIAT CU UN ORGANISM DE INSPECȚIE ȘI\nCERTIFICARE (în cazul investițiilor noi sau în cazul modernizării\nexploatațiilor care obțin după implementarea proiectului, un produs\necologic)"]
["18.2 Certificat de conformitate a produselor agroalimentare ecologice\nemis de un organism de inspecţie şi certificare, conform prevederilor\nOUG 34/2000 privind produsele agroalimentare ecologice cu completările\nși modificările ulterioare pentru aprobarea regulilor privind organizarea\nsistemului de inspecție și certificare în agricultura ecologică (pentru\nmodernizări în vederea obținerii unui produs existent)."]
["19.1 DOCUMENTE SOLICITATE PENTRU GRUP DE PRODUCĂTORI\na) Certificatul de înregistrare eliberat de oficiul registrului comerţului conform legislaţiei în vigoare\nb) STATUT inclusiv pentru Composesoratele, obştile şi alte forme asociative de proprietate asupra terenurilor (menţionate în Legea nr. 1/ 2000 pentru reconstituirea dreptului de proprietate asupra terenurilor agricole şi celor forestiere, cu modificările și completările ulterioare), din care sa reiasa că acestea se incadreaza in categoria: societate cooperativă agricolă, cooperativă agricolă sau fermier în conformitate cu art 7, alin (21) din OUG 3/2015, cu modificările și completările ulterioare."]
["19.2 Documente solicitate pentru membru al unui grup de producatori\nrecunoscut preliminar, al unui grup de producatori recunoscut sau al unei organizații de producători. Document emis de către grupul de producători / societatea cooperativă / cooperativă agricolă din care să reiasă că solicitantul este membru al acesteia însoţit de documentul de înfiinţare al acestora (act constitutiv si statut)."]
["20. ACORD de principiu privind includerea generatoarelor terestre\nantigrindină în Sistemul Naţional Antigrindină şi de Creştere a Precipitaţiilor,  emis de AASNACP."]
["21. Document din care să rezulte că materialul de plantare fructifer este inclus în Cataloagele oficiale ale statelor membre UE sau care se regăsesc în cataloagele producătorilor comerciali de material de plantare fructifer."]
["22. DECLARAȚIE PRIVIND PRELUCRAREA DATELOR CU CARACTER PERSONAL."]
["22. Alte documente justificative (se vor specifica după caz) pe care solicitantul le poate prezenta pentru a susţine datele şi informaţiile prezentate în proiect:"]
[]
[]
[]
[]
[]
[]
[]
[]
[]
["COEFICIENŢI PRODUCŢIE STANDARD 2013"]
["Coduri EUROSTAT",null,null,null,null,null,null,"Denumire culturi",null,null,null,null,null,null,null,null,null,null,null,null,null,null,null,null,null,null,"SO 2013 euro/ha",null,null,null,null,null,null,"Suprafaţa (ha)",null,null,null,null,null,null,"SO activitate existentă",null,null,null,null,null,null,"Suprafaţa (ha) în urma realizării investiţiei",null,null,null,null,null,null,"SO în urma realizării investiţiei"]
[0,null,null,null,null,null,null,1,null,null,null,null,null,null,null,null,null,null,null,null,null,null,null,null,null,null,2,null,null,null,null,null,null,3,null,null,null,null,null,null,4,null,null,null,null,null,null,5,null,null,null,null,null,null,6]
["B_1_1_1",null,null,null,null,null,null,"Grâu comun",null,null,null,null,null,null,null,null,null,null,null,null,null,null,null,null,null,null,614.09,null,null,null,null,null,null,null,null,null,null,null,null,null,{"$f":"AA562*AH562","v":0},null,null,null,null,null,null,null,null,null,null,null,null,null,{"$f":"AA562*AV562","v":0}]
["B_1_1_2",null,null,null,null,null,null,"Grâu dur",null,null,null,null,null,null,null,null,null,null,null,null,null,null,null,null,null,null,432.81,null,null,null,null,null,null,null,null,null,null,null,null,null,{"$f":"AA1084*AH1084","v":0},null,null,null,null,null,null,null,null,null,null,null,null,null,{"$f":"AA1084*AV1084","v":0}]
["B_1_1_3",null,null,null,null,null,null,"Secară",null,null,null,null,null,null,null,null,null,null,null,null,null,null,null,null,null,null,354.27,null,null,null,null,null,null,null,null,null,null,null,null,null,0,null,null,null,null,null,null,null,null,null,null,null,null,null,0]
["B_1_1_4",null,null,null,null,null,null,"Orz+Orzoaica",null,null,null,null,null,null,null,null,null,null,null,null,null,null,null,null,null,null,529.44000000000005,null,null,null,null,null,null,null,null,null,null,null,null,null,0,null,null,null,null,null,null,null,null,null,null,null,null,null,0]
["B_1_1_5",null,null,null,null,null,null,"Ovăz",null,null,null,null,null,null,null,null,null,null,null,null,null,null,null,null,null,null,331.88,null,null,null,null,null,null,null,null,null,null,null,null,null,0,null,null,null,null,null,null,null,null,null,null,null,null,null,0]
["B_1_1_6",null,null,null,null,null,null,"Porumb boabe",null,null,null,null,null,null,null,null,null,null,null,null,null,null,null,null,null,null,641.79999999999995,null,null,null,null,null,null,null,null,null,null,null,null,null,0,null,null,null,null,null,null,null,null,null,null,null,null,null,0]
["B_1_1_7",null,null,null,null,null,null,"Orez",null,null,null,null,null,null,null,null,null,null,null,null,null,null,null,null,null,null,913.26,null,null,null,null,null,null,null,null,null,null,null,null,null,0,null,null,null,null,null,null,null,null,null,null,null,null,null,0]
["B_1_1_99",null,null,null,null,null,null,"Alte cereale (sorgul, triticale, meiul, hrişca, iarba-cănăraşului, altele)",null,null,null,null,null,null,null,null,null,null,null,null,null,null,null,null,null,null,452.74,null,null,null,null,null,null,null,null,null,null,null,null,null,0,null,null,null,null,null,null,null,null,null,null,null,null,null,0]
["B_1_2_1",null,null,null,null,null,null,"Mazăre boabe, fasole boabe, lupin dulce",null,null,null,null,null,null,null,null,null,null,null,null,null,null,null,null,null,null,533.77,null,null,null,null,null,null,null,null,null,null,null,null,null,0,null,null,null,null,null,null,null,null,null,null,null,null,null,0]
["B_1_2_2",null,null,null,null,null,null,"Linte, bob, măzăriche şi năut",null,null,null,null,null,null,null,null,null,null,null,null,null,null,null,null,null,null,454.79,null,null,null,null,null,null,null,null,null,null,null,null,null,0,null,null,null,null,null,null,null,null,null,null,null,null,null,0]
["B_1_3",null,null,null,null,null,null,"Cartofi (inclusiv cartofi noi, material săditor, cartof dulce destinat consumului uman)",null,null,null,null,null,null,null,null,null,null,null,null,null,null,null,null,null,null,3167.88,null,null,null,null,null,null,null,null,null,null,null,null,null,0,null,null,null,null,null,null,null,null,null,null,null,null,null,0]
["B_1_4",null,null,null,null,null,null,"Sfeclă de zahăr",null,null,null,null,null,null,null,null,null,null,null,null,null,null,null,null,null,null,1449.74,null,null,null,null,null,null,null,null,null,null,null,null,null,{"$f":"AA573*AH573","v":0},null,null,null,null,null,null,null,null,null,null,null,null,null,0]
["B_1_5",null,null,null,null,null,null,"Plante rădăcinoase pentru nutreţ (sfecla furajeră, alte plante furajere din familia brasiceelor, morcovi furajeri, batata (cartof dulce), păstârnac, ignama, manioc, napi furajeri)",null,null,null,null,null,null,null,null,null,null,null,null,null,null,null,null,null,null,1101.45,null,null,null,null,null,null,null,null,null,null,null,null,null,{"$f":"AA1095*AH1095","v":0},null,null,null,null,null,null,null,null,null,null,null,null,null,0]
["B_1_6_1",null,null,null,null,null,null,"Tutun",null,null,null,null,null,null,null,null,null,null,null,null,null,null,null,null,null,null,1696.83,null,null,null,null,null,null,null,null,null,null,null,null,null,0,null,null,null,null,null,null,null,null,null,null,null,null,null,0]
["B_1_6_2",null,null,null,null,null,null,"Hamei",null,null,null,null,null,null,null,null,null,null,null,null,null,null,null,null,null,null,4105.24,null,null,null,null,null,null,null,null,null,null,null,null,null,0,null,null,null,null,null,null,null,null,null,null,null,null,null,0]
["B_1_6_4",null,null,null,null,null,null,"Rapiţă",null,null,null,null,null,null,null,null,null,null,null,null,null,null,null,null,null,null,647.72,null,null,null,null,null,null,null,null,null,null,null,null,null,0,null,null,null,null,null,null,null,null,null,null,null,null,null,0]
["B_1_6_5",null,null,null,null,null,null,"Floarea soarelui",null,null,null,null,null,null,null,null,null,null,null,null,null,null,null,null,null,null,564.52,null,null,null,null,null,null,null,null,null,null,null,null,null,0,null,null,null,null,null,null,null,null,null,null,null,null,null,0]
["B_1_6_6",null,null,null,null,null,null,"Soia",null,null,null,null,null,null,null,null,null,null,null,null,null,null,null,null,null,null,611,null,null,null,null,null,null,null,null,null,null,null,null,null,0,null,null,null,null,null,null,null,null,null,null,null,null,null,0]
["B_1_6_7",null,null,null,null,null,null,"In pentru ulei",null,null,null,null,null,null,null,null,null,null,null,null,null,null,null,null,null,null,1563.56,null,null,null,null,null,null,null,null,null,null,null,null,null,0,null,null,null,null,null,null,null,null,null,null,null,null,null,0]
["B_1_6_8",null,null,null,null,null,null,"Alte plante pentru ulei (ricin, şofrănaş, susan, arahide, mac, muştar, alte culturi oleaginoase)",null,null,null,null,null,null,null,null,null,null,null,null,null,null,null,null,null,null,374,null,null,null,null,null,null,null,null,null,null,null,null,null,{"$f":"AA581*AH581","v":0},null,null,null,null,null,null,null,null,null,null,null,null,null,0]
["B_1_6_9",null,null,null,null,null,null,"In textil",null,null,null,null,null,null,null,null,null,null,null,null,null,null,null,null,null,null,307.17,null,null,null,null,null,null,null,null,null,null,null,null,null,{"$f":"AA1103*AH1103","v":0},null,null,null,null,null,null,null,null,null,null,null,null,null,0]
["B_1_6_10",null,null,null,null,null,null,"Cânepă",null,null,null,null,null,null,null,null,null,null,null,null,null,null,null,null,null,null,518.11,null,null,null,null,null,null,null,null,null,null,null,null,null,{"$f":"AA1104*AH1104","v":0},null,null,null,null,null,null,null,null,null,null,null,null,null,0]
["B_1_6_12",null,null,null,null,null,null,"Plante medicinale şi aromatice inclusiv ceaiul, cafeaua şi cicoarea pentru cafea: muşeţel, mătrăguna, menta, mac, angelica,chimen, genţiana, iasomia, lavanda, levănţica, origanul, şofranul, salvia, valeriana, gălbeneaua, ghimbirul, etc",null,null,null,null,null,null,null,null,null,null,null,null,null,null,null,null,null,null,937.85,null,null,null,null,null,null,null,null,null,null,null,null,null,{"$f":"AA1105*AH1105","v":0},null,null,null,null,null,null,null,null,null,null,null,null,null,0]
["B_1_6_99",null,null,null,null,null,null,"Alte plante industriale- cicoarea, trestia de zahăr, alte plante tehnice nemenţionate în altă parte, sorgul tehnic (pentru mături)",null,null,null,null,null,null,null,null,null,null,null,null,null,null,null,null,null,null,717.56,null,null,null,null,null,null,null,null,null,null,null,null,null,{"$f":"AA1106*AH1106","v":0},null,null,null,null,null,null,null,null,null,null,null,null,null,0]
["B_1_7_1_1",null,null,null,null,null,null,"Legume proaspete, pepeni şi căpşuni - în câmp\n- varză, conopidă, broccoli, sparanghel\n- legume pt. frunze (praz, salată, spanac, etc.)\n- tomate\n- porumb dulce\n- legume cultivate pentru fructe - vinete, ardei, dovleci şi dovlecei, castraveciori\n- legume cultivate pentru rădăcină, bulbi, tuberculi (excepţie cartofi): morcovi, păstârnac, ceapă, usturoi, ridichi, napi\n- legume păstăi(fasole, mazăre cu excepţia lintei şi a năutului)\n- fructele plantelor neperene (căpşuni, pepeni galbeni, pepeni verzi, ananas)",null,null,null,null,null,null,null,null,null,null,null,null,null,null,null,null,null,null,6196.49,null,null,null,null,null,null,null,null,null,null,null,null,null,{"$f":"AA586*AH586","v":0},null,null,null,null,null,null,null,null,null,null,null,null,null,0]
["B_1_7_1_2",null,null,null,null,null,null,"Legume proaspete, pepenişi căpşuni - în grădină destinate comercializării:\n- varză, conopidă, broccoli, sparanghel\n- legume pt. frunze (praz, salată, spanac, etc.)\n- tomate\n- porumb dulce\n- legume cultivate pentru fructe - vinete, ardei,dovleci şi dovlecei, castraveciori\n- legume cultivate pentru rădăcină, bulbi, tuberculi (excepţie cartofi): morcovi, păstârnac, ridichi, ceapă, usturoi, napi\n- legume păstăi(fasole, mazăre cu excepţia lintei şi a năutului)\n- fructele plantelor neperene (căpşuni, pepeni galbeni, pepeni verzi, ananas)",null,null,null,null,null,null,null,null,null,null,null,null,null,null,null,null,null,null,7176.16,null,null,null,null,null,null,null,null,null,null,null,null,null,{"$f":"AA587*AH587","v":0},null,null,null,null,null,null,null,null,null,null,null,null,null,{"$f":"AA1108*AV1108","v":0}]
["B_1_7_2",null,null,null,null,null,null,"Legume proaspete, pepeni şi căpşuni - în sere şi solarii:\n- varză, conopidă, broccoli, sparanghel\n- legume pt. frunze (praz, salată, spanac, etc.)\n- tomate\n- porumb dulce\n- legume cultivate pentru fructe - vinete, ardei,dovleci şi dovlecei, castraveciori\n- legume cultivate pentru rădăcină, bulbi, tuberculi (excepţie cartofi): morcovi, păstârnac, ceapă, usturoi, ridichi, napi\n- legume păstăi(fasole, mazăre cu excepţia lintei şi a năutului)\n- fructele plantelor neperene (căpşuni, pepeni galbeni, pepeni verzi, ananas)",null,null,null,null,null,null,null,null,null,null,null,null,null,null,null,null,null,null,27507.66,null,null,null,null,null,null,null,null,null,null,null,null,null,{"$f":"AA588*AH588","v":0},null,null,null,null,null,null,null,null,null,null,null,null,null,0]
["B_1_8_1",null,null,null,null,null,null,"Flori - în câmp\n- bulbi de flori, cormi şi tuberculi\n- flori tăiate şi boboci\n- plante cu flori şi plante ornamentale\n",null,null,null,null,null,null,null,null,null,null,null,null,null,null,null,null,null,null,25527.46,null,null,null,null,null,null,null,null,null,null,null,null,null,{"$f":"AA589*AH589","v":0},null,null,null,null,null,null,null,null,null,null,null,null,null,0]
["B_1_8_2",null,null,null,null,null,null,"Flori - în sere şi solarii\n- bulbi de flori, cormi şi tuberculi\n- flori tăiate şi boboci\n- plante cu flori şi plante ornamentale",null,null,null,null,null,null,null,null,null,null,null,null,null,null,null,null,null,null,83743.81,null,null,null,null,null,null,null,null,null,null,null,null,null,{"$f":"AA1111*AH1111","v":0},null,null,null,null,null,null,null,null,null,null,null,null,null,0]
["B_1_9_1",null,null,null,null,null,null,"Plante de nutreţ - iarba temporară - iarba semănată pe terenuri arabile cedate producţiilor furajere erbacee pe o perioadă mai scurtă de 5 ani şi chiar sub un an",null,null,null,null,null,null,null,null,null,null,null,null,null,null,null,null,null,null,266.22000000000003,null,null,null,null,null,null,null,null,null,null,null,null,null,0,null,null,null,null,null,null,null,null,null,null,null,null,null,0]
["B_1_9_2_1",null,null,null,null,null,null,"Plante de nutreţ - alte furaje verzi - porumb siloz",null,null,null,null,null,null,null,null,null,null,null,null,null,null,null,null,null,null,1029.19,null,null,null,null,null,null,null,null,null,null,null,null,null,0,null,null,null,null,null,null,null,null,null,null,null,null,null,0]
["B_1_9_2_2",null,null,null,null,null,null,"Plante de nutreţ - alte furaje verzi (culturi anuale de cereale recoltate verzi, sorgul anual, anumite graminee anuale cum este firuţa, cruciferele, facelia dacă sunt recoltate  verzi şi nu au fost menţionate în altă parte - măzăriche, lupin dulce)",null,null,null,null,null,null,null,null,null,null,null,null,null,null,null,null,null,null,476.13,null,null,null,null,null,null,null,null,null,null,null,null,null,0,null,null,null,null,null,null,null,null,null,null,null,null,null,0]
["B_1_9_2_99",null,null,null,null,null,null,"Alte plante de nutreţ (diferite specii de trifoi anual sau peren- trifoi alb, trifoi roşu, trifoi de Alexandria - diferite varietăţi de lucernă)",null,null,null,null,null,null,null,null,null,null,null,null,null,null,null,null,null,null,662.78,null,null,null,null,null,null,null,null,null,null,null,null,null,0,null,null,null,null,null,null,null,null,null,null,null,null,null,0]
["B_1_10",null,null,null,null,null,null,"Seminţe şi seminiceri\n- semințe de graminee\n- seminţe pentru horticultură\n- seminţe şi răsaduri pentru teren arabil cu excepţia cerealelor, a boabelor de leguminoase uscate, a cartofilor, a plantelor oleaginoase",null,null,null,null,null,null,null,null,null,null,null,null,null,null,null,null,null,null,2993.73,null,null,null,null,null,null,null,null,null,null,null,null,null,0,null,null,null,null,null,null,null,null,null,null,null,null,null,0]
["B_1_11",null,null,null,null,null,null,"Alte plante (culturi de mică importanţă economică care nu pot fi încadrate în altă categorie)",null,null,null,null,null,null,null,null,null,null,null,null,null,null,null,null,null,null,592.99,null,null,null,null,null,null,null,null,null,null,null,null,null,0,null,null,null,null,null,null,null,null,null,null,null,null,null,0]
["B_3_1",null,null,null,null,null,null,"Păşuni şi fâneţe permanente - păşuni şi fâneţe",null,null,null,null,null,null,null,null,null,null,null,null,null,null,null,null,null,null,295.04000000000002,null,null,null,null,null,null,null,null,null,null,null,null,null,0,null,null,null,null,null,null,null,null,null,null,null,null,null,0]
["B_3_2",null,null,null,null,null,null,"Păşuni şi fâneţe permanente - pe terenuri accidentate - păşuni sărace, inclusiv lăstărişul, de obicei nefertilizate şi neîntrebuinţate - păşuni cu randament scăzut situate în locuri accidentate şi la altitudini mari, care nu sunt cosite - terenuri  tâncoase, terenuri mlăştinoase, bărăganuri",null,null,null,null,null,null,null,null,null,null,null,null,null,null,null,null,null,null,92.33,null,null,null,null,null,null,null,null,null,null,null,null,null,0,null,null,null,null,null,null,null,null,null,null,null,null,null,0]
["B_4_1_1_1",null,null,null,null,null,null,"Fructe, pomi şi arbuşti - climă temperată:\nMere\nPere\nPiersici şi nectarine\nAlte fructe vişine, cirese, caise, prune, gutui",null,null,null,null,null,null,null,null,null,null,null,null,null,null,null,null,null,null,2812.04,null,null,null,null,null,null,null,null,null,null,null,null,null,0,null,null,null,null,null,null,null,null,null,null,null,null,null,0]
["B_4_1_2",null,null,null,null,null,null,"Livezi de coacaz, smochin, zmeur, muri, agrișe, cătină, afin, goji, ",null,null,null,null,null,null,null,null,null,null,null,null,null,null,null,null,null,null,3958.34,null,null,null,null,null,null,null,null,null,null,null,null,null,{"$f":"AA600*AH600","v":0},null,null,null,null,null,null,null,null,null,null,null,null,null,0]
["B_4_1_3",null,null,null,null,null,null,"Fructe, pomi şi arbuşti - nuci, alune",null,null,null,null,null,null,null,null,null,null,null,null,null,null,null,null,null,null,1754.4,null,null,null,null,null,null,null,null,null,null,null,null,null,{"$f":"AA1122*AH1122","v":0},null,null,null,null,null,null,null,null,null,null,null,null,null,0]
["B_4_4_1",null,null,null,null,null,null,"Vii - vin nobil",null,null,null,null,null,null,null,null,null,null,null,null,null,null,null,null,null,null,1981.83,null,null,null,null,null,null,null,null,null,null,null,null,null,0,null,null,null,null,null,null,null,null,null,null,null,null,null,0]
["B_4_4_2",null,null,null,null,null,null,"Vii - alte vinuri",null,null,null,null,null,null,null,null,null,null,null,null,null,null,null,null,null,null,1889.96,null,null,null,null,null,null,null,null,null,null,null,null,null,0,null,null,null,null,null,null,null,null,null,null,null,null,null,0]
["B_4_4_3",null,null,null,null,null,null,"Vii – struguri de masa",null,null,null,null,null,null,null,null,null,null,null,null,null,null,null,null,null,null,2170.52,null,null,null,null,null,null,null,null,null,null,null,null,null,0,null,null,null,null,null,null,null,null,null,null,null,null,null,0]
["B_4_5",null,null,null,null,null,null,"Pepiniere",null,null,null,null,null,null,null,null,null,null,null,null,null,null,null,null,null,null,5614.25,null,null,null,null,null,null,null,null,null,null,null,null,null,0,null,null,null,null,null,null,null,null,null,null,null,null,null,0]
["B_4_6_1",null,null,null,null,null,null,"Alte culturi permanente: răchita, papura, bambus, salcie, brazi de crăciun",null,null,null,null,null,null,null,null,null,null,null,null,null,null,null,null,null,null,487.35,null,null,null,null,null,null,null,null,null,null,null,null,null,0,null,null,null,null,null,null,null,null,null,null,null,null,null,0]
["B_6_1",null,null,null,null,null,null,"Ciupercării pe 100mp (Nr. recolte pe an - 4)\n(suprafața totală cultivată = suprafața de bază*numărul de cicluri)",null,null,null,null,null,null,null,null,null,null,null,null,null,null,null,null,null,null,4456.78,null,null,null,null,null,null,null,null,null,null,null,null,null,{"$f":"AA607*AH607","v":0},null,null,null,null,null,null,null,null,null,null,null,null,null,{"$f":"AA607*AV607","v":0}]
[null,null,null,null,null,null,null,"Nr. de cicluri activitate existentă *"]
[null,null,null,null,null,null,null,"Suprafata activitate existentă (stelaje) (mp) **"]
[null,null,null,null,null,null,null,"Nr. de cicluri conform Studiului de Fezabilitate***"]
[null,null,null,null,null,null,null,"Suprafata în urma realizării investiţie (stelaje) (mp)****"]
[null,null,null,null,null,null,null,"TOTAL vegetal",null,null,null,null,null,null,null,null,null,null,null,null,null,null,null,null,null,null,null,null,null,null,null,null,null,{"$f":"SUM(AH562:AN611)","v":2},null,null,null,null,null,null,{"$f":"SUM(AO562:AU611)","v":3},null,null,null,null,null,null,{"$f":"SUM(AV562:BB611)","v":4},null,null,null,null,null,null,{"$f":"SUM(BC562:BI611)","v":0}]
[]
["* SE VA COMPLETA CU NUMĂRUL DE CICLURI DIN ACTIVITATEA EXISTENTĂ, REALIZATE ÎN CADRUL UNUI AN.\n** SE VA COMPLETA CU SUPRAFAŢA CULTURII(MP) CU CIUPERCI, ACTIVITATE EXISTENTĂ; ÎN CAZUL ÎN CARE ÎN CADRUL CIUPERCĂRIEI SE UTILIZEAZĂ UN SISTEM DE CULTURĂ ÎN STELAJE, SE VA COMPLETA SUPRAFAŢA CULTURII(MP) FORMATĂ DIN SUPRAFAŢA UNUI STELAJ(MP)xNUMĂR DE STELAJE\n*** SE VA COMPLETA CU NUMĂRUL DE CICLURI PREVĂZUT A SE REALIZA ÎN STUDIUL DE FEZABILITATE, ÎN CADRUL UNUI AN.\n**** SE VA COMPLETA CU SUPRAFAŢA CULTURII(MP) CU CIUPERCI, ÎN URMA REALIZĂRII INVESTIŢIEI; ÎN CAZUL ÎN CARE ÎN CADRUL CIUPERCĂRIEI SE UTILIZEAZĂ UN SISTEM DE CULTURĂ ÎN STELAJE, SE VA COMPLETA SUPRAFAŢA CULTURII(MP) FORMATĂ DIN SUPRAFAŢA UNUI STELAJ(MP)xNUMĂR DE STELAJE"]
[]
["Coduri EUROSTAT",null,null,null,null,null,null,"Denumire specii animale",null,null,null,null,null,null,null,null,null,null,null,null,null,null,null,null,null,null,"SO 2013 euro/cap",null,null,null,null,null,null,"Număr capete",null,null,null,null,null,null,"SO activitate existentă",null,null,null,null,null,null,"Total capete animale în urma realizării investiţiei",null,null,null,null,null,null,"SO în urma realizării investiţiei"]
[0,null,null,null,null,null,null,1,null,null,null,null,null,null,null,null,null,null,null,null,null,null,null,null,null,null,2,null,null,null,null,null,null,3,null,null,null,null,null,null,4,null,null,null,null,null,null,5,null,null,null,null,null,null,6]
["C_1",null,null,null,null,null,null,"Ecvidee",null,null,null,null,null,null,null,null,null,null,null,null,null,null,null,null,null,null,1404.31,null,null,null,null,null,null,null,null,null,null,null,null,null,{"$f":"AA618*AH618","v":0},null,null,null,null,null,null,null,null,null,null,null,null,null,{"$f":"AA618*AV618","v":0}]
["C_2_1",null,null,null,null,null,null,"Bovine sub 1 an - total",null,null,null,null,null,null,null,null,null,null,null,null,null,null,null,null,null,null,216.38,null,null,null,null,null,null,null,null,null,null,null,null,null,{"$f":"AA1140*AH1140","v":0},null,null,null,null,null,null,null,null,null,null,null,null,null,{"$f":"AA1140*AV1140","v":0}]
["C_2_2",null,null,null,null,null,null,"Bovine sub 2 ani - masculi",null,null,null,null,null,null,null,null,null,null,null,null,null,null,null,null,null,null,344.4,null,null,null,null,null,null,null,null,null,null,null,null,null,0,null,null,null,null,null,null,null,null,null,null,null,null,null,0]
["C_2_3",null,null,null,null,null,null,"Bovine sub 2 ani - femele",null,null,null,null,null,null,null,null,null,null,null,null,null,null,null,null,null,null,341.49,null,null,null,null,null,null,null,null,null,null,null,null,null,0,null,null,null,null,null,null,null,null,null,null,null,null,null,0]
["C_2_4",null,null,null,null,null,null,"Bovine de 2 ani şi peste - masculi",null,null,null,null,null,null,null,null,null,null,null,null,null,null,null,null,null,null,817.88,null,null,null,null,null,null,null,null,null,null,null,null,null,0,null,null,null,null,null,null,null,null,null,null,null,null,null,0]
["C_2_5",null,null,null,null,null,null,"Bovine de 2 ani si peste - femele (juninci pentru îngrăşat, juninci pentru reproducţie)",null,null,null,null,null,null,null,null,null,null,null,null,null,null,null,null,null,null,801.38,null,null,null,null,null,null,null,null,null,null,null,null,null,0,null,null,null,null,null,null,null,null,null,null,null,null,null,0]
["C_2_6",null,null,null,null,null,null,"Vaci, bivolițe pentru lapte",null,null,null,null,null,null,null,null,null,null,null,null,null,null,null,null,null,null,1200.46,null,null,null,null,null,null,null,null,null,null,null,null,null,0,null,null,null,null,null,null,null,null,null,null,null,null,null,0]
["C_2_99",null,null,null,null,null,null,"Bovine de 2 ani şi peste - alte vaci",null,null,null,null,null,null,null,null,null,null,null,null,null,null,null,null,null,null,515.85,null,null,null,null,null,null,null,null,null,null,null,null,null,0,null,null,null,null,null,null,null,null,null,null,null,null,null,0]
["C_3_1_1",null,null,null,null,null,null,"Oi - mioare montate - oi de un an sau mai mult destinate reproducerii, oile reformate care urmează să fete",null,null,null,null,null,null,null,null,null,null,null,null,null,null,null,null,null,null,54.91,null,null,null,null,null,null,null,null,null,null,null,null,null,0,null,null,null,null,null,null,null,null,null,null,null,null,null,0]
["C_3_1_99",null,null,null,null,null,null,"Oi - alte oi : miei, berbeci, oi reformate - oi sterpe care urmează a fi îngrăşate în vederea sacrificării",null,null,null,null,null,null,null,null,null,null,null,null,null,null,null,null,null,null,26.72,null,null,null,null,null,null,null,null,null,null,null,null,null,0,null,null,null,null,null,null,null,null,null,null,null,null,null,0]
["C_3_2_1",null,null,null,null,null,null,"Capre – capre montate - capre montate femele destinate reproducerii, capre re reformate care urmează să fete",null,null,null,null,null,null,null,null,null,null,null,null,null,null,null,null,null,null,112.98,null,null,null,null,null,null,null,null,null,null,null,null,null,0,null,null,null,null,null,null,null,null,null,null,null,null,null,0]
["C_3_2_99",null,null,null,null,null,null,"Capre – alte capre: iezi, ţapi, capre reformate destinate sacrificării",null,null,null,null,null,null,null,null,null,null,null,null,null,null,null,null,null,null,39.67,null,null,null,null,null,null,null,null,null,null,null,null,null,0,null,null,null,null,null,null,null,null,null,null,null,null,null,0]
["C_4_1_1",null,null,null,null,null,null,"Porcine - tineret porcin sub 20 kg",null,null,null,null,null,null,null,null,null,null,null,null,null,null,null,null,null,null,33.36,null,null,null,null,null,null,null,null,null,null,null,null,null,0,null,null,null,null,null,null,null,null,null,null,null,null,null,0]
["C_4_1_2",null,null,null,null,null,null,"Porcine - scroafe pentru reproducţie peste 50 kg",null,null,null,null,null,null,null,null,null,null,null,null,null,null,null,null,null,null,262.55,null,null,null,null,null,null,null,null,null,null,null,null,null,0,null,null,null,null,null,null,null,null,null,null,null,null,null,0]
["C_4_1_99",null,null,null,null,null,null,"Porcine - alte porcine: porci la îngrăşat, vieri, scroafe destinate sacrificării",null,null,null,null,null,null,null,null,null,null,null,null,null,null,null,null,null,null,388.08,null,null,null,null,null,null,null,null,null,null,null,null,null,0,null,null,null,null,null,null,null,null,null,null,null,null,null,0]
["C_5_1",null,null,null,null,null,null,"Pui pentru carne *",null,null,null,null,null,null,null,null,null,null,null,null,null,null,null,null,null,null,473.59,null,null,null,null,null,null,null,null,null,null,null,null,null,0,null,null,null,null,null,null,null,null,null,null,null,null,null,0]
["C_5_2",null,null,null,null,null,null,"Găini ouătoare *",null,null,null,null,null,null,null,null,null,null,null,null,null,null,null,null,null,null,2156,null,null,null,null,null,null,null,null,null,null,null,null,null,0,null,null,null,null,null,null,null,null,null,null,null,null,null,0]
["C_5_3_1",null,null,null,null,null,null,"- curcani şi curci",null,null,null,null,null,null,null,null,null,null,null,null,null,null,null,null,null,null,4205.5600000000004,null,null,null,null,null,null,null,null,null,null,null,null,null,0,null,null,null,null,null,null,null,null,null,null,null,null,null,0]
["C_5_3_2",null,null,null,null,null,null,"- raţe",null,null,null,null,null,null,null,null,null,null,null,null,null,null,null,null,null,null,2824.99,null,null,null,null,null,null,null,null,null,null,null,null,null,0,null,null,null,null,null,null,null,null,null,null,null,null,null,0]
["C_5_3_3",null,null,null,null,null,null,"- gâşte",null,null,null,null,null,null,null,null,null,null,null,null,null,null,null,null,null,null,3602.66,null,null,null,null,null,null,null,null,null,null,null,null,null,0,null,null,null,null,null,null,null,null,null,null,null,null,null,0]
["C_5_3_4",null,null,null,null,null,null,"- struţi",null,null,null,null,null,null,null,null,null,null,null,null,null,null,null,null,null,null,30083.5,null,null,null,null,null,null,null,null,null,null,null,null,null,0,null,null,null,null,null,null,null,null,null,null,null,null,null,0]
["C_5_3_99",null,null,null,null,null,null,"- alte păsări: bibilici, porumbei, potârnichi, fazani, prepeliţe",null,null,null,null,null,null,null,null,null,null,null,null,null,null,null,null,null,null,900.34,null,null,null,null,null,null,null,null,null,null,null,null,null,0,null,null,null,null,null,null,null,null,null,null,null,null,null,0]
["C_6",null,null,null,null,null,null,"Iepuri (femele iepuri)",null,null,null,null,null,null,null,null,null,null,null,null,null,null,null,null,null,null,13.91,null,null,null,null,null,null,null,null,null,null,null,null,null,0,null,null,null,null,null,null,null,null,null,null,null,null,null,0]
["C_7",null,null,null,null,null,null,"Familii de albine",null,null,null,null,null,null,null,null,null,null,null,null,null,null,null,null,null,null,59.62,null,null,null,null,null,null,null,null,null,null,null,null,null,0,null,null,null,null,null,null,null,null,null,null,null,null,null,0]
[null,null,null,null,null,null,null,"TOTAL zootehnic",null,null,null,null,null,null,null,null,null,null,null,null,null,null,null,null,null,null,null,null,null,null,null,null,null,null,null,null,null,null,null,null,{"$f":"SUM(AO618:AU641)","v":0},null,null,null,null,null,null,null,null,null,null,null,null,null,{"$f":"SUM(BC618:BI641)","v":0}]
[null,null,null,null,null,null,null,"TOTAL GENERAL",null,null,null,null,null,null,null,null,null,null,null,null,null,null,null,null,null,null,null,null,null,null,null,null,null,null,null,null,null,null,null,null,{"$f":"AO612+AO642","v":0},null,null,null,null,null,null,null,null,null,null,null,null,null,{"$f":"BC612+BC642","v":0}]
[]
["* Valoarea SO se referă la 100 capete"]
[]
["DEFINIŢIA ŞI PRINCIPIILE DE CALCULARE A PRODUCŢIILOR STANDARD\nSO 2013\nExploataţia profesională este o exploataţie agricolă suficient de mare încât să ofere o activitate de bază pentru şeful exploataţiei şi un venit suficient pentru\nsusţinerea lui şi a familiei sale.\n(a) Valoarea producției standard reprezintă valoarea monetară a producției agricole brute la prețul de la poarta exploatației. Această valoare este suma\ndintre valoarea produsului principal (produselor principale) și cea a produsului secundar (produselor secundare). Valorile se calculează înmulțind producția\nper unitate cu prețul de la poarta exploatației. TVA-ul, taxele pe produse și plățile directe nu sunt incluse.\n(b) Perioada de producție Producțiile standard corespund unei perioade de producție de 12 luni (an calendaristic sau an de producție agricolă). Pentru\nprodusele vegetale și animale în cazul cărora perioada de producție este mai mică de 12 luni sau depășește această perioadă, se calculează o producție\nstandard corespunzătoare creșterii sau producției pe o perioadă de 12 luni.\n(c) Unități\n1. Producțiile standard corespunzătoare caracteristicilor culturilor se determină pe baza suprafeței exprimate în hectare.\nCu toate acestea, pentru ciuperci, producțiile standard se determină pe baza producției brute pentru toate recoltele anuale succesive și se exprimă per 100\nm2 de suprafață cultivată. În vederea utilizării lor în contextul RICA, aceste producții standard pentru ciuperci se împart la numărul de recolte anuale\nsuccesive care este comunicat Comisiei Europene.\n2. Producțiile standard corespunzătoare caracteristicilor efectivului de animale se determină pe cap de animal, cu excepția păsărilor de curte, pentru care se\nexprimă per 100 de capete, și a albinelor, pentru care se determină per stup.\n3. Datele de bază pentru determinarea producțiilor standard, precum și producțiile standard calculate se stabilesc în euro. Pentru statele membre care nu au\naderat la uniunea economică și monetară, producțiile standard se convertesc în euro, utilizându-se cursurile de schimb medii pentru perioada de referință.\nAceste cursuri de schimb medii se calculează pe baza cursurilor de schimb oficiale publicate de Comisie (Eurostat).\n(d) Defalcarea producțiilor standard\nÎn funcție de caracteristicile culturii vegetale și ale efectivului de animale producțiile standard se determină pentru toate caracteristicile agricole care sunt în\nexploatația agricolă.\nDimensiunea economică a unei exploataţii agricole reprezintă valoarea SO totală a exploataţiei, exprimată în euro, corespunzătoare sumei SO calculată\npentru fiecare dintre producţiile vegetale ori animale obţinute în exploataţia respectivă într-o perioadă de un an calendaristic sau an agricol.\nÎn cadrul măsurilor de Finanţare din cadrul Programului Naţional de Dezvoltare Rurală este necesară determinarea dimensiunii economice a exploataţiilor\nagricole care accesează fondurile europene.\nAceste instrucţiuni sprijină experţii verificatori de la nivel central şi pe cei judeţeni în rezolvarea atribuţiilor ce le revin în procesul de verificare a dimensiunii\neconomice, dimensiune rezultată în urma aplicării coeficienţilor standard output SO.\nAceştia se introduc ca atare şi se aplică la efectivul din teren la data aplicării cererii de Finanţare pentru măsurile de dezvoltare rurală. Pentru cazul\nexploataţiilor de îngrăşare a animalelor în mai multe cicluri pe an, dimensiunea economică se calculează în baza unui număr mediu.                                                                                                1.Culturi\nPentru toate tipurile de culturi (excepţie ciupercile) se aplică formula:\nSO 2013 = nr. ha cultura x coeficient cultura SO 2013\nIndiferent ce se obţine dintr-o cultură - făina, mălai, tărâţe, conserve, compot, dulceaţă, ţuică) - acestea sunt produse procesate fiind considerate ca venituri\ndin alte activităţi ale exploataţiei agricole şi care nu intră în calculul dimensionării economice. Excepţie face obţinerea vinului.\nPentru exploatații care au mai multe culturi în cadrul unei categorii, cum ar fi ”Legume proaspete pepeni și căpșuni - în câmp deschis \" sau - ”Fructe din zone cu\nclimă temperată”, coeficientul SO corespunde mediei ponderate a SO - urilor producțiilor incluse în această categorie. Este la latitudinea statelor membre să decidă\ncare producție trebuie să fie inclusă în calcul în funcție de semnificația acesteia.\nÎn cazul în care pozițiile sunt subdivizate în sub poziții Statele Membre pot da un singur coeficient regional pentru o poziție principală; în acest caz, coeficientul pentru\npoziția principală se utilizează și pentru sub pozițiile aferente ex. ”Legume proaspete, pepeni şi căpşuni - în câmp, Flori, Fructe, pomi şi arbuşti - climă temperată” etc.\nTratamentul cazurilor speciale\nSe stabilesc regulile următoare pentru calcularea producţiilor standard pentru anumite tipuri de caracteristici:\nPârloage (terenuri scoase temporar din circuitul agricol) fără subvenţii\nProducţia standard corespunzătoare pârloagelor fără niciun fel de subvenţii se ia în considerare la calcularea producţiei standard totale a exploataţiei numai în cazul în\ncare există alte producţii standard pozitive pe exploataţie.\nPârloage pentru care s-au acordat subvenţii, fără uz economic, şi păşuni permanente care nu mai sunt utilizate în producţie şi care sunt eligibile pentru plata\nsubvenţiilor\nAvând în vedere că producţia de pe terenurile în sistem de ajutor fără uz economic este limitată la plăţile directe, producţiile standard ale acestor terenuri se consideră\negale cu zero.\nGrădinile familiale\nAvând în vedere că produsele grădinilor familiale sunt în mod obişnuit destinate consumului propriu al exploatantului şi nu comercializării, producţiile standard ale\nacestora se consideră egale cu zero.\nCultura ciupercilor\nPentru ciuperci cod B_6_1, producțiile standard se determină pe baza producției brute pentru toate recoltele anuale succesive și se exprimă per 100 m2 de suprafață\ncultivată.\nSe va dimensiona astfel:\nSuprafața totală a culturilor succesive = suprafaţa de bază (care poate fi supraetajată) x numărul de recolte - cicluri - complete\nPentru România s-au stabilit 4 cicluri de producţie.\nExemplu de calcul:\nPentru o suprafaţă totală de 200 mp:\nSO 2013 = 2 x 4456,78/4 cicluri = 2228,39 euro\nSeminţe şi semininceri\nCulturile de graminee (grâu, orz, orzoaică, ovăz, porumb, alte cereale) - loturi semincere se vor încadra la categoria de baza a culturii. Ca urmare la\ncategoria B_1_10 Seminţe şi semininceri vor fi incluse următoarele:\n- Seminţe de graminee altele decât cele de la categoriile B_1_1_1, B_1_1_2, B_1_1_3, B_1_1_4, B_1_1_5, B_1_1_6, B_1_1_7, B_1_1_99\n- Seminţe pentru horticultura\n- Seminţe şi răsaduri pentru teren arabil cu excepţia cerealelor, a boabelor de leguminoase uscate, a cartofilor, a plantelor oleaginoase\nFuraje\nÎn cazul în care, pe exploataţie, nu există erbivore (ecvidee, bovine, ovine şi caprine), furajele (rădăcinoase furajere şi brasicacee, plante verzi, păşuni şi fâneţe) se\nconsideră ca fiind destinate comercializării şi fac parte din producţia culturilor de câmp.\nÎn cazul în care, pe exploataţie, există erbivore, furajele se consideră a fi destinate hrănirii acestora şi fac parte din producţia corespunzătoare erbivorelor şi furajelor.\n2. Animale\nLa calcularea SO, procesarea produselor agricole nu trebuie luată în considerare chiar dacă această activitate este strâns legată de producție (lapte în unt,\nsmântână, brânză). Prin urmare, în cazul în care într-o regiune laptele este transformat în brânză, în calcularea SO pentru vacile de lapte numai valoarea laptelui va fi\nluată în considerare și nu valoarea brânzei.\nPentru toate speciile de animale se aplică formula:\nSO 2013 = nr. capete specie x coeficient specie SO 2013\nmai puţin cazul păsărilor de curte la care coeficientul calculat este la 100 capete.\n"]
[]
[]
[]
[]
[]
[]
[]
[null,"Exploataţia de creştere a cabalinelor\nÎn concordanţă cu codurile utilizate pentru coeficienţii producție standard (standard output, SO) se disting următoarele categorii de cabaline:\nC_1 Ecvidee: caii (inclusiv caii de curse și de călărie), măgarii, catârii, bardoii, etc.\n- Evaluarea cabalinelor s-a efectuat ţinând cont de valoarea orelor de muncă pe care acestea le efectuează în exploataţie ca producţie principală şi de\nvaloarea mânjilor fătaţi ca producţie secundară.\n- Cabalinele şi produsele acestora din anchetele RICA nu sunt destinate consumului uman ci deservesc munca în exploataţie.\nExemplu de calcul:\nExploataţia deţine:\n- 4 cai\n- 2 mânji\nDimensiunea economică a exploataţiei va fi:\nSO 2013 = 4 x 2052,50 = 8210 euro\nExploataţia de creştere bovine\nÎn concordanţă cu codurile utilizate pentru coeficienţii producție standard ( standard output, SO) se disting următoarele categorii de bovine:\nC_2_1. Bovine sub un an, masculi și femele\nC_2_2. Bovine între unu și doi ani, masculi\nC_2_3. Bovine între unu și doi ani, femele. Cu excepția bovinelor femele care au fătat deja.\nC_2_4. Bovine masculi de doi ani și de peste doi ani\nC_2_5. Juninci de reproducție. Bovine femele de doi ani sau mai mult, care nu au fătat încă și care sunt destinate reproducerii.\nC_2_5. Juninci pentru îngrășat. Bovine femele de doi ani sau mai mult, care nu au fătat încă și care nu sunt destinate reproducerii.\nC_2_6. Vaci de lapte. Bovine femele care au fătat (inclusiv cele de sub doi ani), care sunt ținute exclusiv sau în principal pentru producția de lapte destinat\nconsumului uman sau obținerii de produse lactate. Sunt incluse vacile de lapte reformate.\nC_2_6. Bivolițe. Bivolițele care au fătat (inclusiv cele de sub doi ani) care sunt ținute exclusiv sau în principal pentru producția de lapte destinat consumului\numan sau obținerii de produse lactate. Sunt incluse bivolițele reformate.\nC_2_99. Alte vaci:\n1. Bovine femele care au fătat (inclusiv cele de sub doi ani), care sunt ținute exclusiv sau în principal pentru producția de viței și al căror lapte nu este utilizat\npentru consumul uman sau obținerea de produse lactate.\n2. Vaci pentru muncă.\n3. Vaci reformate care nu sunt de lapte (îngrăşate sau nu înaintea sacrificării)\nCategoriile C_2_1:C_2_5 și C_2_99 includ și categoriile corespunzătoare de bivoli și bivolițe.\nPentru categoria C_2_1 Bovine sub un an se întâlnesc următoarele situaţii:\n· dacă în exploataţie se găsesc vaci de lapte cod C_2_6 atunci calculul dimensiunii economice se face prin însumarea producţiilor standard pentru vaci de\nlapte şi a producţiilor standard pentru viţeii sub 1 an al căror număr depăşeşte numărul vacilor de lapte;\n· dacă în exploatație nu se găsesc vaci de lapte atunci se iau în considerare producțiile standard corespunzătoare viţeilor sub 1 an pentru numărul care\nexistă în acel moment în exploataţie.\n· dacă în exploataţie sunt bovine femele care au fătat codul C_2_99, ţinute exclusiv sau în principal pentru producția de viței și al căror lapte nu este utilizat\npentru consumul uman sau obținerea de produse lactate, calculul dimensiunii economice se face prin însumarea producţiilor standard pentru bovine femele\ncare au fătat codul C_2_99 şi a producţiilor standard pentru viţeii sub 1 an al căror număr depăşeşte numărul bovinelor femele care au fătat cod C_2_99.\nExemple de calcul:\n1) Exploataţia deţine următoarele categorii de bovine:\n- 10 vaci de lapte care au fătat 12 viţei,\n- 2 tauri mai mari de doi ani,\n- 3 viţele mai mari de 2 ani destinate sacrificării,\n- 3 bovine femele care au fătat 3 viţei, bovine ţinute exclusiv pentru producţia de viţei\nDimensiunea economică a exploataţiei va fi:\nSO 2013 = 10 x 1200,46 + 2 x 216,38 + 2 x 817,88 + 3 x 801,38 + 3 x 515,85 = 18024,81 Euro\n2) Exploataţia deţine următoarele categorii de bovine:\n- 25 viţei bovine sub un an achiziţionaţi\n- 7 bovine femele care au fătat 9 viţei, bovine ţinute exclusiv pentru producţia de viţei\nDimensiunea economică a exploataţiei va fi:\nSO 2013 = 25 x 216,38 + 7 x 515,85 +2 x 216,38 = 9453,21 Euro\nExploataţia de creştere ovine şi caprine\nÎn concordanţă cu codurile utilizate pentru coeficienţii producție standard ( standard output, SO) se disting următoarele categorii de ovine şi caprine:\nC_3_1_1. Oi, femele de reproducție. Oi de un an sau mai mult destinate reproducției.\nC_3_1_99. Alte ovine. Ovine de toate vârstele, cu excepția oilor.\nC_3_2_1. Caprine, femele de reproducție\nC_3_2_99. Alte caprine. Caprine, altele decât femelele de reproducție.\nProducțiile standard corespunzătoare altor ovine - miei se iau în considerare la calcularea producției standard totale a exploatației numai în cazul în care în\nexploatație nu există nicio femelă ovină de reproducție.\nProducțiile standard corespunzătoare altor caprine - iezi se iau în considerare la calcularea producției standard totale a exploatației numai în cazul în care în\nexploatație nu există nicio femelă caprină de reproducție\nAcest lucru se datorează faptului că mieii/iezii sunt consideraţi producţia principală a oilor/caprelor, valoarea acestora fiind inclusă în coeficientul standard\noutput al oilor, respectiv caprelor.\nExemplu de calcul:\nExploataţia deţine următoarele categorii de ovine şi caprine:\n- 250 oi,\n- 270 miei,\n- 10 berbeci,\n- 12 oi sterpe,\n- 25 iezi\nSO 2013 = 250 x 54,91 + 10 x 26,72 +12 x26,72 + 25 x 39,67 = 15307,09 Euro\nExploataţia de creştere porcine :\nÎn concordanţă cu codurile utilizate pentru coeficienţii producție standard ( standard output, SO) se disting următoarele categorii de porcine:\nC_4_1. Purcei cu greutatea în viu sub 20 kg Purcei cu greutatea în viu sub 20 kg.\nC_4_2. Scroafe de reproducție de 50 kg și peste această greutate Scroafe de reproducție de 50 de kilograme sau mai mult, cu excepția scroafelor reformate\n(a se vedea categoria C_4_99, „Alte porcine”).\nC_4_99. Porci pentru îngrășat Porci pentru îngrășat cu greutatea în viu de 20 kg sau mai mult, cu excepția scroafelor reformate și a vierilor reformați (a se\nvedea categoria C_4_99, „Alte porcine”).\nC_4_99. Alte porcine Porci cu greutatea în viu de 20 kg sau mai mult, cu excepția scroafelor de reproducție (a se vedea categoria C_4_2) și a porcilor pentru\nîngrășat (a se vedea categoria C_4_99).\nProducțiile standard corespunzătoare purceilor se iau în considerare la calcularea producției standard totale a exploatației numai în cazul în care în\nexploatație nu există nicio scroafă de reproducție.Acest lucru se datorează faptului că purceii sub 20 kg sunt consideraţi producţia principală a scroafelor de reproducţie, valoarea acestora fiind inclusă în\ncoeficientul standard output al scroafelor.\nExemplu de calcul:\nExploataţia deţine:\n- 12 scroafe,\n- 40 purcei sub 20 kg,\n- 35 porci pentru îngrăşat,\n- 2 vieri\nSO 2013 = 12 x 262,55 + 35 x 388,08 + 2 x 388,08 = 17509,56 Euro\nIn cazul în care exploataţia îşi desfăşoară activitatea pe mai multe cicluri de producţie (îngrăşare), calculul dimensiunii se va face astfel:\n- SO 2013 total = număr mediu porci îngrăşat x SO 2013 porci îngrăşat unde numărul mediu este exprimat ca număr cu o zecimală şi se calculează\nproporţional cu durata prezenţei porcilor de îngrăşat în exploataţie în timpul anului;\n- Numărul mediu = nr. total porci îngrăşat x numărul de zile (sau luni) prezenţi în exploataţie/365zile (sau 12 luni)\nExemplu de calcul: exploataţia îngraşă porci în trei cicluri prin achiziţionarea unui nr. total de 1800 porci de îngrăşat:\n- Numărul mediu = 1800 x 112 zile prezenţi în exploataţie/365 zile an = 552,3 porci îngrăşat\n- Va rezulta dimensiunea exploataţiei ca fiind:\nSO 2013 TOTAL = 552,3 x 388,08 = 214336,58 euro.\nExploataţia de creştere păsări de curte\nÎn concordanţă cu codurile utilizate pentru coeficienții producție standard ( standard output, SO) se disting următoarele categorii de păsări de curte:\nC_5_1 pui pentru carne\nC_5_2 găini ouătoare: puicuțele (găini tinere care nu au început să ouă), găinile ouătoare, găinile reformate și cocoșii de reproducție pentru găini ouătoare.\nC_5_3_1 Curcani şi curci\nC_5_3_2 Raţe\nC_5_3_3 Gâşte\nC_5_3_4 Struţi\nC_5_3_99 Alte păsări: bibilici, porumbei, potârnichi, fazani, prepeliţe\nNu se includ puişorii de o zi în nicio categorie de păsări.\nPuişorii de o zi, care nu reprezintă o categorie, ca atare, dar sunt incluşi în categoria reziduală \"Alte animale\", sunt principalul produs al găinilor\nde reproducție. Pentru acest lucru nu se calculează coeficient SO aferent acestei categorii.\nExploataţiile cu incubatoare pentru obţinerea puişorilor de o zi ar trebui să-şi dimensioneze unitatea prin alte metode decât cea a utilizării coeficienţilor SO,\neventual cu producţia de puişori(valoare sau număr) previzionată.\n- Exploataţiile care îşi desfăşoară activitatea pe mai multe cicluri de producţie de pui de carne într-un an contabil se vor dimensiona la depunerea cererii de\nfinanţare cu efectivul mediu de păsări (a tuturor ciclurilor) conform următoarei formule:\nSO 2013 total = număr mediu pui de carne x SO 2013 pui carne/100 unde numărul mediu este exprimat în cazul păsărilor ca număr întreg şi se\ncalculează proporţional cu durata prezenţei lor în exploataţie în timpul anului\nExemplu de calcul\nExploataţia achiziţionează 1000000 pui de carne în timpul unui an în mai multe cicluri:\n- Numărul mediu = nr. total păsări x numărul de luni prezente în exploataţie/12 luni = 1000000 x 2/12 = 166667 pui de carne\n- Coeficientul standard output SO aferent categoriei C_5_1 Pui de carne = 473,59 euro/100 capete\n- Va rezulta dimensiunea exploataţiei ca fiind:\nSO 2013 TOTAL = 166667 x 473,59/100 = 789318,25 euro.\nRegulamentele care stau la baza calculului SO sunt următoarele:\n• Regulamentul (CE) nr. 1217/2009 al Consiliului privind crearea unei reţele de colectare de informaţii contabile privind veniturile şi activitatea\neconomică a exploataţiilor agricole în Uniunea Europeană;\n• Documentul Comitetului Comunitar RICA RI/CC 1680 v.4 Martie 2015 privind Definițiile chestionarului utilizat în anchetă;\n• Regulamentul de punere în aplicare (UE) 220/ 3 februarie 2015 al Comisiei de stabilire a normelor de aplicare a Regulamentului (CE) nr.\n1217/2009 al Consiliului privind crearea unei rețele de colectare de informații contabile privind veniturile și activitatea economică a exploatațiilor agricole în\nUniunea Europeană;\n• Documentul Comitetului Comunitar RICA RI/CC 1500 v.4 Iunie 2016 Manual de tipologie"]
[]
[]
[]
["F. DECLARAŢIE PE PROPRIA RĂSPUNDERE A SOLICITANTULUI"]
["Prin această declaraţie solicitantul"]
[]
["care solicită asistență financiară nerambursabilă prin programul FEADR pentru proiectul intitulat"]
[]
["prin reprezentant legal"]
[]
["cunoscând prevederile legii penale cu privire la falsul în declarații:"]
[null,null,null,"1. Declar că proiectul propus asistenței financiare nerambursabile FEADR nu beneficiază de altă finanțare din programe de finanțare nerambursabilă. De asemenea mă angajez ca în cazul în care proiectul va fi selectat pentru finanțare FEADR, nu voi depune acest proiect la nici un alt program de finanțare nerambursabilă la care proiectul poate fi în întregime sau parțial eligibil pentru asistență."]
[]
[null,null,null,"2. Declar că îndeplinesc condițiile de eligibilitate prevăzute în fișa sub-măsurii și Ghidul Solicitantului și mă angajez să le respect pe perioada de valabilitate a contractului de finanțare și monitorizare a investiției, inclusiv criteriile de selecție pentru care proiectul a fost punctat."]
[null,null,null,"3. Declar că toate informațiile din prezenta cerere de finanțare și din documentele anexate sunt corecte și mă angajez să respect condițiile cerute în reglementările referitoare la prezentul program și pe cele legate de proiectul anexat și să furnizez periodic, la cerere, documentele justificative necesare."]
[null,null,null,"4. Declar pe propria răspundere că orice modificări aduse dreptului de proprietate sau de folosinţă vor fi notificate AFIR în termen de trei zile de la data încheierii lor. De asemenea, mă angajez, ca pe perioada de valabilitate a contractului de finanţare şi monitorizare a investiţiei să nu diminuez suprafaţa şi/sau infrastructura cuprinsă în proiect."]
[null,null,null,"5. Declar că eu și organizația mea (UAT sau ONG) nu ne aflăm într-unul din următoarele cazuri:"]
[null,null,null,"Acuzat din cauza unei greșeli privind conduita profesională având ca soluție finală res judicata (împotriva căreia nici un apel nu este posibil)"]
[null,null,null,"Vinovat de grave deficiențe de conduită profesională dovedite prin orice mijloace pe care Agenția le poate justifica."]
[null,null,null,"Vinovat de faptul că nu am prezentat informaţiile cerute de Autoritatea Contractantă ca o condiţie de participare la licitaţie sau contractare"]
[null,null,null,"Încălcarea prevederilor contractuale prin care nu mi-am îndeplinit obligațiile contractuale în legătură cu un alt contract cu Agenția sau alte contracte finanțate din fonduri comunitare."]
[null,null,null,"Încercarea de a obține informații confidențiale sau de influențare a Agenției în timpul procesului de evaluare a proiectului și nu voi face presiuni la adresa evaluatorului."]
["6.",null,null,null,null,"Declar că organizaţia pe care o reprezint ARE datorii către institutii de credit şi/sau instituţii financiare bancare / nebancare pentru care prezint graficul de rambursare"]
[null,null,null,null,null,"Declar că organizaţia pe care o reprezint NU are datorii către instituţii de credit şi/sau instituţii financiare bancare / nebancare"]
["7.",null,null,null,null,"Declar pe propria răspundere că în cazul în care nu respect oricare din punctele prevazute în această declaraţie proiectul să devină neeligibil în baza criteriului \"Eligibilitatea solicitantului\" sau contractul să fie reziliat"]
["8.",null,null,null,null,"Declar pe propria răspundere că:"]
[null,null,null,null,null,"Nu sunt înregistrat în scopuri TVA și că mă angajez să notific Agenției orice modificare a situatiei privind înregistrarea ca plătitor de TVA, în maximum 10 (zece) zile de la data înregistrării în scopuri TVA."]
[null,null,null,null,null,"Sunt înregistrat în scopuri de TVA (certificat de înregistrare fiscală în scopuri de TVA)."]
["9.",null,null,null,null,"Declar pe propria răspundere că nu am înscrisuri care privesc sancțiuni economico-financiare în cazierul judiciar pe care mă oblig să îl depun la încheierea contractului de finanţare . Prin prezenta îmi exprim consimțământul ca AFIR să solicite instituțiilor abilitate conform legii, extrasul de pe cazierul judiciar privind situația mea.\n(Până la reglementarea posibilităţii aplicării de către experţii evaluatori AFIR a normelor metodologice aferente Legii nr. 290/2004 privind cazierul judiciar, cu modificările şi completările ulterioare, solicitantul are obligaţia depunerii documentului justificativ mai sus enunţat.)"]
["10.",null,null,null,null,"Declar pe propria raspundere că nu am fapte înscrise în cazierul fiscal."]
["11.",null,null,null,null,"Declar pe propria răspundere că toate cheltuielile neeligibile vor fi suportate de solicitant şi că acestea vor fi realizate până la finalizarea proiectului."]
["12.",null,null,null,null,"Declar pe propria răspundere că dosarul cererii de finanţare în original, va fi identic cu dosarul cererii de finanţare depus online. În caz contrar, proiectul nu va fi contractat."]
["13.",null,null,null,null,"Mă angajez ca în termenul prevăzut în „Notificarea beneficiarului privind selectarea cererii de finanţare şi\nsemnarea contractului de finanţare”,să prezint documentul privind cofinanţarea proiectului şi Angajamentul\nresponsabilului legal al proiectului că nu va utiliza în alte scopuri 50% din cofinanţarea privată, în cazul\nprezentării cofinanţării prin extras de cont."]
["14.",null,null,null,null,"Mă angajez ca în cazul înființării și/sau reconversiei plantatiilor pomicole voi utiliza doar material fructifer din\ncategoria biologică certificat sau dintr-o categorie superioară, excepţie făcând speciile nuc şi alun unde poate fi\nutilizat şi material CAC (conformitas agraria communitatis). Declar că voi prezenta documentul care atestă\ncategoria biologică a materialului de fructifer de plantat la depunerea cererii de plată, prin care se solicită\ndecontarea materialului săditor."]
["15.",null,null,null,null,"Mă angajez ca în maxim 4 luni de la data primirii \"Notificării beneficiarului privind selectarea cererii de finantare și semnarea contractului de finanțare\" să prezint documentul ANPM pentru proiect. Prin excepţie de la acest termen, în cazul în care proiectul se supune procedurilor de evaluare a impactului asupra mediului şi de evaluare adecvată sau doar de evaluare adecvată, mă angajez să prezint Acordul de mediu/Avizul Natura 2000 în termen de maximum 7 luni de la primirea Notificării solicitantului privind selectarea cererii de finanţare şi semnarea contractului de finanţare."]
[16,null,null,null,null,"Mă angajez ca în cazul pepinierelor, materialul de înmulţire şi materialul de plantare fructifer rezultat este\nmaterial fructifer din categoria biologică certificat sau dintr-o categorie superioară, document pe care îl voi\nprezenta obligatoriu la solicitarea ultimei cereri de plată"]
[17,null,null,null,null,"Mă angajez ca pe durata de execuţie a contractului să mențin cel puțin încadrarea în dimensiune SO a\nexploatației agricole prevăzută la depunerea cererii de finanțare, fără a reduce dimensiunea economică cu mai\nmult de 15% și fără a scădea, în nicio situație sub pragul minim de 4000SO stabilit prin condițiile de eligibilitate.\nPrin excepţie, în cazul pepinierelor marja de fluctuaţie a dimensiunii economice poate fi mai mare."]
[18,null,null,null,null,"Mă angajez ca mijloacele de transport achiziţionate prin proiect vor fi utilizate pentru transportul materiei prime,\ncomercializarea produselor agricole primare, a produselor condiţionate şi/sau procesate, cu condiţia respectării\ndefiniţiei lanţului scurt."]
[19,null,null,null,null,"Declar că organizaţia pe care o reprezint este înregistrată în registrul debitorilor AFIR şi mă angajez că datoria faţă de\nAFIR, inclusiv dobânzile şi majorările de întârziere, va fi achitată integral până la semnarea contractului de finanţare."]
[20,null,null,null,null,"Sunt de acord ca AFIR să publice pe site, să consulte şi să prelucreze, prin operaţiunile prevăzute de legislaţia în\nvigoare în vederea desfăşurării activităţii specifice, datele mele cu caracter personal, furnizate AFIR, cu respectarea\nlegislaţiei europene"]
[]
[]
[null,"Semnătura reprezentant legal şi ştampila (după caz)",null,null,null,null,null,null,null,null,null,null,null,null,null,null,null,null,null,null,null,null,null,null,null,null,null,null,null,null,null,null,null,null,null,null,null,null,null,null,null," Data:"]
[]
[]
[]
["Anexa INDICATORI DE MONITORIZARE"]
["M2/2A Investiţii în exploataţii pomicole în teritoriul GAL-MVS"]
[]
["1. Cod RO"]
["2. Cod CAEN"]
["3. Tipul beneficiarului",null,null,null,null,null,null,null,null,null,null,null,null,null,null,null,null,"Solicitanţi înfiinţaţi în baza OUG 44/2008",null,null,null,null,null,null,null,null,null,null,null,"Bărbaţi",null,null,null,null,null,null,null,null,null,null,null,"< 40"]
[null,null,null,null,null,null,null,null,null,null,null,null,null,null,null,null,null,null,null,null,null,null,null,null,null,null,null,null,null,null,null,null,null,null,null,null,null,null,null,null,null,">= 40"]
[null,null,null,null,null,null,null,null,null,null,null,null,null,null,null,null,null,null,null,null,null,null,null,null,null,null,null,null,null,"Femei",null,null,null,null,null,null,null,null,null,null,null,"< 40"]
[null,null,null,null,null,null,null,null,null,null,null,null,null,null,null,null,null,null,null,null,null,null,null,null,null,null,null,null,null,null,null,null,null,null,null,null,null,null,null,null,null,">= 40"]
[null,null,null,null,null,null,null,null,null,null,null,null,null,null,null,null,null,"Persoană juridică"]
["4. Tipul de zonă",null,null,null,null,null,null,null,null,null,null,null,null,null,null,null,null,"Zonă normală"]
[null,null,null,null,null,null,null,null,null,null,null,null,null,null,null,null,null,"Zonă montană"]
[null,null,null,null,null,null,null,null,null,null,null,null,null,null,null,null,null,"Zonă constrângeri specifice"]
[null,null,null,null,null,null,null,null,null,null,null,null,null,null,null,null,null,"Zonă constrângeri semnificative"]
["5. Tipul producţiei",null,null,null,null,null,null,null,null,null,null,null,null,null,null,null,null,"Ecologică"]
[null,null,null,null,null,null,null,null,null,null,null,null,null,null,null,null,null,"Convenţională"]
["6. Numărul de exploataţii sprijinite"]
["7. Dimensiunea economică a exploataţiei",null,null,null,null,null,null,null,null,null,null,null,null,null,null,null,null,"4.000 - 11.999 SO (mică)"]
[null,null,null,null,null,null,null,null,null,null,null,null,null,null,null,null,null,"12.000 – 250.000 SO (medie)"]
[null,null,null,null,null,null,null,null,null,null,null,null,null,null,null,null,null,">250.000 SO (mare)"]
["8. Suprafaţ exploatatiei/exploataţiilor sprijinite (Ha)"]
["9. Suprafaţa in reconversie (Ha)"]
["10. Suprafata infiintata (Ha)"]
["11. Suprafaţa vizată de investiţii pentru sisteme de irigaţii (Ha)"]
["12. Tipul investiţiei",null,null,null,null,null,null,null,null,null,null,null,null,null,null,null,null,"a.Investitii in modernizarea fermelor pomicole, inclusiv in infiintarea si reconversia plantatiilor pomicole si dotarea cu masini si utilaje/modernizarea parcului de masini si utilaje pentru pomicultură."]
[null,null,null,null,null,null,null,null,null,null,null,null,null,null,null,null,null,"b. Investitii in modernizarea pepinierelor pomicole, inclusiv in cresterea suprafetelor ocupate de material saditor."]
[null,null,null,null,null,null,null,null,null,null,null,null,null,null,null,null,null,"c. Înființarea şi/sau modernizarea căilor de acces în cadrul fermei, inclusiv utilităţi şi racordări;"]
[null,null,null,null,null,null,null,null,null,null,null,null,null,null,null,null,null,"d. Investiții necorporale: achiziționarea sau dezvoltarea de software și achiziționarea de brevete, licențe, drepturi de autor, mărci în conformitate cu la art 45 (2) (d) din Reg. 1305/2013;"]
[null,null,null,null,null,null,null,null,null,null,null,null,null,null,null,null,null,"e. altele"]
["13. Categoria investiţiei",null,null,null,null,null,null,null,null,null,null,null,null,null,null,null,null,"Utilaje şi echipamente"]
[null,null,null,null,null,null,null,null,null,null,null,null,null,null,null,null,null,"Construcţii agricole (inclusiv echipamentele asociate)"]
[null,null,null,null,null,null,null,null,null,null,null,null,null,null,null,null,null,"Alte investiţii agricole"]
["14. Contribuţie la Prioritatea 1",null,null,null,null,null,null,null,null,null,null,null,null,null,null,null,null,"M01 - Transfer de cunoştinţe şi acţiuni de informare"]
[null,null,null,null,null,null,null,null,null,null,null,null,null,null,null,null,null,"M02 - Servicii de consiliere"]
[null,null,null,null,null,null,null,null,null,null,null,null,null,null,null,null,null,"M16 - Cooperare"]
["*Pentru indicatorii de tip numeric care nu fac obiectul investiției se va completa valoarea zero.\nIndic. nr.1 - reprezintă codul de inregistrare al beneficiarului în Registrul Fermierului la APIA\nIndic. nr.2 - reprezintă codul CAEN pentru investiţia vizată prin proiect\nIndic. nr.3, 4, 5, 7, 12- se va bifa doar o singura categorie/ categoria majoritară\nIndic. nr. 6 - se va completa numărul exploataţiilor sprijinite prin proiect; in cazul investitiilor colective realizate de formele asociative\nale fermierilor (cooperative/grupuri de producatori) se va mentiona nr. de exploatatii care fac parte din formele asociative implicate/\nsprijinite in proiect.\nIndic. nr. 8 - se va completa suprafaţa în hectare a exploataţiei/ exploataţiilor sprijinite\nIndic. nr. 9, 10 - se va completa suprafaţa (Ha) în reconversie sau suprafaţa înfiinţată prin proiect\nIndic. nr. 11 - se va completa suprafaţa în hectare vizată de investiţii pentru sisteme de irigaţii\nIndic. nr. 13 - se va bifa categoria majoritară.\nÎn categoria \"Utilaje şi echipamente\" se vor încadra investiţii precum: achiziţionarea de maşini/utilaje şi echipamente noi, de\nmijloace de transport compacte, frigorifice, instalaţii de irigat, etc.\nÎn categoria \"Construcţii agricole (inclusiv echipamentele asociate)\" se vor încadra investiţii precum: construirea şi/ sau\nmodernizarea clădirilor utilizate pentru producţia la nivel de fermă, alte construcţii în fermă cum ar fi: depozite, instalatii necesare\ndepozitarii in conditii optime, etc.\nÎn categoria \"Alte investiţii agricole\" se vor încadra tipurile de investiţii care nu se încadrează în primele două categorii.\nIndic. nr. 14 - se va completa din momentul demararii M01, M02, respectiv M16, cu bifa în dreptul măsurii corespunzătoare, dacă va fi\ncazul."]
[]
[]
[]
[]
[]
[]
["Factori de risc"]
["I1. Valoarea sprijinului public nerambursabil (EURO)",null,null,null,null,null,null,null,null,null,null,null,null,null,null,null,null,null,null,null,null,null,null,null,null,null,null,null,null,null,null,null,null,null,null,null,null,null,null,null,null,null,null,null,null,null,null,null,null,null,"Punctaj obţinut"]
["• Proiecte cu valoarea sprijinului nerambursabil între 750.001 → 1.050.000",null,null,null,null,null,null,null,null,null,null,null,null,null,null,null,null,null,null,null,null,null,null,null,null,null,null,null,null,null,null,null,null,null,null,null,null,null,null,null,null,null,null,null,null,null,null,null,null,null,5]
["• Proiecte cu valoarea sprijinului nerambursabil între 450.001 → 750.000\n",null,null,null,null,null,null,null,null,null,null,null,null,null,null,null,null,null,null,null,null,null,null,null,null,null,null,null,null,null,null,null,null,null,null,null,null,null,null,null,null,null,null,null,null,null,null,null,null,null,4]
["• Proiecte cu valoarea sprijinului nerambursabil între 100.001 → 450.000",null,null,null,null,null,null,null,null,null,null,null,null,null,null,null,null,null,null,null,null,null,null,null,null,null,null,null,null,null,null,null,null,null,null,null,null,null,null,null,null,null,null,null,null,null,null,null,null,null,3]
["• Proiecte cu valoarea sprijinului nerambursabil ≤ 100.000",null,null,null,null,null,null,null,null,null,null,null,null,null,null,null,null,null,null,null,null,null,null,null,null,null,null,null,null,null,null,null,null,null,null,null,null,null,null,null,null,null,null,null,null,null,null,null,null,null,1]
[]
["I2. Complexitatea investiţiei"]
["Beneficiari Privaţi/Publici",null,null,null,null,null,null,null,null,null,null,null,null,null,null,null,null,null,null,null,null,null,null,null,null,null,null,null,null,null,null,null,null,null,null,null,null,null,null,null,null,null,null,null,null,null,null,null,null,null,"Punctaj obţinut"]
["• Investiţie nouă",null,null,null,null,null,null,null,null,null,null,null,null,null,null,null,null,null,null,null,null,null,null,null,null,null,null,null,null,null,null,null,null,null,null,null,null,null,null,null,null,null,null,null,null,null,null,null,null,null,5]
["• Modernizări cu C şi/sau M",null,null,null,null,null,null,null,null,null,null,null,null,null,null,null,null,null,null,null,null,null,null,null,null,null,null,null,null,null,null,null,null,null,null,null,null,null,null,null,null,null,null,null,null,null,null,null,null,null,4]
["• Modernizare prin AI",null,null,null,null,null,null,null,null,null,null,null,null,null,null,null,null,null,null,null,null,null,null,null,null,null,null,null,null,null,null,null,null,null,null,null,null,null,null,null,null,null,null,null,null,null,null,null,null,null,2]
[]
["I3. Intensitatea sprijinului (procent contribuţie publică)",null,null,null,null,null,null,null,null,null,null,null,null,null,null,null,null,null,null,null,null,null,null,null,null,null,null,null,null,null,null,null,null,null,null,null,null,null,null,null,null,null,null,null,null,null,null,null,null,null,"Punctaj obţinut"]
["70% -90%",null,null,null,null,null,null,null,null,null,null,null,null,null,null,null,null,null,null,null,null,null,null,null,null,null,null,null,null,null,null,null,null,null,null,null,null,null,null,null,null,null,null,null,null,null,null,null,null,null,5]
["50%-69%",null,null,null,null,null,null,null,null,null,null,null,null,null,null,null,null,null,null,null,null,null,null,null,null,null,null,null,null,null,null,null,null,null,null,null,null,null,null,null,null,null,null,null,null,null,null,null,null,null,4]
["<50%",null,null,null,null,null,null,null,null,null,null,null,null,null,null,null,null,null,null,null,null,null,null,null,null,null,null,null,null,null,null,null,null,null,null,null,null,null,null,null,null,null,null,null,null,null,null,null,null,null,1]
[]
["I4. I4. Valoarea ajutorului nerambursabil solicitat",null,null,null,null,null,null,null,null,null,null,null,null,null,null,null,null,null,null,null,null,null,null,null,null,null,null,null,null,null,null,null,null,null,null,null,null,null,null,null,null,null,null,null,null,null,null,null,null,null,"Punctaj obţinut"]
["• > 200%",null,null,null,null,null,null,null,null,null,null,null,null,null,null,null,null,null,null,null,null,null,null,null,null,null,null,null,null,null,null,null,null,null,null,null,null,null,null,null,null,null,null,null,null,null,null,null,null,null,5]
["• Între 176 şi 200%",null,null,null,null,null,null,null,null,null,null,null,null,null,null,null,null,null,null,null,null,null,null,null,null,null,null,null,null,null,null,null,null,null,null,null,null,null,null,null,null,null,null,null,null,null,null,null,null,null,4]
["• Între 151 şi 175%",null,null,null,null,null,null,null,null,null,null,null,null,null,null,null,null,null,null,null,null,null,null,null,null,null,null,null,null,null,null,null,null,null,null,null,null,null,null,null,null,null,null,null,null,null,null,null,null,null,3]
["• Între 121 şi 150%",null,null,null,null,null,null,null,null,null,null,null,null,null,null,null,null,null,null,null,null,null,null,null,null,null,null,null,null,null,null,null,null,null,null,null,null,null,null,null,null,null,null,null,null,null,null,null,null,null,2]
["• < 120%",null,null,null,null,null,null,null,null,null,null,null,null,null,null,null,null,null,null,null,null,null,null,null,null,null,null,null,null,null,null,null,null,null,null,null,null,null,null,null,null,null,null,null,null,null,null,null,null,null,1]
[]
["I5. Riscul proiectului d.p.d.v al raportului între cheltuielile suportate de solicitant şi valoarea ajutorului nerambursabil\nCheltuielile suportate de solicitant = Total valoare proiect(fără TVA) - Valoarea\najutorului nerambursabil solicitat. Total valoare proiect(fără TVA) - Valoarea ajutorului nerambursabil solicitat\n% = -------------------------------------------------------------------------------------------- x 100\nValoarea ajutorului nerambursabil solicitat\n",null,null,null,null,null,null,null,null,null,null,null,null,null,null,null,null,null,null,null,null,null,null,null,null,null,null,null,null,null,null,null,null,null,null,null,null,null,null,null,null,null,null,null,null,null,null,null,null,null,"Punctaj obţinut"]
["• Firmă nouă sau fără activitate",null,null,null,null,null,null,null,null,null,null,null,null,null,null,null,null,null,null,null,null,null,null,null,null,null,null,null,null,null,null,null,null,null,null,null,null,null,null,null,null,null,null,null,null,null,null,null,null,null,5]
["• Firmă cu experienţă dar care nu a participat la alt proiect comunitar sau nu a obţinut asistenţă financiară nerambursabilă din partea altui instrument financiar",null,null,null,null,null,null,null,null,null,null,null,null,null,null,null,null,null,null,null,null,null,null,null,null,null,null,null,null,null,null,null,null,null,null,null,null,null,null,null,null,null,null,null,null,null,null,null,null,null,4]
["• Firmă cu experienţă care a finalizat un proiect comunitar sau a obţinut din asistenţă financiară nerambursabilă din partea altui instrument financiar",null,null,null,null,null,null,null,null,null,null,null,null,null,null,null,null,null,null,null,null,null,null,null,null,null,null,null,null,null,null,null,null,null,null,null,null,null,null,null,null,null,null,null,null,null,null,null,null,null,2]
["TOTAL"]
[]
[null,null,"Codul unic de înregistrare APIA"]
[null,null,"În cazul în care nu aveți un cod unic de înregistrare APIA, completați acest formular."]
["FORMULAR"]
["de înscriere în Registrul unic de identificare pentru solicitanţii de finanţare prin măsurile"]
["Programului naţional de dezvoltare rurală 2014 - 2020"]
[]
["Denumire solicitant:"]
[]
["Categorie Solicitant:"]
[]
["Sediul / Adresa"]
[]
["Ţara",null,null,null,null,"România",null,null,null,null,null,null,null,null,"Judeţul",null,null,null,null,null,null,null,null,null,null,null,null,null,null,null,null,null,null,"oraşul"]
[]
["comuna",null,null,null,null,null,null,null,null,null,null,null,null,null,null,null,null,null,null,null,null,"satul",null,null,null,null,null,null,null,null,null,null,null,null,null,null,null,null,null,"strada"]
[]
["nr.",null,null,null,null,null,null,null,"bl.",null,null,null,null,null,"et.",null,null,null,null,"ap.",null,null,null,null,null,"sectorul",null,null,null,null,null,null,null,null,null,null,null,null,"codul poştal"]
[]
["Număr de telefon",null,null,null,null,null,null,null,null,null,null,null,null,null,null,null,null,null,null,null,null,null,null,"Fax",null,null,null,null,null,null,null,null,null,null,null,null,null,null,"E-mail"]
[]
["Număr de înregistrare în registrul comerțului/Registrul asociațiilor și fundațiilor"]
[]
["CUI / CIF"]
[]
["Cod CAEN pentru activitatea principală"]
[]
["Cod CAEN pentru activitatea secundară pentru care se solicită înregistrarea în Registrul unic de identificare"]
[]
["Cod IBAN"]
[]
["deschis la Banca"]
[]
["Sucursala / Agenție"]
[]
["Prin reprezentant legal, doamna/domnul"]
[]
["cu CNP",null,null,null,null,null,null,null,null,null,null,null,null,null,null,"solicit înscrierea în Registrul unic de îdentificare - Agenţia de Plăţi şi Intervenţie pentru Agricultură."]
[]
["Am luat la cunoştinţă că orice modificare a informaţiilor de mai sus trebuie furnizată către APIA în termen de maximum 10 zile\nlucrătoare de la producerea acestora.\nDeclar pe propria răspundere că cele de mai sus sunt conforme cu realitatea.\nSunt de acord ca datele din cerere să fie introduse în baza de date a Sistemului Integrat de Administrare şi Control, procesate şi\nverificate în vederea înscrierii în Registrul unic de identificare şi transmise autorităţilor responsabile în vederea elaborării de studii\nstatistice şi de evaluări economice, în condiţiile Legii nr. 677-2001 pentru protecţia persoanelor cu privire la prelucrarea datelor cu\ncaracter personal şi libera circulaţie a acestor date, cu modificarile şi completările ulterioare."]
[]
["Reprezentant legal",null,null,null,null,null,null,null,null,null,null,null,null,null,null,null,null,null,null,null,null,null,null,null,null,null,null,null,null,null,null,null,null,null,null,null,null,null,null,null,null,null,null,"Data:"]
[]
["Numele şi prenumele"]
[]
["Semnătura "]

{"sheet":"Anexa 1 HG_907","index":1,"n_rows":98,"n_cols":52,"rows_kept":98,"cut":false,"hidden":false,"merged":[[96,0,96,41],[96,42,96,50],[96,51,96,60],[97,0,97,41],[97,42,97,60],[99,0,99,42],[94,0,94,3],[94,4,94,41],[94,42,94,50],[94,51,94,60],[95,0,95,41],[95,42,95,50],[95,51,95,60],[92,0,92,3],[92,4,92,41],[92,42,92,50],[92,51,92,60],[93,0,93,3],[93,4,93,41],[93,42,93,50],[93,51,93,60],[90,0,90,3],[90,4,90,41],[90,42,90,50],[90,51,90,60],[91,0,91,3],[91,4,91,41],[91,42,91,50],[91,51,91,60],[88,0,88,3],[88,4,88,41],[88,42,88,50],[88,51,88,60],[89,0,89,3],[89,4,89,41],[89,42,89,50],[89,51,89,60],[86,0,86,3],[86,4,86,41],[86,42,86,50],[86,51,86,60],[87,0,87,3],[87,4,87,41],[87,42,87,50],[87,51,87,60],[84,0,84,3],[84,4,84,41],[84,42,84,50],[84,51,84,60],[85,0,85,3],[85,4,85,41],[85,42,85,50],[85,51,85,60],[82,0,82,3],[82,4,82,41],[82,42,82,50],[82,51,82,60],[83,0,83,3],[83,4,83,41],[83,42,83,50],[83,51,83,60],[80,0,80,3],[80,4,80,41],[80,42,80,50],[80,51,80,60],[81,0,81,3],[81,4,81,41],[81,42,81,50],[81,51,81,60],[78,0,78,3],[78,4,78,41],[78,42,78,50],[78,51,78,60],[79,0,79,3],[79,4,79,41],[79,42,79,50],[79,51,79,60],[76,0,76,3],[76,4,76,41],[76,42,76,50],[76,51,76,60],[77,0,77,3],[77,4,77,41],[77,42,77,50],[77,51,77,60],[74,0,74,3],[74,4,74,41],[74,42,74,50],[74,51,74,60],[75,0,75,3],[75,4,75,41],[75,42,75,50],[75,51,75,60],[72,0,72,3],[72,4,72,41],[72,42,72,50],[72,51,72,60],[73,0,73,3],[73,4,73,41],[73,42,73,50],[73,51,73,60],[70,0,70,3],[70,4,70,41],[70,42,70,50],[70,51,70,60],[71,0,71,3],[71,4,71,41],[71,42,71,50],[71,51,71,60],[68,0,68,3],[68,4,68,41],[68,42,68,50],[68,51,68,60],[69,0,69,3],[69,4,69,41],[69,42,69,50],[69,51,69,60],[66,0,66,3],[66,4,66,41],[66,42,66,50],[66,51,66,60],[67,0,67,3],[67,4,67,41],[67,42,67,50],[67,51,67,60],[64,0,64,3],[64,4,64,41],[64,42,64,50],[64,51,64,60],[65,0,65,3],[65,4,65,41],[65,42,65,50],[65,51,65,60],[62,0,62,3],[62,4,62,41],[62,42,62,50],[62,51,62,60],[63,0,63,3],[63,4,63,41],[63,42,63,50],[63,51,63,60],[60,0,60,3],[60,4,60,41],[60,42,60,50],[60,51,60,60],[61,0,61,3],[61,4,61,41],[61,42,61,50],[61,51,61,60],[57,0,57,60],[58,0,58,3],[58,4,58,41],[58,42,58,50],[58,51,58,60],[59,0,59,3],[59,4,59,41],[59,42,59,50],[59,51,59,60],[53,7,53,41],[53,42,53,50],[53,51,53,60],[54,7,54,60],[55,0,55,60],[56,0,56,60],[47,0,47,41],[47,42,47,60],[49,0,49,42],[50,7,50,41],[51,7,51,41],[51,42,52,60],[52,7,52,41],[45,0,45,41],[45,42,45,50],[45,51,45,60],[46,0,46,41],[46,42,46,50],[46,51,46,60],[43,0,43,3],[43,4,43,41],[43,42,43,50],[43,51,43,60],[44,0,44,3],[44,4,44,41],[44,42,44,50],[44,51,44,60],[41,0,41,3],[41,4,41,41],[41,42,41,50],[41,51,41,60],[42,0,42,3],[42,4,42,41],[42,42,42,50],[42,51,42,60],[39,0,39,3],[39,4,39,41],[39,42,39,50],[39,51,39,60],[40,0,40,3],[40,4,40,41],[40,42,40,50],[40,51,40,60],[37,0,37,3],[37,4,37,41],[37,42,37,50],[37,51,37,60],[38,0,38,3],[38,4,38,41],[38,42,38,50],[38,51,38,60],[35,0,35,3],[35,4,35,41],[35,42,35,50],[35,51,35,60],[36,0,36,3],[36,4,36,41],[36,42,36,50],[36,51,36,60],[33,0,33,3],[33,4,33,41],[33,42,33,50],[33,51,33,60],[34,0,34,3],[34,4,34,41],[34,42,34,50],[34,51,34,60],[31,0,31,3],[31,4,31,41],[31,42,31,50],[31,51,31,60],[32,0,32,3],[32,4,32,41],[32,42,32,50],[32,51,32,60],[29,0,29,3],[29,4,29,41],[29,42,29,50],[29,51,29,60],[30,0,30,3],[30,4,30,41],[30,42,30,50],[30,51,30,60],[27,0,27,3],[27,4,27,41],[27,42,27,50],[27,51,27,60],[28,0,28,3],[28,4,28,41],[28,42,28,50],[28,51,28,60],[25,0,25,3],[25,4,25,41],[25,42,25,50],[25,51,25,60],[26,0,26,3],[26,4,26,41],[26,42,26,50],[26,51,26,60],[23,0,23,3],[23,4,23,41],[23,42,23,50],[23,51,23,60],[24,0,24,3],[24,4,24,41],[24,42,24,50],[24,51,24,60],[21,0,21,3],[21,4,21,41],[21,42,21,50],[21,51,21,60],[22,0,22,3],[22,4,22,41],[22,42,22,50],[22,51,22,60],[19,0,19,3],[19,4,19,41],[19,42,19,50],[19,51,19,60],[20,0,20,3],[20,4,20,41],[20,42,20,50],[20,51,20,60],[17,0,17,3],[17,4,17,41],[17,42,17,50],[17,51,17,60],[18,0,18,3],[18,4,18,41],[18,42,18,50],[18,51,18,60],[15,0,15,3],[15,4,15,41],[15,42,15,50],[15,51,15,60],[16,0,16,3],[16,4,16,41],[16,42,16,50],[16,51,16,60],[13,0,13,3],[13,4,13,41],[13,42,13,50],[13,51,13,60],[14,0,14,3],[14,4,14,41],[14,42,14,50],[14,51,14,60],[11,0,11,3],[11,4,11,41],[11,42,11,50],[11,51,11,60],[12,0,12,3],[12,4,12,41],[12,42,12,50],[12,51,12,60],[10,0,10,3],[10,4,10,41],[10,42,10,50],[10,51,10,60],[4,7,4,60],[5,0,5,60],[6,0,6,60],[7,0,7,60],[8,0,8,3],[8,4,8,41],[8,42,8,50],[8,51,8,60],[0,7,0,41],[1,7,1,41],[1,42,2,60],[2,7,2,41],[3,7,3,41],[3,42,3,50],[3,51,3,60],[9,0,9,3],[9,4,9,41],[9,42,9,50],[9,51,9,60]]}
[null,null,null,null,null,null,null,"MINISTERUL AGRICULTURII ŞI DEZVOLTĂRII RURALE"]
[null,null,null,null,null,null,null,null,null,null,null,null,null,null,null,null,null,null,null,null,null,null,null,null,null,null,null,null,null,null,null,null,null,null,null,null,null,null,null,null,null,null,"Anexa A1 HG_907"]
[null,null,null,null,null,null,null,"AGENŢIA PENTRU FINANŢAREA INVESTIŢIILOR RURALE"]
[]
[null,null,null,null,null,null,null,"Deviz financiar- Capitolul 3 - Cheltuieli pentru proiectare şi asistenţa tehnică - EURO"]
["Nr.2"]
[]
["(Titlu deviz)"]
["Nr.crt",null,null,null,"Specificaţie",null,null,null,null,null,null,null,null,null,null,null,null,null,null,null,null,null,null,null,null,null,null,null,null,null,null,null,null,null,null,null,null,null,null,null,null,null,"Valoare eligibilă",null,null,null,null,null,null,null,null,"Valoare\nneeligibilă"]
["3.1",null,null,null,"Cheltuieli pentru studii ",null,null,null,null,null,null,null,null,null,null,null,null,null,null,null,null,null,null,null,null,null,null,null,null,null,null,null,null,null,null,null,null,null,null,null,null,null,{"$f":"SUM(AQ11:AY13)","v":0},null,null,null,null,null,null,null,null,{"$f":"SUM(AZ11:BI13)","v":0}]
[null,null,null,null,"3.1.1 Studii de teren: studii geotehnice, geologice, hidrologice, hidrogeotehnice, fotogrammetrice, topografica şi de stabilitate ale terenului pe care se amplasează obiectivul de investiţie"]
[null,null,null,null,"3.1.2 Raport privind impactul asupra mediului"]
[null,null,null,null,"3.1.3 Studii de specialitate necesare în funcţie de specificul investiţiei"]
["3.2",null,null,null,"Documentaţii-suport şi cheltuieli pentru obţinerea de avize, acorduri şi autorizaţii",null,null,null,null,null,null,null,null,null,null,null,null,null,null,null,null,null,null,null,null,null,null,null,null,null,null,null,null,null,null,null,null,null,null,null,null,null,{"$f":"SUM(AQ15:AY23)","v":0},null,null,null,null,null,null,null,null,{"$f":"SUM(AZ15:BI23)","v":0}]
[null,null,null,null,"1. obţinerea/prelungirea valabilităţii ceritificatului de urbanism"]
[null,null,null,null,"2. obţinerea/prelungirea valabilităţii autorizaţiei de construire/desfiinţare"]
[null,null,null,null,"3. obţinerea avizelor şi acordurilor pentru racorduri şi branşamente la reţele publice de alimentare cu apă, canalizare, alimentare cu gaze, alimentare cu agent termic, energie electrică, telefonie"]
[null,null,null,null,"4. obţinerea certificatului de nomenclatură stradală şi adresă"]
[null,null,null,null,"5. întocmirea documentaţiei, obţinerea numărului cadastral provizoriu şi înregistrarea terenului în cartea funciară"]
[null,null,null,null,"6. obţinerea actului administrativ al autorităţii competente pentru protecţia mediului"]
[null,null,null,null,"7. obţinerea avizului de protecţie civilă"]
[null,null,null,null,"8. avizul de specialitate în cazul obiectivelor de patrimoniu"]
[null,null,null,null,"9. alte avize, acorduri şi autorizaţii"]
["3.3",null,null,null,"Cheltuieli pentru expertizarea tehnică a construcţiilor existente, a structurilor şi/sau, după caz, a proiectelor tehnice, inclusiv întocmirea de către expertul tehnic a raportului de expertiză tehnică"]
["3.4",null,null,null,"Cheltuieli pentru certificarea performanţei energetice şi auditul energetic al clădirilor"]
["3.5",null,null,null,"Cheltuieli pentru proiectare",null,null,null,null,null,null,null,null,null,null,null,null,null,null,null,null,null,null,null,null,null,null,null,null,null,null,null,null,null,null,null,null,null,null,null,null,null,{"$f":"SUM(AQ27:AY32)","v":0},null,null,null,null,null,null,null,null,{"$f":"SUM(AZ27:BI32)","v":0}]
[null,null,null,null,"3.5.1 Temă de proiectare"]
[null,null,null,null,"3.5.2 Studiu de prefezabilitate"]
[null,null,null,null,"3.5.3 Studiu de fezabilitate/documentaţie de avizare a lucrărilor de intervenţii şi deviz general"]
[null,null,null,null,"3.5.4 Documentaţiile tehnice necesare în vederea obţinerii avizelor/acordurilor/ autorizaţiilor"]
[null,null,null,null,"3.5.5 Verificarea tehnică de calitate a proiectului tehnic şi a detaliilor de execuţie"]
[null,null,null,null,"3.5.6 Proiect tehnic şi detalii de execuţie"]
["3.6",null,null,null,"Cheltuieli aferente organizării şi derulării procedurilor de achiziţii publice",null,null,null,null,null,null,null,null,null,null,null,null,null,null,null,null,null,null,null,null,null,null,null,null,null,null,null,null,null,null,null,null,null,null,null,null,null,{"$f":"SUM(AQ34:AY37)","v":0},null,null,null,null,null,null,null,null,{"$f":"SUM(AZ34:BI37)","v":0}]
[null,null,null,null,"1. Cheltuieli aferente întocmirii documentaţiei de atribuire şi multiplicării acesteia (exclusiv cele cumpărate de ofertanţi)"]
[null,null,null,null,"2. Cheltuieli cu onorariile, transportul, cazarea şi diurna membrilor desemnaţi în comisiile de evaluare"]
[null,null,null,null,"3. Anunţuri de intenţie, de participare şi de atribuire a contractelor, corespondenţă prin poştă, fax, poştă electronică în legătură cu procedurile de achiziţie publică"]
[null,null,null,null,"4. Cheltuieli aferente organizării şi derulării procedurilor de achiziţii publice"]
["3.7",null,null,null,"Cheltuieli pentru consultanţă",null,null,null,null,null,null,null,null,null,null,null,null,null,null,null,null,null,null,null,null,null,null,null,null,null,null,null,null,null,null,null,null,null,null,null,null,null,{"$f":"SUM(AQ39:AY40)","v":0},null,null,null,null,null,null,null,null,{"$f":"SUM(AZ39:BI40)","v":0}]
[null,null,null,null,"3.7.1 Managementul de proiect pentru obiectivul de investiţii"]
[null,null,null,null,"3.7.2 Auditul financiar"]
["3.8",null,null,null,"Cheltuieli pentru asistenţă tehnică",null,null,null,null,null,null,null,null,null,null,null,null,null,null,null,null,null,null,null,null,null,null,null,null,null,null,null,null,null,null,null,null,null,null,null,null,null,{"$f":"AQ42+AQ45","v":0},null,null,null,null,null,null,null,null,{"$f":"AZ42+AZ45","v":0}]
[null,null,null,null,"3.8.1. Asistenţă tehnică din partea proiectantului",null,null,null,null,null,null,null,null,null,null,null,null,null,null,null,null,null,null,null,null,null,null,null,null,null,null,null,null,null,null,null,null,null,null,null,null,null,{"$f":"SUM(AQ43:AY44)","v":0},null,null,null,null,null,null,null,null,{"$f":"SUM(AZ43:BI44)","v":0}]
[null,null,null,null,"\n1.1. pe perioada de execuţie a lucrărilor"]
[null,null,null,null,"1.2. pentru participarea proiectantului la fazele incluse în programul de control al lucrărilor de execuţie, avizat de către Inspectoratul de Stat în Construcţii"]
[null,null,null,null,"3.8.2 Dirigenţie de şantier, asigurată de personal tehnic de specialitate, autorizat"]
["Total valoare fără TVA",null,null,null,null,null,null,null,null,null,null,null,null,null,null,null,null,null,null,null,null,null,null,null,null,null,null,null,null,null,null,null,null,null,null,null,null,null,null,null,null,null,{"$f":"AQ10+AQ14+AQ24+AQ25+AQ26+AQ33+AQ38+AQ41","v":0},null,null,null,null,null,null,null,null,{"$f":"AZ10+AZ14+AZ24+AZ25+AZ26+AZ33+AZ38+AZ41","v":0}]
["Valoare TVA (aferentă cheltuielilor eligibile şi neeligibile)"]
["TOTAL DEVIZ FINANCIAR 1 (inclusiv TVA)",null,null,null,null,null,null,null,null,null,null,null,null,null,null,null,null,null,null,null,null,null,null,null,null,null,null,null,null,null,null,null,null,null,null,null,null,null,null,null,null,null,{"$f":"SUM(AQ46:BI47)","v":0}]
[]
[]
[null,null,null,null,null,null,null,"MINISTERUL AGRICULTURII ŞI DEZVOLTĂRII RURALE"]
[null,null,null,null,null,null,null,null,null,null,null,null,null,null,null,null,null,null,null,null,null,null,null,null,null,null,null,null,null,null,null,null,null,null,null,null,null,null,null,null,null,null,"Anexa A1 HG_907"]
[null,null,null,null,null,null,null,"AGENŢIA PENTRU FINANŢAREA INVESTIŢIILOR RURALE"]
[null,null,null,null,null,null,null,null,null,null,null,null,null,null,null,null,null,null,null,null,null,null,null,null,null,null,null,null,null,null,null,null,null,null,null,null,null,null,null,null,null,null,null,null,null,null,null,null,null,null,null,"Aprilie 2017"]
[null,null,null,null,null,null,null,"Deviz financiar- Capitolul 3 - Cheltuieli pentru proiectare şi asistenţa tehnică - EURO"]
["Nr.3"]
[]
["(Titlu deviz)"]
["Nr.crt",null,null,null,"Specificaţie",null,null,null,null,null,null,null,null,null,null,null,null,null,null,null,null,null,null,null,null,null,null,null,null,null,null,null,null,null,null,null,null,null,null,null,null,null,"Valoare eligibilă",null,null,null,null,null,null,null,null,"Valoare\nneeligibilă"]
["3.1",null,null,null,"Cheltuieli pentru studii ",null,null,null,null,null,null,null,null,null,null,null,null,null,null,null,null,null,null,null,null,null,null,null,null,null,null,null,null,null,null,null,null,null,null,null,null,null,{"$f":"SUM(AQ61:AY63)","v":0},null,null,null,null,null,null,null,null,{"$f":"SUM(AZ61:BI63)","v":0}]
[null,null,null,null,"3.1.1 Studii de teren: studii geotehnice, geologice, hidrologice, hidrogeotehnice, fotogrammetrice, topografica şi de stabilitate ale terenului pe care se amplasează obiectivul de investiţie"]
[null,null,null,null,"3.1.2 Raport privind impactul asupra mediului"]
[null,null,null,null,"3.1.3 Studii de specialitate necesare în funcţie de specificul investiţiei"]
["3.2",null,null,null,"Documentaţii-suport şi cheltuieli pentru obţinerea de avize, acorduri şi autorizaţii",null,null,null,null,null,null,null,null,null,null,null,null,null,null,null,null,null,null,null,null,null,null,null,null,null,null,null,null,null,null,null,null,null,null,null,null,null,{"$f":"SUM(AQ65:AY73)","v":0},null,null,null,null,null,null,null,null,{"$f":"SUM(AZ65:BI73)","v":0}]
[null,null,null,null,"1. obţinerea/prelungirea valabilităţii ceritificatului de urbanism"]
[null,null,null,null,"2. obţinerea/prelungirea valabilităţii autorizaţiei de construire/desfiinţare"]
[null,null,null,null,"3. obţinerea avizelor şi acordurilor pentru racorduri şi branşamente la reţele publice de alimentare cu apă, canalizare, alimentare cu gaze, alimentare cu agent termic, energie electrică, telefonie"]
[null,null,null,null,"4. obţinerea certificatului de nomenclatură stradală şi adresă"]
[null,null,null,null,"5. întocmirea documentaţiei, obţinerea numărului cadastral provizoriu şi înregistrarea terenului în cartea funciară"]
[null,null,null,null,"6. obţinerea actului administrativ al autorităţii competente pentru protecţia mediului"]
[null,null,null,null,"7. obţinerea avizului de protecţie civilă"]
[null,null,null,null,"8. avizul de specialitate în cazul obiectivelor de patrimoniu"]
[null,null,null,null,"9. alte avize, acorduri şi autorizaţii"]
["3.3",null,null,null,"Cheltuieli pentru expertizarea tehnică a construcţiilor existente, a structurilor şi/sau, după caz, a proiectelor tehnice, inclusiv întocmirea de către expertul tehnic a raportului de expertiză tehnică"]
["3.4",null,null,null,"Cheltuieli pentru certificarea performanţei energetice şi auditul energetic al clădirilor"]
["3.5",null,null,null,"Cheltuieli pentru proiectare",null,null,null,null,null,null,null,null,null,null,null,null,null,null,null,null,null,null,null,null,null,null,null,null,null,null,null,null,null,null,null,null,null,null,null,null,null,{"$f":"SUM(AQ77:AY82)","v":0},null,null,null,null,null,null,null,null,{"$f":"SUM(AZ77:BI82)","v":0}]
[null,null,null,null,"3.5.1 Temă de proiectare"]
[null,null,null,null,"3.5.2 Studiu de prefezabilitate"]
[null,null,null,null,"3.5.3 Studiu de fezabilitate/documentaţie de avizare a lucrărilor de intervenţii şi deviz general"]
[null,null,null,null,"3.5.4 Documentaţiile tehnice necesare în vederea obţinerii avizelor/acordurilor/ autorizaţiilor"]
[null,null,null,null,"3.5.5 Verificarea tehnică de calitate a proiectului tehnic şi a detaliilor de execuţie"]
[null,null,null,null,"3.5.6 Proiect tehnic şi detalii de execuţie"]
["3.6",null,null,null,"Cheltuieli aferente organizării şi derulării procedurilor de achiziţii publice",null,null,null,null,null,null,null,null,null,null,null,null,null,null,null,null,null,null,null,null,null,null,null,null,null,null,null,null,null,null,null,null,null,null,null,null,null,{"$f":"SUM(AQ84:AY87)","v":0},null,null,null,null,null,null,null,null,{"$f":"SUM(AZ84:BI87)","v":0}]
[null,null,null,null,"1. Cheltuieli aferente întocmirii documentaţiei de atribuire şi multiplicării acesteia (exclusiv cele cumpărate de ofertanţi)"]
[null,null,null,null,"2. Cheltuieli cu onorariile, transportul, cazarea şi diurna membrilor desemnaţi în comisiile de evaluare"]
[null,null,null,null,"3. Anunţuri de intenţie, de participare şi de atribuire a contractelor, corespondenţă prin poştă, fax, poştă electronică în legătură cu procedurile de achiziţie publică"]
[null,null,null,null,"4. Cheltuieli aferente organizării şi derulării procedurilor de achiziţii publice"]
["3.7",null,null,null,"Cheltuieli pentru consultanţă",null,null,null,null,null,null,null,null,null,null,null,null,null,null,null,null,null,null,null,null,null,null,null,null,null,null,null,null,null,null,null,null,null,null,null,null,null,{"$f":"SUM(AQ89:AY90)","v":0},null,null,null,null,null,null,null,null,{"$f":"SUM(AZ89:BI90)","v":0}]
[null,null,null,null,"3.7.1 Managementul de proiect pentru obiectivul de investiţii"]
[null,null,null,null,"3.7.2 Auditul financiar"]
["3.8",null,null,null,"Cheltuieli pentru asistenţă tehnică",null,null,null,null,null,null,null,null,null,null,null,null,null,null,null,null,null,null,null,null,null,null,null,null,null,null,null,null,null,null,null,null,null,null,null,null,null,{"$f":"AQ92+AQ95","v":0},null,null,null,null,null,null,null,null,{"$f":"AZ92+AZ95","v":0}]
[null,null,null,null,"3.8.1. Asistenţă tehnică din partea proiectantului",null,null,null,null,null,null,null,null,null,null,null,null,null,null,null,null,null,null,null,null,null,null,null,null,null,null,null,null,null,null,null,null,null,null,null,null,null,{"$f":"SUM(AQ93:AY94)","v":0},null,null,null,null,null,null,null,null,{"$f":"SUM(AZ93:BI94)","v":0}]
[null,null,null,null,"\n1.1. pe perioada de execuţie a lucrărilor"]
[null,null,null,null,"1.2. pentru participarea proiectantului la fazele incluse în programul de control al lucrărilor de execuţie, avizat de către Inspectoratul de Stat în Construcţii"]
[null,null,null,null,"3.8.2 Dirigenţie de şantier, asigurată de personal tehnic de specialitate, autorizat"]
["Total valoare fără TVA",null,null,null,null,null,null,null,null,null,null,null,null,null,null,null,null,null,null,null,null,null,null,null,null,null,null,null,null,null,null,null,null,null,null,null,null,null,null,null,null,null,{"$f":"AQ60+AQ64+AQ74+AQ75+AQ76+AQ83+AQ88+AQ91","v":0},null,null,null,null,null,null,null,null,{"$f":"AZ60+AZ64+AZ74+AZ75+AZ76+AZ83+AZ88+AZ91","v":0}]
["Valoare TVA (aferentă cheltuielilor eligibile şi neeligibile)"]
["TOTAL DEVIZ FINANCIAR 1 (inclusiv TVA)",null,null,null,null,null,null,null,null,null,null,null,null,null,null,null,null,null,null,null,null,null,null,null,null,null,null,null,null,null,null,null,null,null,null,null,null,null,null,null,null,null,{"$f":"SUM(AQ96:BI97)","v":0}]

{"sheet":"Anexa 2 HG_907","index":2,"n_rows":63,"n_cols":52,"rows_kept":63,"cut":false,"hidden":false,"merged":[[59,0,59,41],[59,42,59,50],[59,51,59,60],[60,0,60,41],[60,42,60,60],[57,0,57,3],[57,4,57,41],[57,42,57,50],[57,51,57,60],[58,0,58,41],[58,42,58,50],[58,51,58,60],[55,0,55,3],[55,4,55,41],[55,42,55,50],[55,51,55,60],[56,0,56,3],[56,4,56,41],[56,42,56,50],[56,51,56,60],[52,0,52,60],[53,0,53,3],[53,4,53,41],[53,42,53,50],[53,51,53,60],[54,0,54,3],[54,4,54,41],[54,42,54,50],[54,51,54,60],[49,0,49,60],[50,0,50,3],[50,4,50,41],[50,42,50,50],[50,51,50,60],[51,0,51,3],[51,4,51,41],[51,42,51,50],[51,51,51,60],[47,0,47,3],[47,4,47,41],[47,42,47,50],[47,51,47,60],[48,0,48,3],[48,4,48,41],[48,42,48,50],[48,51,48,60],[45,0,45,3],[45,4,45,41],[45,42,45,50],[45,51,45,60],[46,0,46,3],[46,4,46,41],[46,42,46,50],[46,51,46,60],[43,0,43,3],[43,4,43,41],[43,42,43,50],[43,51,43,60],[44,0,44,3],[44,4,44,41],[44,42,44,50],[44,51,44,60],[41,0,41,3],[41,4,41,41],[41,42,41,50],[41,51,41,60],[42,0,42,41],[42,42,42,50],[42,51,42,60],[36,7,36,60],[37,0,37,60],[38,0,38,60],[39,0,39,60],[40,0,40,3],[40,4,40,41],[40,42,40,60],[33,7,33,41],[33,42,34,60],[34,7,34,41],[35,7,35,41],[35,42,35,50],[35,51,35,60],[27,0,27,41],[27,42,27,50],[27,51,27,60],[28,0,28,41],[28,42,28,60],[32,7,32,41],[25,0,25,3],[25,4,25,41],[25,42,25,50],[25,51,25,60],[26,0,26,41],[26,42,26,50],[26,51,26,60],[23,0,23,3],[23,4,23,41],[23,42,23,50],[23,51,23,60],[24,0,24,3],[24,4,24,41],[24,42,24,50],[24,51,24,60],[20,0,20,60],[21,0,21,3],[21,4,21,41],[21,42,21,50],[21,51,21,60],[22,0,22,3],[22,4,22,41],[22,42,22,50],[22,51,22,60],[17,0,17,60],[18,0,18,3],[18,4,18,41],[18,42,18,50],[18,51,18,60],[19,0,19,3],[19,4,19,41],[19,42,19,50],[19,51,19,60],[15,0,15,3],[15,4,15,41],[15,42,15,50],[15,51,15,60],[16,0,16,3],[16,4,16,41],[16,42,16,50],[16,51,16,60],[13,0,13,3],[13,4,13,41],[13,42,13,50],[13,51,13,60],[14,0,14,3],[14,4,14,41],[14,42,14,50],[14,51,14,60],[11,0,11,3],[11,4,11,41],[11,42,11,50],[11,51,11,60],[12,0,12,3],[12,4,12,41],[12,42,12,50],[12,51,12,60],[9,0,9,3],[9,4,9,41],[9,42,9,50],[9,51,9,60],[10,0,10,41],[10,42,10,50],[10,51,10,60],[4,7,4,60],[5,0,5,60],[6,0,6,60],[7,0,7,60],[8,0,8,3],[8,4,8,41],[8,42,8,60],[0,7,0,41],[1,7,1,41],[1,42,2,60],[2,7,2,41],[3,7,3,41],[3,42,3,50],[3,51,3,60]]}
[null,null,null,null,null,null,null,"MINISTERUL AGRICULTURII ŞI DEZVOLTĂRII RURALE"]
[null,null,null,null,null,null,null,null,null,null,null,null,null,null,null,null,null,null,null,null,null,null,null,null,null,null,null,null,null,null,null,null,null,null,null,null,null,null,null,null,null,null,"Anexa A2 HG_907"]
[null,null,null,null,null,null,null,"AGENŢIA PENTRU FINANŢAREA INVESTIŢIILOR RURALE"]
[]
[null,null,null,null,null,null,null,"DEVIZUL OBIECTULUI *"]
["Nr.2"]
[]
[]
["Nr. crt.",null,null,null,"Denumire",null,null,null,null,null,null,null,null,null,null,null,null,null,null,null,null,null,null,null,null,null,null,null,null,null,null,null,null,null,null,null,null,null,null,null,null,null,"Valoarea pe categorii de lucrări, fară TVA - EURO"]
[null,null,null,null,"Cap. 4 - Cheltuieli pentru investiţia de bază",null,null,null,null,null,null,null,null,null,null,null,null,null,null,null,null,null,null,null,null,null,null,null,null,null,null,null,null,null,null,null,null,null,null,null,null,null,"Valoare eligibilă",null,null,null,null,null,null,null,null,"Valoare\nneeligibilă"]
["I - LUCRĂRI DE CONSTRUCŢII ŞI INSTALAŢII"]
["4.1",null,null,null,"Construcţii şi instalaţii"]
[null,null,null,null,"4.1.1 Terasamente, sistematizare pe verticală şi amenajări exterioare"]
[null,null,null,null,"4.1.2 Rezistenţă"]
[null,null,null,null,"4.1.3 Arhitectură"]
[null,null,null,null,"4.1.4 Instalaţii"]
[null,null,null,null,"TOTAL I ( fără TVA)",null,null,null,null,null,null,null,null,null,null,null,null,null,null,null,null,null,null,null,null,null,null,null,null,null,null,null,null,null,null,null,null,null,null,null,null,null,{"$f":"SUM(AQ12:AY16)","v":0},null,null,null,null,null,null,null,null,{"$f":"SUM(AZ12:BI16)","v":0}]
["II - MONTAJ"]
["4.2",null,null,null,"Montaj utilaje, echipamente tehnologice şi funcţionale"]
[null,null,null,null,"TOTAL II ( fără TVA)",null,null,null,null,null,null,null,null,null,null,null,null,null,null,null,null,null,null,null,null,null,null,null,null,null,null,null,null,null,null,null,null,null,null,null,null,null,{"$f":"SUM(AQ19)","v":0},null,null,null,null,null,null,null,null,{"$f":"SUM(AZ19)","v":0}]
["III - PROCURARE"]
["4.3",null,null,null,"Utilaje, echipamente tehnologice şi funcţionale care necesită montaj"]
["4.4",null,null,null,"Utilaje, echipamente tehnologice şi funcţionale care nu necesită montaj şi echipamente de transport"]
["4.5",null,null,null,"Dotări"]
["4.6",null,null,null,"Active necorporale"]
[null,null,null,null,"TOTAL III ( fără TVA)",null,null,null,null,null,null,null,null,null,null,null,null,null,null,null,null,null,null,null,null,null,null,null,null,null,null,null,null,null,null,null,null,null,null,null,null,null,{"$f":"SUM(AQ22:AY25)","v":0},null,null,null,null,null,null,null,null,{"$f":"SUM(AZ22:BI25)","v":0}]
["TOTAL ( TOTAL I + TOTAL II +TOTAL III) fără TVA",null,null,null,null,null,null,null,null,null,null,null,null,null,null,null,null,null,null,null,null,null,null,null,null,null,null,null,null,null,null,null,null,null,null,null,null,null,null,null,null,null,{"$f":"AQ26+AQ20+AQ17","v":0},null,null,null,null,null,null,null,null,{"$f":"AZ26+AZ20+AZ17","v":0}]
["TVA aferent cheltuielilor eligibile şi neeligibile"]
["TOTAL DEVIZ PE OBIECT (inclusiv TVA)",null,null,null,null,null,null,null,null,null,null,null,null,null,null,null,null,null,null,null,null,null,null,null,null,null,null,null,null,null,null,null,null,null,null,null,null,null,null,null,null,null,{"$f":"AQ27+AZ27+AQ28+AZ28","v":0}]
[]
[null,"*) Se înscrie denumirea obiectului de construcţie sau intervenţie"]
[]
[null,null,null,null,null,null,null,"MINISTERUL AGRICULTURII ŞI DEZVOLTĂRII RURALE"]
[null,null,null,null,null,null,null,null,null,null,null,null,null,null,null,null,null,null,null,null,null,null,null,null,null,null,null,null,null,null,null,null,null,null,null,null,null,null,null,null,null,null,"Anexa A2 HG_907"]
[null,null,null,null,null,null,null,"AGENŢIA PENTRU FINANŢAREA INVESTIŢIILOR RURALE"]
[null,null,null,null,null,null,null,null,null,null,null,null,null,null,null,null,null,null,null,null,null,null,null,null,null,null,null,null,null,null,null,null,null,null,null,null,null,null,null,null,null,null,null,null,null,null,null,null,null,null,null,"Aprilie 2017"]
[null,null,null,null,null,null,null,"DEVIZUL OBIECTULUI *"]
["Nr.3"]
[]
[]
["Nr. crt.",null,null,null,"Denumire",null,null,null,null,null,null,null,null,null,null,null,null,null,null,null,null,null,null,null,null,null,null,null,null,null,null,null,null,null,null,null,null,null,null,null,null,null,"Valoarea pe categorii de lucrări, fară TVA - EURO"]
[null,null,null,null,"Cap. 4 - Cheltuieli pentru investiţia de bază",null,null,null,null,null,null,null,null,null,null,null,null,null,null,null,null,null,null,null,null,null,null,null,null,null,null,null,null,null,null,null,null,null,null,null,null,null,"Valoare eligibilă",null,null,null,null,null,null,null,null,"Valoare\nneeligibilă"]
["I - LUCRĂRI DE CONSTRUCŢII ŞI INSTALAŢII"]
["4.1",null,null,null,"Construcţii şi instalaţii"]
[null,null,null,null,"4.1.1 Terasamente, sistematizare pe verticală şi amenajări exterioare"]
[null,null,null,null,"4.1.2 Rezistenţă"]
[null,null,null,null,"4.1.3 Arhitectură"]
[null,null,null,null,"4.1.4 Instalaţii"]
[null,null,null,null,"TOTAL I ( fără TVA)",null,null,null,null,null,null,null,null,null,null,null,null,null,null,null,null,null,null,null,null,null,null,null,null,null,null,null,null,null,null,null,null,null,null,null,null,null,{"$f":"SUM(AQ44:AY48)","v":0},null,null,null,null,null,null,null,null,{"$f":"SUM(AZ44:BI48)","v":0}]
["II - MONTAJ"]
["4.2",null,null,null,"Montaj utilaje, echipamente tehnologice şi funcţionale"]
[null,null,null,null,"TOTAL II ( fără TVA)",null,null,null,null,null,null,null,null,null,null,null,null,null,null,null,null,null,null,null,null,null,null,null,null,null,null,null,null,null,null,null,null,null,null,null,null,null,{"$f":"SUM(AQ51)","v":0},null,null,null,null,null,null,null,null,{"$f":"SUM(AZ51)","v":0}]
["III - PROCURARE"]
["4.3",null,null,null,"Utilaje, echipamente tehnologice şi funcţionale care necesită montaj"]
["4.4",null,null,null,"Utilaje, echipamente tehnologice şi funcţionale care nu necesită montaj şi echipamente de transport"]
["4.5",null,null,null,"Dotări"]
["4.6",null,null,null,"Active necorporale"]
[null,null,null,null,"TOTAL III ( fără TVA)",null,null,null,null,null,null,null,null,null,null,null,null,null,null,null,null,null,null,null,null,null,null,null,null,null,null,null,null,null,null,null,null,null,null,null,null,null,{"$f":"SUM(AQ54:AY57)","v":0},null,null,null,null,null,null,null,null,{"$f":"SUM(AZ54:BI57)","v":0}]
["TOTAL ( TOTAL I + TOTAL II +TOTAL III) fără TVA",null,null,null,null,null,null,null,null,null,null,null,null,null,null,null,null,null,null,null,null,null,null,null,null,null,null,null,null,null,null,null,null,null,null,null,null,null,null,null,null,null,{"$f":"AQ58+AQ52+AQ49","v":0},null,null,null,null,null,null,null,null,{"$f":"AZ58+AZ52+AZ49","v":0}]
["TVA aferent cheltuielilor eligibile şi neeligibile"]
["TOTAL DEVIZ PE OBIECT (inclusiv TVA)",null,null,null,null,null,null,null,null,null,null,null,null,null,null,null,null,null,null,null,null,null,null,null,null,null,null,null,null,null,null,null,null,null,null,null,null,null,null,null,null,null,{"$f":"AQ59+AZ59+AQ60+AZ60","v":0}]
[]
[null,"*) Se înscrie denumirea obiectului de construcţie sau intervenţie"]

{"sheet":"Anexa 3 HG_907","index":3,"n_rows":82,"n_cols":52,"rows_kept":82,"cut":false,"hidden":false,"merged":[[80,0,80,3],[80,4,80,41],[80,42,80,50],[80,51,80,60],[81,0,81,3],[81,4,81,41],[81,42,81,60],[78,0,78,3],[78,4,78,41],[78,42,78,50],[78,51,78,60],[79,0,79,3],[79,4,79,41],[79,42,79,50],[79,51,79,60],[76,0,76,3],[76,4,76,41],[76,42,76,50],[76,51,76,60],[77,0,77,3],[77,4,77,41],[77,42,77,50],[77,51,77,60],[74,0,74,3],[74,4,74,41],[74,42,74,50],[74,51,74,60],[75,0,75,3],[75,4,75,41],[75,42,75,50],[75,51,75,60],[72,0,72,3],[72,4,72,41],[72,42,72,50],[72,51,72,60],[73,0,73,3],[73,4,73,41],[73,42,73,50],[73,51,73,60],[70,0,70,3],[70,4,70,41],[70,42,70,50],[70,51,70,60],[71,0,71,3],[71,4,71,41],[71,42,71,50],[71,51,71,60],[67,0,67,60],[68,0,68,3],[68,4,68,41],[68,42,68,50],[68,51,68,60],[69,0,69,3],[69,4,69,41],[69,42,69,50],[69,51,69,60],[64,0,64,3],[64,4,64,41],[64,42,64,50],[64,51,64,60],[65,0,65,60],[66,0,66,3],[66,4,66,41],[66,42,66,50],[66,51,66,60],[62,0,62,3],[62,4,62,41],[62,42,62,50],[62,51,62,60],[63,0,63,41],[63,42,63,60],[60,0,60,3],[60,4,60,41],[60,42,60,50],[60,51,60,60],[61,0,61,3],[61,4,61,41],[61,42,61,50],[61,51,61,60],[59,0,59,3],[59,4,59,41],[59,42,59,50],[59,51,59,60],[56,0,56,3],[56,4,56,41],[56,42,56,50],[56,51,56,60],[57,0,57,3],[57,4,57,41],[57,42,57,50],[57,51,57,60],[52,0,52,3],[52,4,52,41],[52,42,52,50],[52,51,52,60],[53,0,53,3],[53,4,53,41],[53,42,53,50],[53,51,53,60],[58,0,58,3],[58,4,58,41],[58,42,58,50],[58,51,58,60],[49,0,49,60],[50,0,50,60],[51,0,51,3],[51,4,51,41],[51,42,51,50],[51,51,51,60],[82,0,82,44],[43,7,43,41],[43,42,44,60],[44,7,44,41],[45,7,45,41],[45,42,45,50],[45,51,45,60],[46,7,46,60],[47,0,47,60],[48,0,48,60],[54,0,54,3],[54,4,54,41],[54,42,54,50],[54,51,54,60],[55,0,55,3],[55,4,55,41],[55,42,55,50],[55,51,55,60],[38,0,38,3],[38,4,38,41],[38,42,38,50],[38,51,38,60],[39,0,39,3],[39,4,39,41],[39,42,39,60],[36,0,36,3],[36,4,36,41],[36,42,36,50],[36,51,36,60],[37,0,37,3],[37,4,37,41],[37,42,37,50],[37,51,37,60],[34,0,34,3],[34,4,34,41],[34,42,34,50],[34,51,34,60],[35,0,35,3],[35,4,35,41],[35,42,35,50],[35,51,35,60],[32,0,32,3],[32,4,32,41],[32,42,32,50],[32,51,32,60],[33,0,33,3],[33,4,33,41],[33,42,33,50],[33,51,33,60],[30,0,30,3],[30,4,30,41],[30,42,30,50],[30,51,30,60],[31,0,31,3],[31,4,31,41],[31,42,31,50],[31,51,31,60],[28,0,28,3],[28,4,28,41],[28,42,28,50],[28,51,28,60],[29,0,29,3],[29,4,29,41],[29,42,29,50],[29,51,29,60],[25,0,25,60],[26,0,26,3],[26,4,26,41],[26,42,26,50],[26,51,26,60],[27,0,27,3],[27,4,27,41],[27,42,27,50],[27,51,27,60],[22,0,22,3],[22,4,22,41],[22,42,22,50],[22,51,22,60],[23,0,23,60],[24,0,24,3],[24,4,24,41],[24,42,24,50],[24,51,24,60],[20,0,20,3],[20,4,20,41],[20,42,20,50],[20,51,20,60],[21,0,21,41],[21,42,21,60],[18,0,18,3],[18,4,18,41],[18,42,18,50],[18,51,18,60],[19,0,19,3],[19,4,19,41],[19,42,19,50],[19,51,19,60],[16,0,16,3],[16,4,16,41],[16,42,16,50],[16,51,16,60],[17,0,17,3],[17,4,17,41],[17,42,17,50],[17,51,17,60],[14,0,14,3],[14,4,14,41],[14,42,14,50],[14,51,14,60],[15,0,15,3],[15,4,15,41],[15,42,15,50],[15,51,15,60],[13,0,13,3],[13,4,13,41],[13,42,13,50],[13,51,13,60],[10,0,10,3],[10,4,10,41],[10,42,10,50],[10,51,10,60],[11,0,11,3],[11,4,11,41],[11,42,11,50],[11,51,11,60],[7,0,7,60],[8,0,8,60],[9,0,9,3],[9,4,9,41],[9,42,9,50],[9,51,9,60],[12,0,12,3],[12,4,12,41],[12,42,12,50],[12,51,12,60],[1,7,1,41],[1,42,2,60],[2,7,2,41],[3,7,3,41],[3,42,3,50],[3,51,3,60],[4,7,4,60],[5,0,5,60],[6,0,6,60]]}
[]
[null,null,null,null,null,null,null,"MINISTERUL AGRICULTURII ŞI DEZVOLTĂRII RURALE",null,null,null,null,null,null,null,null,null,null,null,null,null,null,null,null,null,null,null,null,null,null,null,null,null,null,null,null,null,null,null,null,null,null,"Anexa A3 HG_907"]
[]
[null,null,null,null,null,null,null,"AGENŢIA PENTRU FINANŢAREA INVESTIŢIILOR RURALE"]
[]
["Nr.2"]
[]
[]
["Deviz capitolul 2- Cheltuieli pentru asigurarea utilităţilor necesare obiectivului - EURO"]
["Nr. crt.",null,null,null,"Specificaţie",null,null,null,null,null,null,null,null,null,null,null,null,null,null,null,null,null,null,null,null,null,null,null,null,null,null,null,null,null,null,null,null,null,null,null,null,null,"Valoare eligibilă",null,null,null,null,null,null,null,null,"Valoare\nneeligibilă"]
[1,null,null,null,"Alimentare cu apă"]
[2,null,null,null,"Canalizare"]
[3,null,null,null,"Alimentare cu gaze naturale"]
[4,null,null,null,"Alimentare cu agent termic"]
[5,null,null,null,"Alimentare cu energie electrică"]
[6,null,null,null,"Telecomunicaţii (telefonie, radio-tv,etc)"]
[7,null,null,null,"Drumuri de acces"]
[8,null,null,null,"Căi ferate industriale"]
[9,null,null,null,"Alte utilitati"]
[null,null,null,null,"TOTAL DEVIZ CAPITOLUL 2",null,null,null,null,null,null,null,null,null,null,null,null,null,null,null,null,null,null,null,null,null,null,null,null,null,null,null,null,null,null,null,null,null,null,null,null,null,{"$f":"SUM(AQ11:AY19)","v":0},null,null,null,null,null,null,null,null,{"$f":"SUM(AZ11:BI19)","v":0}]
[null,null,null,null,"Valoare TVA aferentă cheltuielilor eligibile şi neeligibile"]
["TOTAL DEVIZ CAPITOLUL 2 (inclusiv TVA)",null,null,null,null,null,null,null,null,null,null,null,null,null,null,null,null,null,null,null,null,null,null,null,null,null,null,null,null,null,null,null,null,null,null,null,null,null,null,null,null,null,{"$f":"AQ20+AZ20+AQ21+AZ21","v":0}]
[]
[" Deviz capitolul 5 - Alte cheltuieli - EURO"]
["Nr. crt.",null,null,null,"Specificaţie",null,null,null,null,null,null,null,null,null,null,null,null,null,null,null,null,null,null,null,null,null,null,null,null,null,null,null,null,null,null,null,null,null,null,null,null,null,"Valoare eligibilă",null,null,null,null,null,null,null,null,"Valoare\nneeligibilă"]
[]
["5.1 ",null,null,null,"Organizare de şantier",null,null,null,null,null,null,null,null,null,null,null,null,null,null,null,null,null,null,null,null,null,null,null,null,null,null,null,null,null,null,null,null,null,null,null,null,null,{"$f":"SUM(AQ28:AY29)","v":0},null,null,null,null,null,null,null,null,{"$f":"SUM(AZ28:BI29)","v":0}]
[null,null,null,null,"5.1.1 Lucrări de construcţii şi instalaţii aferente organizării de şantier"]
[null,null,null,null,"5.1.2 Cheltuieli conexe organizării de şantier"]
["5.2",null,null,null,"Comisioane, cote, taxe, costul creditului",null,null,null,null,null,null,null,null,null,null,null,null,null,null,null,null,null,null,null,null,null,null,null,null,null,null,null,null,null,null,null,null,null,null,null,null,null,{"$f":"SUM(AQ32:AY35)","v":0},null,null,null,null,null,null,null,null,{"$f":"SUM(AZ31:BI35)","v":0}]
[null,null,null,null,"5.2.1. Comisioanele şi dobânzile aferente creditului băncii finanţatoare"]
[null,null,null,null,"5.2.2. Cota aferentă ISC pentru controlul calităţii lucrărilor de construcţii"]
[null,null,null,null,"5.2.3. Cota aferentă ISC pentru controlul statului în amenajarea teritoriului, urbanism şi pentru autorizarea lucrărilor de construcţii"]
[null,null,null,null,"5.2.4. Cota aferentă Casei Sociale a Constructorilor - CSC"]
[null,null,null,null,"5.2.5. Taxe pentru acorduri, avize conforme şi autorizaţia de construire/ desfiinţare"]
["5.3",null,null,null," Cheltuieli diverse si neprevazute"]
["5.4",null,null,null," Cheltuieli pentru informare şi publicitate"]
[null,null,null,null,"TOTAL DEVIZ CAPITOLUL 5",null,null,null,null,null,null,null,null,null,null,null,null,null,null,null,null,null,null,null,null,null,null,null,null,null,null,null,null,null,null,null,null,null,null,null,null,null,{"$f":"AQ27+AQ30+AQ36","v":0},null,null,null,null,null,null,null,null,{"$f":"AZ27+AZ30+AZ36+AZ37","v":0}]
[null,null,null,null,"VALOARE TVA aferentă cheltuielilor eligibile şi neeligibile"]
[null,null,null,null,"TOTAL DEVIZ CAPITOLUL 5 ( inclusiv TVA)",null,null,null,null,null,null,null,null,null,null,null,null,null,null,null,null,null,null,null,null,null,null,null,null,null,null,null,null,null,null,null,null,null,null,null,null,null,{"$f":"AQ38+AZ38+AQ39+AZ39","v":0}]
[]
[]
[]
[null,null,null,null,null,null,null,"MINISTERUL AGRICULTURII ŞI DEZVOLTĂRII RURALE",null,null,null,null,null,null,null,null,null,null,null,null,null,null,null,null,null,null,null,null,null,null,null,null,null,null,null,null,null,null,null,null,null,null,"Anexa A3 HG_907"]
[]
[null,null,null,null,null,null,null,"AGENŢIA PENTRU FINANŢAREA INVESTIŢIILOR RURALE",null,null,null,null,null,null,null,null,null,null,null,null,null,null,null,null,null,null,null,null,null,null,null,null,null,null,null,null,null,null,null,null,null,null,null,null,null,null,null,null,null,null,null,"Aprilie 2017"]
[]
["Nr.3"]
[]
[]
["Deviz capitolul 2- Cheltuieli pentru asigurarea utilităţilor necesare obiectivului - EURO"]
["Nr. crt.",null,null,null,"Specificaţie",null,null,null,null,null,null,null,null,null,null,null,null,null,null,null,null,null,null,null,null,null,null,null,null,null,null,null,null,null,null,null,null,null,null,null,null,null,"Valoare eligibilă",null,null,null,null,null,null,null,null,"Valoare\nneeligibilă"]
[1,null,null,null,"Alimentare cu apă"]
[2,null,null,null,"Canalizare"]
[3,null,null,null,"Alimentare cu gaze naturale"]
[4,null,null,null,"Alimentare cu agent termic"]
[5,null,null,null,"Alimentare cu energie electrică"]
[6,null,null,null,"Telecomunicaţii (telefonie, radio-tv,etc)"]
[7,null,null,null,"Drumuri de acces"]
[8,null,null,null,"Căi ferate industriale"]
[9,null,null,null,"Alte utilitati"]
[null,null,null,null,"TOTAL DEVIZ CAPITOLUL 2",null,null,null,null,null,null,null,null,null,null,null,null,null,null,null,null,null,null,null,null,null,null,null,null,null,null,null,null,null,null,null,null,null,null,null,null,null,{"$f":"SUM(AQ53:AY61)","v":0},null,null,null,null,null,null,null,null,{"$f":"SUM(AZ53:BI61)","v":0}]
[null,null,null,null,"Valoare TVA aferentă cheltuielilor eligibile şi neeligibile"]
["TOTAL DEVIZ CAPITOLUL 2 (inclusiv TVA)",null,null,null,null,null,null,null,null,null,null,null,null,null,null,null,null,null,null,null,null,null,null,null,null,null,null,null,null,null,null,null,null,null,null,null,null,null,null,null,null,null,{"$f":"AQ62+AZ62+AQ63+AZ63","v":0}]
[]
[" Deviz capitolul 5 - Alte cheltuieli - EURO"]
["Nr. crt.",null,null,null,"Specificaţie",null,null,null,null,null,null,null,null,null,null,null,null,null,null,null,null,null,null,null,null,null,null,null,null,null,null,null,null,null,null,null,null,null,null,null,null,null,"Valoare eligibilă",null,null,null,null,null,null,null,null,"Valoare\nneeligibilă"]
[]
["5.1 ",null,null,null,"Organizare de şantier",null,null,null,null,null,null,null,null,null,null,null,null,null,null,null,null,null,null,null,null,null,null,null,null,null,null,null,null,null,null,null,null,null,null,null,null,null,{"$f":"SUM(AQ70:AY71)","v":0},null,null,null,null,null,null,null,null,{"$f":"SUM(AZ70:BI71)","v":0}]
[null,null,null,null,"5.1.1 Lucrări de construcţii şi instalaţii aferente organizării de şantier"]
[null,null,null,null,"5.1.2 Cheltuieli conexe organizării de şantier"]
["5.2",null,null,null,"Comisioane, cote, taxe, costul creditului",null,null,null,null,null,null,null,null,null,null,null,null,null,null,null,null,null,null,null,null,null,null,null,null,null,null,null,null,null,null,null,null,null,null,null,null,null,{"$f":"SUM(AQ74:AY77)","v":0},null,null,null,null,null,null,null,null,{"$f":"SUM(AZ73:BI77)","v":0}]
[null,null,null,null,"5.2.1. Comisioanele şi dobânzile aferente creditului băncii finanţatoare"]
[null,null,null,null,"5.2.2. Cota aferentă ISC pentru controlul calităţii lucrărilor de construcţii"]
[null,null,null,null,"5.2.3. Cota aferentă ISC pentru controlul statului în amenajarea teritoriului, urbanism şi pentru autorizarea lucrărilor de construcţii"]
[null,null,null,null,"5.2.4. Cota aferentă Casei Sociale a Constructorilor - CSC"]
[null,null,null,null,"5.2.5. Taxe pentru acorduri, avize conforme şi autorizaţia de construire/ desfiinţare"]
["5.3",null,null,null," Cheltuieli diverse si neprevazute"]
["5.4",null,null,null," Cheltuieli pentru informare şi publicitate"]
[null,null,null,null,"TOTAL DEVIZ CAPITOLUL 5",null,null,null,null,null,null,null,null,null,null,null,null,null,null,null,null,null,null,null,null,null,null,null,null,null,null,null,null,null,null,null,null,null,null,null,null,null,{"$f":"AQ69+AQ72+AQ78","v":0},null,null,null,null,null,null,null,null,{"$f":"AZ69+AZ72+AZ78+AZ79","v":0}]
[null,null,null,null,"VALOARE TVA aferentă cheltuielilor eligibile şi neeligibile"]
[null,null,null,null,"TOTAL DEVIZ CAPITOLUL 5 ( inclusiv TVA)",null,null,null,null,null,null,null,null,null,null,null,null,null,null,null,null,null,null,null,null,null,null,null,null,null,null,null,null,null,null,null,null,null,null,null,null,null,{"$f":"AQ80+AZ80+AQ81+AZ81","v":0}]